﻿Department Family,Entity,Date,Expense Type,Expense Area,Supplier,Transaction Number,AP Amount
Department of Health,NHS Bristol N Somerset S Glos ICB,31/08/2022,C&M- IIF ACHIEVEMENT,DELEGATED GP,168 MEDICAL GROUP,42189507,"39,483.25"
Department of Health,NHS Bristol N Somerset S Glos ICB,31/08/2022,C&M- PCN DES CARE COORDINATOR,DELEGATED GP,168 MEDICAL GROUP,42189507,"22,813.68"
Department of Health,NHS Bristol N Somerset S Glos ICB,31/08/2022,C&M- PCN DES CARE HOME PREMIUM,DELEGATED GP,168 MEDICAL GROUP,42189507,"15,730.00"
Department of Health,NHS Bristol N Somerset S Glos ICB,31/08/2022,C&M- PCN DES Nursing Associate,DELEGATED GP,168 MEDICAL GROUP,42189507,"1,996.83"
Department of Health,NHS Bristol N Somerset S Glos ICB,31/08/2022,C&M-GMS DES Extended Hours Access,DELEGATED GP,168 MEDICAL GROUP,42189507,"11,417.16"
Department of Health,NHS Bristol N Somerset S Glos ICB,31/08/2022,C&M-GMS Global Sum,DELEGATED GP,168 MEDICAL GROUP,42189507,"199,076.06"
Department of Health,NHS Bristol N Somerset S Glos ICB,31/08/2022,C&M-GMS LES Anti-coagulation,LOCAL INCENTIVE SCHEMES,168 MEDICAL GROUP,42189507,"1,013.33"
Department of Health,NHS Bristol N Somerset S Glos ICB,31/08/2022,C&M-GMS LES Basket of Procedures,LOCAL INCENTIVE SCHEMES,168 MEDICAL GROUP,42189507,"21,669.83"
Department of Health,NHS Bristol N Somerset S Glos ICB,31/08/2022,C&M-GMS LES Care Home/Nursing Home,LOCAL INCENTIVE SCHEMES,168 MEDICAL GROUP,42189507,"1,492.83"
Department of Health,NHS Bristol N Somerset S Glos ICB,31/08/2022,C&M-GMS LES DVT,LOCAL INCENTIVE SCHEMES,168 MEDICAL GROUP,42189507,200.00
Department of Health,NHS Bristol N Somerset S Glos ICB,31/08/2022,C&M-GMS LES Dementia,LOCAL INCENTIVE SCHEMES,168 MEDICAL GROUP,42189507,"1,611.92"
Department of Health,NHS Bristol N Somerset S Glos ICB,31/08/2022,C&M-GMS LES Presc Incentive Sch,LOCAL INCENTIVE SCHEMES,168 MEDICAL GROUP,42189507,"15,648.75"
Department of Health,NHS Bristol N Somerset S Glos ICB,31/08/2022,C&M-GMS NES Near Patient Testing,LOCAL INCENTIVE SCHEMES,168 MEDICAL GROUP,42189507,"1,139.17"
Department of Health,NHS Bristol N Somerset S Glos ICB,31/08/2022,C&M-GMS PCN DES Clin Pharmacist,DELEGATED GP,168 MEDICAL GROUP,42189507,"22,596.70"
Department of Health,NHS Bristol N Somerset S Glos ICB,31/08/2022,C&M-GMS PCN DES Clinical Director,DELEGATED GP,168 MEDICAL GROUP,42189507,"5,835.44"
Department of Health,NHS Bristol N Somerset S Glos ICB,31/08/2022,C&M-GMS PCN DES Participation,DELEGATED GP,168 MEDICAL GROUP,42189507,"3,623.98"
Department of Health,NHS Bristol N Somerset S Glos ICB,31/08/2022,C&M-GMS PCN DES Physiotherapist,DELEGATED GP,168 MEDICAL GROUP,42189507,"28,399.96"
Department of Health,NHS Bristol N Somerset S Glos ICB,31/08/2022,C&M-GMS PCN DES Soc Prescribing,DELEGATED GP,168 MEDICAL GROUP,42189507,"22,326.14"
Department of Health,NHS Bristol N Somerset S Glos ICB,31/08/2022,C&M-GMS PCO Doctors Ret Scheme,DELEGATED GP,168 MEDICAL GROUP,42189507,"2,461.44"
Department of Health,NHS Bristol N Somerset S Glos ICB,31/08/2022,C&M-GMS PCO Locum Sickness,DELEGATED GP,168 MEDICAL GROUP,42189507,"7,194.19"
Department of Health,NHS Bristol N Somerset S Glos ICB,31/08/2022,C&M-GMS Prem Notional Rent,DELEGATED GP,168 MEDICAL GROUP,42189507,"20,874.66"
Department of Health,NHS Bristol N Somerset S Glos ICB,31/08/2022,C&M-GMS QOF Aspiration,DELEGATED GP,168 MEDICAL GROUP,42189507,"21,872.36"
Department of Health,NHS Bristol N Somerset S Glos ICB,31/08/2022,C&M-GMS WEIGHT MANAGEMENT SERVICE,DELEGATED GP,168 MEDICAL GROUP,42189507,230.00
Department of Health,NHS Bristol N Somerset S Glos ICB,31/08/2022,C&M-NCD Health and Wellbeing Coach,DELEGATED GP,168 MEDICAL GROUP,42189507,"4,276.50"
Department of Health,NHS Bristol N Somerset S Glos ICB,31/08/2022,C&M-PCN DES Adult Mental Health Practitioner,DELEGATED GP,168 MEDICAL GROUP,42189507,"1,886.42"
Department of Health,NHS Bristol N Somerset S Glos ICB,31/08/2022,C&M-PCN DES PHARMACY TECHNICIANS,DELEGATED GP,168 MEDICAL GROUP,42189507,"6,071.34"
Department of Health,NHS Bristol N Somerset S Glos ICB,31/08/2022,C&M-PCN DES Paramedic Advanced Practitioner,DELEGATED GP,168 MEDICAL GROUP,42189507,"8,445.40"
Department of Health,NHS Bristol N Somerset S Glos ICB,31/08/2022,C&M-PCN DES Trainee Nursing Associate,DELEGATED GP,168 MEDICAL GROUP,42189507,"10,725.37"
Department of Health,NHS Bristol N Somerset S Glos ICB,31/08/2022,C&M-PCN-GMS DES Leadership Payment,DELEGATED GP,168 MEDICAL GROUP,42189507,"6,033.59"
Department of Health,NHS Bristol N Somerset S Glos ICB,31/08/2022,Cont Care- Adult 100% Fully Funded,CHC ADULT FULLY FUNDED,3 TREES COMMUNITY SUPPORT LTD,42102684,"28,023.80"
Department of Health,NHS Bristol N Somerset S Glos ICB,31/08/2022,Social Care-Nursing Short Stay Exp,INTERMEDIATE CARE,ABLECARE HOMES,41916184,"-25,142.85"
Department of Health,NHS Bristol N Somerset S Glos ICB,31/08/2022,C&M-GP PRACTICE REVENUE - PCTF,GP INVESTMENT,ACCURX LTD,41961232,"25,319.84"
Department of Health,NHS Bristol N Somerset S Glos ICB,31/08/2022,C&M-GP PRACTICE REVENUE - PCTF,GP INVESTMENT,ACCURX LTD,41961467,"25,319.84"
Department of Health,NHS Bristol N Somerset S Glos ICB,31/08/2022,Cont Care- Adult 100% Fully Funded,CHC ADULT FULLY FUNDED,ACHIEVE TOGETHER LTD,42158057,"29,157.01"
Department of Health,NHS Bristol N Somerset S Glos ICB,31/08/2022,C&M-PMS Contract Value,DELEGATED GP,AIR BALLOON SURGERY,42006107,"98,785.98"
Department of Health,NHS Bristol N Somerset S Glos ICB,31/08/2022,C&M-PMS DES Learn Dsblty Hlth Chk,DELEGATED GP,AIR BALLOON SURGERY,42006107,700.00
Department of Health,NHS Bristol N Somerset S Glos ICB,31/08/2022,C&M-PMS LES Anti-coagulation,LOCAL INCENTIVE SCHEMES,AIR BALLOON SURGERY,42006107,104.50
Department of Health,NHS Bristol N Somerset S Glos ICB,31/08/2022,C&M-PMS LES Basket of Procedures,LOCAL INCENTIVE SCHEMES,AIR BALLOON SURGERY,42006107,"11,496.44"
Department of Health,NHS Bristol N Somerset S Glos ICB,31/08/2022,C&M-PMS LES Dementia,LOCAL INCENTIVE SCHEMES,AIR BALLOON SURGERY,42006107,850.75
Department of Health,NHS Bristol N Somerset S Glos ICB,31/08/2022,C&M-PMS LES Diabetes-Insulin (GTT),LOCAL INCENTIVE SCHEMES,AIR BALLOON SURGERY,42006107,58.33
Department of Health,NHS Bristol N Somerset S Glos ICB,31/08/2022,C&M-PMS NES Near Patient Testing,LOCAL INCENTIVE SCHEMES,AIR BALLOON SURGERY,42006107,651.67
Department of Health,NHS Bristol N Somerset S Glos ICB,31/08/2022,C&M-PMS PCN DES Participation,DELEGATED GP,AIR BALLOON SURGERY,42006107,"1,828.86"
Department of Health,NHS Bristol N Somerset S Glos ICB,31/08/2022,C&M-PMS Prem Notional Rent,DELEGATED GP,AIR BALLOON SURGERY,42006107,"8,704.17"
Department of Health,NHS Bristol N Somerset S Glos ICB,31/08/2022,C&M-PMS QOF Aspiration,DELEGATED GP,AIR BALLOON SURGERY,42006107,"10,075.56"
Department of Health,NHS Bristol N Somerset S Glos ICB,31/08/2022,C&M-PMS Contract Value,DELEGATED GP,ALMONDSBURY SURGERY,42006109,"44,331.22"
Department of Health,NHS Bristol N Somerset S Glos ICB,31/08/2022,C&M-PMS LES Anti-coagulation,LOCAL INCENTIVE SCHEMES,ALMONDSBURY SURGERY,42006109,57.00
Department of Health,NHS Bristol N Somerset S Glos ICB,31/08/2022,C&M-PMS LES Basket of Procedures,LOCAL INCENTIVE SCHEMES,ALMONDSBURY SURGERY,42006109,"4,243.95"
Department of Health,NHS Bristol N Somerset S Glos ICB,31/08/2022,C&M-PMS LES DVT,LOCAL INCENTIVE SCHEMES,ALMONDSBURY SURGERY,42006109,50.00
Department of Health,NHS Bristol N Somerset S Glos ICB,31/08/2022,C&M-PMS LES Dementia,LOCAL INCENTIVE SCHEMES,ALMONDSBURY SURGERY,42006109,138.83
Department of Health,NHS Bristol N Somerset S Glos ICB,31/08/2022,C&M-PMS NES Near Patient Testing,LOCAL INCENTIVE SCHEMES,ALMONDSBURY SURGERY,42006109,298.33
Department of Health,NHS Bristol N Somerset S Glos ICB,31/08/2022,C&M-PMS PCN DES Participation,DELEGATED GP,ALMONDSBURY SURGERY,42006109,802.49
Department of Health,NHS Bristol N Somerset S Glos ICB,31/08/2022,C&M-PMS Prem Actual Rent,DELEGATED GP,ALMONDSBURY SURGERY,42006109,"13,772.49"
Department of Health,NHS Bristol N Somerset S Glos ICB,31/08/2022,C&M-PMS Prem Water Rates,DELEGATED GP,ALMONDSBURY SURGERY,42006109,205.64
Department of Health,NHS Bristol N Somerset S Glos ICB,31/08/2022,C&M-PMS QOF Aspiration,DELEGATED GP,ALMONDSBURY SURGERY,42006109,"4,568.39"
Department of Health,NHS Bristol N Somerset S Glos ICB,31/08/2022,ME - PMS GP Prior Year ERs,DELEGATED GP,ALMONDSBURY SURGERY,42006109,"3,363.94"
Department of Health,NHS Bristol N Somerset S Glos ICB,31/08/2022,ME-PMS GP Prior Year EEs,DELEGATED GP,ALMONDSBURY SURGERY,42006109,"3,392.05"
Department of Health,NHS Bristol N Somerset S Glos ICB,31/08/2022,C&M-PMS Contract Value,DELEGATED GP,ARMADA FAMILY PRACTICE,42006153,"129,656.61"
Department of Health,NHS Bristol N Somerset S Glos ICB,31/08/2022,C&M-PMS LES Anti-coagulation,LOCAL INCENTIVE SCHEMES,ARMADA FAMILY PRACTICE,42006153,361.00
Department of Health,NHS Bristol N Somerset S Glos ICB,31/08/2022,C&M-PMS LES Basket of Procedures,LOCAL INCENTIVE SCHEMES,ARMADA FAMILY PRACTICE,42006153,"15,246.03"
Department of Health,NHS Bristol N Somerset S Glos ICB,31/08/2022,C&M-PMS LES Dementia,LOCAL INCENTIVE SCHEMES,ARMADA FAMILY PRACTICE,42006153,556.67
Department of Health,NHS Bristol N Somerset S Glos ICB,31/08/2022,C&M-PMS LES Diabetes-Insulin (GTT),LOCAL INCENTIVE SCHEMES,ARMADA FAMILY PRACTICE,42006153,58.33
Department of Health,NHS Bristol N Somerset S Glos ICB,31/08/2022,C&M-PMS NES Near Patient Testing,LOCAL INCENTIVE SCHEMES,ARMADA FAMILY PRACTICE,42006153,930.83
Department of Health,NHS Bristol N Somerset S Glos ICB,31/08/2022,C&M-PMS PCN DES Participation,DELEGATED GP,ARMADA FAMILY PRACTICE,42006153,"2,394.49"
Department of Health,NHS Bristol N Somerset S Glos ICB,31/08/2022,C&M-PMS Prem Service Charges,DELEGATED GP,ARMADA FAMILY PRACTICE,42006153,"50,290.96"
Department of Health,NHS Bristol N Somerset S Glos ICB,31/08/2022,C&M-PMS QOF Aspiration,DELEGATED GP,ARMADA FAMILY PRACTICE,42006153,"16,045.53"
Department of Health,NHS Bristol N Somerset S Glos ICB,31/08/2022,C&M-PMS WEIGHT MANAGEMENT SERVICE,DELEGATED GP,ARMADA FAMILY PRACTICE,42006153,310.50
Department of Health,NHS Bristol N Somerset S Glos ICB,31/08/2022,C&M-PMS LES Care Home/Nursing Home,LOCAL INCENTIVE SCHEMES,ARMADA FAMILY PRACTICE,42189546,737.20
Department of Health,NHS Bristol N Somerset S Glos ICB,31/08/2022,C&M-PMS PCO Doctors Ret Scheme,DELEGATED GP,ARMADA FAMILY PRACTICE,42189546,"1,384.56"
Department of Health,NHS Bristol N Somerset S Glos ICB,31/08/2022,C&M-PMS PCO Locum Adop/Pat/Mat,DELEGATED GP,ARMADA FAMILY PRACTICE,42189546,"54,831.72"
Department of Health,NHS Bristol N Somerset S Glos ICB,31/08/2022,Social Care-Nursing Short Stay Exp,INTERMEDIATE CARE,ASPIRATIONS SUPPORT BRISTOL LTD,41939506,"26,162.50"
Department of Health,NHS Bristol N Somerset S Glos ICB,31/08/2022,Hcare Srv Rec NHS Trust-Contract Baseline,MENTAL HEALTH SERVICES A,AVON AND WILTSHIRE MENTAL HEALTH PARTNERSHIP NHS TRUST,42027831,"11,446,437.89"
Department of Health,NHS Bristol N Somerset S Glos ICB,31/08/2022,C&M-PMS Contract Value,DELEGATED GP,BEDMINSTER FAMILY PRACTICE,42006113,"96,036.63"
Department of Health,NHS Bristol N Somerset S Glos ICB,31/08/2022,C&M-PMS DES Learn Dsblty Hlth Chk,DELEGATED GP,BEDMINSTER FAMILY PRACTICE,42006113,140.00
Department of Health,NHS Bristol N Somerset S Glos ICB,31/08/2022,C&M-PMS LES Anti-coagulation,LOCAL INCENTIVE SCHEMES,BEDMINSTER FAMILY PRACTICE,42006113,128.25
Department of Health,NHS Bristol N Somerset S Glos ICB,31/08/2022,C&M-PMS LES Basket of Procedures,LOCAL INCENTIVE SCHEMES,BEDMINSTER FAMILY PRACTICE,42006113,"11,167.41"
Department of Health,NHS Bristol N Somerset S Glos ICB,31/08/2022,C&M-PMS LES Dementia,LOCAL INCENTIVE SCHEMES,BEDMINSTER FAMILY PRACTICE,42006113,195.17
Department of Health,NHS Bristol N Somerset S Glos ICB,31/08/2022,C&M-PMS NES Near Patient Testing,LOCAL INCENTIVE SCHEMES,BEDMINSTER FAMILY PRACTICE,42006113,371.67
Department of Health,NHS Bristol N Somerset S Glos ICB,31/08/2022,C&M-PMS PCN DES Participation,DELEGATED GP,BEDMINSTER FAMILY PRACTICE,42006113,"1,763.55"
Department of Health,NHS Bristol N Somerset S Glos ICB,31/08/2022,C&M-PMS Prem Notional Rent,DELEGATED GP,BEDMINSTER FAMILY PRACTICE,42006113,"12,291.67"
Department of Health,NHS Bristol N Somerset S Glos ICB,31/08/2022,C&M-PMS QOF Aspiration,DELEGATED GP,BEDMINSTER FAMILY PRACTICE,42006113,"7,636.92"
Department of Health,NHS Bristol N Somerset S Glos ICB,31/08/2022,C&M-PMS WEIGHT MANAGEMENT SERVICE,DELEGATED GP,BEDMINSTER FAMILY PRACTICE,42006113,149.50
Department of Health,NHS Bristol N Somerset S Glos ICB,31/08/2022,ME - PMS GP Prior Year ERs,DELEGATED GP,BEDMINSTER FAMILY PRACTICE,42006113,0.01
Department of Health,NHS Bristol N Somerset S Glos ICB,31/08/2022,C&M-PMS Contract Value,DELEGATED GP,BEDMINSTER FAMILY PRACTICE,42006114,-704.20
Department of Health,NHS Bristol N Somerset S Glos ICB,31/08/2022,ME - PMS GP Prior Year ERs,DELEGATED GP,BEDMINSTER FAMILY PRACTICE,42006114,"-9,925.13"
Department of Health,NHS Bristol N Somerset S Glos ICB,31/08/2022,ME-PMS GP Pension Added Years EEs,DELEGATED GP,BEDMINSTER FAMILY PRACTICE,42006114,-249.32
Department of Health,NHS Bristol N Somerset S Glos ICB,31/08/2022,ME-PMS GP Pension EEs-PMS,DELEGATED GP,BEDMINSTER FAMILY PRACTICE,42006114,"-9,896.35"
Department of Health,NHS Bristol N Somerset S Glos ICB,31/08/2022,ME-PMS GP Pension ERs-PMS,DELEGATED GP,BEDMINSTER FAMILY PRACTICE,42006114,"-10,547.52"
Department of Health,NHS Bristol N Somerset S Glos ICB,31/08/2022,ME-PMS GP Prior Year AVCs,DELEGATED GP,BEDMINSTER FAMILY PRACTICE,42006114,"-4,451.13"
Department of Health,NHS Bristol N Somerset S Glos ICB,31/08/2022,ME-PMS GP Prior Year EEs,DELEGATED GP,BEDMINSTER FAMILY PRACTICE,42006114,"-10,917.91"
Department of Health,NHS Bristol N Somerset S Glos ICB,31/08/2022,C&M- PCN DES CARE HOME PREMIUM,DELEGATED GP,BEECHWOOD MEDICAL PRACTICE,42189521,"2,550.00"
Department of Health,NHS Bristol N Somerset S Glos ICB,31/08/2022,C&M-GMS DES Extended Hours Access,DELEGATED GP,BEECHWOOD MEDICAL PRACTICE,42189521,"4,604.04"
Department of Health,NHS Bristol N Somerset S Glos ICB,31/08/2022,C&M-GMS Global Sum,DELEGATED GP,BEECHWOOD MEDICAL PRACTICE,42189521,"89,135.58"
Department of Health,NHS Bristol N Somerset S Glos ICB,31/08/2022,C&M-GMS LES Anti-coagulation,LOCAL INCENTIVE SCHEMES,BEECHWOOD MEDICAL PRACTICE,42189521,90.25
Department of Health,NHS Bristol N Somerset S Glos ICB,31/08/2022,C&M-GMS LES Basket of Procedures,LOCAL INCENTIVE SCHEMES,BEECHWOOD MEDICAL PRACTICE,42189521,"14,699.42"
Department of Health,NHS Bristol N Somerset S Glos ICB,31/08/2022,C&M-GMS LES Care Home/Nursing Home,LOCAL INCENTIVE SCHEMES,BEECHWOOD MEDICAL PRACTICE,42189521,64.51
Department of Health,NHS Bristol N Somerset S Glos ICB,31/08/2022,C&M-GMS LES DVT,LOCAL INCENTIVE SCHEMES,BEECHWOOD MEDICAL PRACTICE,42189521,13.33
Department of Health,NHS Bristol N Somerset S Glos ICB,31/08/2022,C&M-GMS LES Dementia,LOCAL INCENTIVE SCHEMES,BEECHWOOD MEDICAL PRACTICE,42189521,265.25
Department of Health,NHS Bristol N Somerset S Glos ICB,31/08/2022,C&M-GMS LES Diabetes-Insulin (GTT),LOCAL INCENTIVE SCHEMES,BEECHWOOD MEDICAL PRACTICE,42189521,58.33
Department of Health,NHS Bristol N Somerset S Glos ICB,31/08/2022,C&M-GMS LES Presc Incentive Sch,LOCAL INCENTIVE SCHEMES,BEECHWOOD MEDICAL PRACTICE,42189521,"11,760.00"
Department of Health,NHS Bristol N Somerset S Glos ICB,31/08/2022,C&M-GMS NES Near Patient Testing,LOCAL INCENTIVE SCHEMES,BEECHWOOD MEDICAL PRACTICE,42189521,555.00
Department of Health,NHS Bristol N Somerset S Glos ICB,31/08/2022,C&M-GMS PCN DES Clinical Director,DELEGATED GP,BEECHWOOD MEDICAL PRACTICE,42189521,"2,353.18"
Department of Health,NHS Bristol N Somerset S Glos ICB,31/08/2022,C&M-GMS PCN DES Participation,DELEGATED GP,BEECHWOOD MEDICAL PRACTICE,42189521,"1,631.57"
Department of Health,NHS Bristol N Somerset S Glos ICB,31/08/2022,C&M-GMS PCO Doctors Ret Scheme,DELEGATED GP,BEECHWOOD MEDICAL PRACTICE,42189521,"1,307.64"
Department of Health,NHS Bristol N Somerset S Glos ICB,31/08/2022,C&M-GMS Prem Service Charges,DELEGATED GP,BEECHWOOD MEDICAL PRACTICE,42189521,"43,546.99"
Department of Health,NHS Bristol N Somerset S Glos ICB,31/08/2022,C&M-GMS QOF Aspiration,DELEGATED GP,BEECHWOOD MEDICAL PRACTICE,42189521,"8,558.37"
Department of Health,NHS Bristol N Somerset S Glos ICB,31/08/2022,C&M-GMS WEIGHT MANAGEMENT SERVICE,DELEGATED GP,BEECHWOOD MEDICAL PRACTICE,42189521,310.50
Department of Health,NHS Bristol N Somerset S Glos ICB,31/08/2022,C&M-PCN-GMS DES Leadership Payment,DELEGATED GP,BEECHWOOD MEDICAL PRACTICE,42189521,"2,242.92"
Department of Health,NHS Bristol N Somerset S Glos ICB,31/08/2022,ME-GMS GP Pension EEs,DELEGATED GP,BEECHWOOD MEDICAL PRACTICE,42189521,"1,433.76"
Department of Health,NHS Bristol N Somerset S Glos ICB,31/08/2022,ME-GMS GP Pension ERs,DELEGATED GP,BEECHWOOD MEDICAL PRACTICE,42189521,"2,216.92"
Department of Health,NHS Bristol N Somerset S Glos ICB,31/08/2022,ME - GMS GP Prior Year ERs,DELEGATED GP,BEECHWOOD MEDICAL PRACTICE,42189522,-147.41
Department of Health,NHS Bristol N Somerset S Glos ICB,31/08/2022,ME-GMS GP Pension Added Years EEs,DELEGATED GP,BEECHWOOD MEDICAL PRACTICE,42189522,-626.05
Department of Health,NHS Bristol N Somerset S Glos ICB,31/08/2022,ME-GMS GP Pension EEs,DELEGATED GP,BEECHWOOD MEDICAL PRACTICE,42189522,"-15,085.17"
Department of Health,NHS Bristol N Somerset S Glos ICB,31/08/2022,ME-GMS GP Pension ERs,DELEGATED GP,BEECHWOOD MEDICAL PRACTICE,42189522,"-15,449.50"
Department of Health,NHS Bristol N Somerset S Glos ICB,31/08/2022,ME-GMS GP Prior Year EEs,DELEGATED GP,BEECHWOOD MEDICAL PRACTICE,42189522,-138.47
Department of Health,NHS Bristol N Somerset S Glos ICB,31/08/2022,C&M-GMS Global Sum,DELEGATED GP,BIRCHWOOD MEDICAL PRACTICE BRISTOL,42189539,"66,225.13"
Department of Health,NHS Bristol N Somerset S Glos ICB,31/08/2022,C&M-GMS LES Anti-coagulation,LOCAL INCENTIVE SCHEMES,BIRCHWOOD MEDICAL PRACTICE BRISTOL,42189539,66.50
Department of Health,NHS Bristol N Somerset S Glos ICB,31/08/2022,C&M-GMS LES Basket of Procedures,LOCAL INCENTIVE SCHEMES,BIRCHWOOD MEDICAL PRACTICE BRISTOL,42189539,"7,362.25"
Department of Health,NHS Bristol N Somerset S Glos ICB,31/08/2022,C&M-GMS LES Care Home/Nursing Home,LOCAL INCENTIVE SCHEMES,BIRCHWOOD MEDICAL PRACTICE BRISTOL,42189539,96.76
Department of Health,NHS Bristol N Somerset S Glos ICB,31/08/2022,C&M-GMS LES Dementia,LOCAL INCENTIVE SCHEMES,BIRCHWOOD MEDICAL PRACTICE BRISTOL,42189539,195.17
Department of Health,NHS Bristol N Somerset S Glos ICB,31/08/2022,C&M-GMS LES Presc Incentive Sch,LOCAL INCENTIVE SCHEMES,BIRCHWOOD MEDICAL PRACTICE BRISTOL,42189539,"9,169.00"
Department of Health,NHS Bristol N Somerset S Glos ICB,31/08/2022,C&M-GMS NES Near Patient Testing,LOCAL INCENTIVE SCHEMES,BIRCHWOOD MEDICAL PRACTICE BRISTOL,42189539,367.50
Department of Health,NHS Bristol N Somerset S Glos ICB,31/08/2022,C&M-GMS PCN DES Participation,DELEGATED GP,BIRCHWOOD MEDICAL PRACTICE BRISTOL,42189539,"1,232.06"
Department of Health,NHS Bristol N Somerset S Glos ICB,31/08/2022,C&M-GMS QOF Aspiration,DELEGATED GP,BIRCHWOOD MEDICAL PRACTICE BRISTOL,42189539,"6,018.65"
Department of Health,NHS Bristol N Somerset S Glos ICB,31/08/2022,C&M-GMS WEIGHT MANAGEMENT SERVICE,DELEGATED GP,BIRCHWOOD MEDICAL PRACTICE BRISTOL,42189539,34.50
Department of Health,NHS Bristol N Somerset S Glos ICB,31/08/2022,ME - GMS GP Prior Year ERs,DELEGATED GP,BIRCHWOOD MEDICAL PRACTICE BRISTOL,42189539,"3,870.64"
Department of Health,NHS Bristol N Somerset S Glos ICB,31/08/2022,ME-GMS GP Prior Year EEs,DELEGATED GP,BIRCHWOOD MEDICAL PRACTICE BRISTOL,42189539,"3,364.61"
Department of Health,NHS Bristol N Somerset S Glos ICB,31/08/2022,ME - GMS GP Prior Year ERs,DELEGATED GP,BIRCHWOOD MEDICAL PRACTICE BRISTOL,42189540,"-6,686.68"
Department of Health,NHS Bristol N Somerset S Glos ICB,31/08/2022,ME-GMS GP Pension EEs,DELEGATED GP,BIRCHWOOD MEDICAL PRACTICE BRISTOL,42189540,"-10,122.37"
Department of Health,NHS Bristol N Somerset S Glos ICB,31/08/2022,ME-GMS GP Pension ERs,DELEGATED GP,BIRCHWOOD MEDICAL PRACTICE BRISTOL,42189540,"-10,767.02"
Department of Health,NHS Bristol N Somerset S Glos ICB,31/08/2022,ME-GMS GP Prior Year EEs,DELEGATED GP,BIRCHWOOD MEDICAL PRACTICE BRISTOL,42189540,"-5,812.49"
Department of Health,NHS Bristol N Somerset S Glos ICB,31/08/2022,C&M-PMS Contract Value,DELEGATED GP,BRADGATE SURGERY,42006119,"175,597.00"
Department of Health,NHS Bristol N Somerset S Glos ICB,31/08/2022,C&M-PMS DES Learn Dsblty Hlth Chk,DELEGATED GP,BRADGATE SURGERY,42006119,"1,260.00"
Department of Health,NHS Bristol N Somerset S Glos ICB,31/08/2022,C&M-PMS LES Anti-coagulation,LOCAL INCENTIVE SCHEMES,BRADGATE SURGERY,42006119,180.50
Department of Health,NHS Bristol N Somerset S Glos ICB,31/08/2022,C&M-PMS LES Basket of Procedures,LOCAL INCENTIVE SCHEMES,BRADGATE SURGERY,42006119,"19,704.40"
Department of Health,NHS Bristol N Somerset S Glos ICB,31/08/2022,C&M-PMS LES DVT,LOCAL INCENTIVE SCHEMES,BRADGATE SURGERY,42006119,13.33
Department of Health,NHS Bristol N Somerset S Glos ICB,31/08/2022,C&M-PMS LES Dementia,LOCAL INCENTIVE SCHEMES,BRADGATE SURGERY,42006119,"1,180.75"
Department of Health,NHS Bristol N Somerset S Glos ICB,31/08/2022,C&M-PMS LES Diabetes-Insulin (GTT),LOCAL INCENTIVE SCHEMES,BRADGATE SURGERY,42006119,58.33
Department of Health,NHS Bristol N Somerset S Glos ICB,31/08/2022,C&M-PMS NES Near Patient Testing,LOCAL INCENTIVE SCHEMES,BRADGATE SURGERY,42006119,975.00
Department of Health,NHS Bristol N Somerset S Glos ICB,31/08/2022,C&M-PMS PCN DES Participation,DELEGATED GP,BRADGATE SURGERY,42006119,"3,148.42"
Department of Health,NHS Bristol N Somerset S Glos ICB,31/08/2022,C&M-PMS Prem Notional Rent,DELEGATED GP,BRADGATE SURGERY,42006119,"15,175.25"
Department of Health,NHS Bristol N Somerset S Glos ICB,31/08/2022,C&M-PMS Prem Rates,DELEGATED GP,BRADGATE SURGERY,42006119,"12,475.00"
Department of Health,NHS Bristol N Somerset S Glos ICB,31/08/2022,C&M-PMS QOF Aspiration,DELEGATED GP,BRADGATE SURGERY,42006119,"16,064.89"
Department of Health,NHS Bristol N Somerset S Glos ICB,31/08/2022,C&M-PMS WEIGHT MANAGEMENT SERVICE,DELEGATED GP,BRADGATE SURGERY,42006119,"1,023.50"
Department of Health,NHS Bristol N Somerset S Glos ICB,31/08/2022,ME - PMS GP Prior Year ERs,DELEGATED GP,BRADGATE SURGERY,42006120,"-6,289.24"
Department of Health,NHS Bristol N Somerset S Glos ICB,31/08/2022,ME-PMS GP Pension Added Years EEs,DELEGATED GP,BRADGATE SURGERY,42006120,-568.21
Department of Health,NHS Bristol N Somerset S Glos ICB,31/08/2022,ME-PMS GP Pension EEs-PMS,DELEGATED GP,BRADGATE SURGERY,42006120,"-13,127.34"
Department of Health,NHS Bristol N Somerset S Glos ICB,31/08/2022,ME-PMS GP Pension ERs-PMS,DELEGATED GP,BRADGATE SURGERY,42006120,"-13,940.99"
Department of Health,NHS Bristol N Somerset S Glos ICB,31/08/2022,ME-PMS GP Prior Year EEs,DELEGATED GP,BRADGATE SURGERY,42006120,"-7,204.51"
Department of Health,NHS Bristol N Somerset S Glos ICB,31/08/2022,C&M-PMS LES Care Home/Nursing Home,LOCAL INCENTIVE SCHEMES,BRADGATE SURGERY,42189525,"1,561.94"
Department of Health,NHS Bristol N Somerset S Glos ICB,31/08/2022,C&M-PMS LES Presc Incentive Sch,LOCAL INCENTIVE SCHEMES,BRADGATE SURGERY,42189525,"19,980.64"
Department of Health,NHS Bristol N Somerset S Glos ICB,31/08/2022,C&M-PMS PCO Doctors Ret Scheme,DELEGATED GP,BRADGATE SURGERY,42189525,"4,000.00"
Department of Health,NHS Bristol N Somerset S Glos ICB,31/08/2022,C&M- IIF ACHIEVEMENT,DELEGATED GP,BRADLEY STOKE SURGERY,42006121,"21,381.63"
Department of Health,NHS Bristol N Somerset S Glos ICB,31/08/2022,C&M-PCN-PMS DES Leadership Payment,DELEGATED GP,BRADLEY STOKE SURGERY,42006121,"1,679.46"
Department of Health,NHS Bristol N Somerset S Glos ICB,31/08/2022,C&M-PMS Contract Value,DELEGATED GP,BRADLEY STOKE SURGERY,42006121,"100,946.52"
Department of Health,NHS Bristol N Somerset S Glos ICB,31/08/2022,C&M-PMS DES Extended Hours Access,DELEGATED GP,BRADLEY STOKE SURGERY,42006121,"4,337.40"
Department of Health,NHS Bristol N Somerset S Glos ICB,31/08/2022,C&M-PMS LES Anti-coagulation,LOCAL INCENTIVE SCHEMES,BRADLEY STOKE SURGERY,42006121,228.00
Department of Health,NHS Bristol N Somerset S Glos ICB,31/08/2022,C&M-PMS LES Basket of Procedures,LOCAL INCENTIVE SCHEMES,BRADLEY STOKE SURGERY,42006121,"17,947.36"
Department of Health,NHS Bristol N Somerset S Glos ICB,31/08/2022,C&M-PMS LES DVT,LOCAL INCENTIVE SCHEMES,BRADLEY STOKE SURGERY,42006121,13.33
Department of Health,NHS Bristol N Somerset S Glos ICB,31/08/2022,C&M-PMS LES Dementia,LOCAL INCENTIVE SCHEMES,BRADLEY STOKE SURGERY,42006121,252.83
Department of Health,NHS Bristol N Somerset S Glos ICB,31/08/2022,C&M-PMS NES Near Patient Testing,LOCAL INCENTIVE SCHEMES,BRADLEY STOKE SURGERY,42006121,574.17
Department of Health,NHS Bristol N Somerset S Glos ICB,31/08/2022,C&M-PMS PCN DES Clinical Director,DELEGATED GP,BRADLEY STOKE SURGERY,42006121,"2,216.89"
Department of Health,NHS Bristol N Somerset S Glos ICB,31/08/2022,C&M-PMS PCN DES Participation,DELEGATED GP,BRADLEY STOKE SURGERY,42006121,"1,850.86"
Department of Health,NHS Bristol N Somerset S Glos ICB,31/08/2022,C&M-PMS Prem Actual Rent,DELEGATED GP,BRADLEY STOKE SURGERY,42006121,161.49
Department of Health,NHS Bristol N Somerset S Glos ICB,31/08/2022,C&M-PMS Prem Notional Rent,DELEGATED GP,BRADLEY STOKE SURGERY,42006121,"11,798.25"
Department of Health,NHS Bristol N Somerset S Glos ICB,31/08/2022,C&M-PMS QOF Aspiration,DELEGATED GP,BRADLEY STOKE SURGERY,42006121,"10,140.02"
Department of Health,NHS Bristol N Somerset S Glos ICB,31/08/2022,C&M- PCN DES CARE COORDINATOR,DELEGATED GP,BRADLEY STOKE SURGERY,42189526,"1,334.09"
Department of Health,NHS Bristol N Somerset S Glos ICB,31/08/2022,C&M- PCN DES CARE HOME PREMIUM,DELEGATED GP,BRADLEY STOKE SURGERY,42189526,"1,660.00"
Department of Health,NHS Bristol N Somerset S Glos ICB,31/08/2022,C&M- PCN DES Nursing Associate,DELEGATED GP,BRADLEY STOKE SURGERY,42189526,"1,999.14"
Department of Health,NHS Bristol N Somerset S Glos ICB,31/08/2022,C&M-PCN DES PHARMACY TECHNICIANS,DELEGATED GP,BRADLEY STOKE SURGERY,42189526,"3,846.19"
Department of Health,NHS Bristol N Somerset S Glos ICB,31/08/2022,C&M-PCN DES Paramedic Advanced Practitioner,DELEGATED GP,BRADLEY STOKE SURGERY,42189526,"7,523.30"
Department of Health,NHS Bristol N Somerset S Glos ICB,31/08/2022,C&M-PMS LES Care Home/Nursing Home,LOCAL INCENTIVE SCHEMES,BRADLEY STOKE SURGERY,42189526,36.86
Department of Health,NHS Bristol N Somerset S Glos ICB,31/08/2022,C&M-PMS LES Presc Incentive Sch,LOCAL INCENTIVE SCHEMES,BRADLEY STOKE SURGERY,42189526,"18,058.00"
Department of Health,NHS Bristol N Somerset S Glos ICB,31/08/2022,C&M-PMS PCN DES Clin Pharmacist,DELEGATED GP,BRADLEY STOKE SURGERY,42189526,"11,562.53"
Department of Health,NHS Bristol N Somerset S Glos ICB,31/08/2022,C&M-PMS PCN DES Physiotherapist,DELEGATED GP,BRADLEY STOKE SURGERY,42189526,"2,416.00"
Department of Health,NHS Bristol N Somerset S Glos ICB,31/08/2022,C&M-PMS PCN DES Soc Prescribing,DELEGATED GP,BRADLEY STOKE SURGERY,42189526,"3,572.71"
Department of Health,NHS Bristol N Somerset S Glos ICB,31/08/2022,C&M-PMS Prem Notional Rent,DELEGATED GP,BRADLEY STOKE SURGERY,42189526,"4,724.56"
Department of Health,NHS Bristol N Somerset S Glos ICB,31/08/2022,C&M-PMS WEIGHT MANAGEMENT SERVICE,DELEGATED GP,BRADLEY STOKE SURGERY,42189526,218.50
Department of Health,NHS Bristol N Somerset S Glos ICB,31/08/2022,C&M- PCN DES CARE COORDINATOR,DELEGATED GP,BRIDGE VIEW MEDICAL,42189564,"3,441.60"
Department of Health,NHS Bristol N Somerset S Glos ICB,31/08/2022,C&M- PCN DES CARE HOME PREMIUM,DELEGATED GP,BRIDGE VIEW MEDICAL,42189564,"2,870.00"
Department of Health,NHS Bristol N Somerset S Glos ICB,31/08/2022,C&M- PCN DES Nursing Associate,DELEGATED GP,BRIDGE VIEW MEDICAL,42189564,"2,337.70"
Department of Health,NHS Bristol N Somerset S Glos ICB,31/08/2022,C&M-GMS C&M-APMS PCN DES Physician Assoc,DELEGATED GP,BRIDGE VIEW MEDICAL,42189564,"4,496.23"
Department of Health,NHS Bristol N Somerset S Glos ICB,31/08/2022,C&M-GMS DES Extended Hours Access,DELEGATED GP,BRIDGE VIEW MEDICAL,42189564,"4,658.64"
Department of Health,NHS Bristol N Somerset S Glos ICB,31/08/2022,C&M-GMS DES Violent Patients,DELEGATED GP,BRIDGE VIEW MEDICAL,42189564,"7,144.83"
Department of Health,NHS Bristol N Somerset S Glos ICB,31/08/2022,C&M-GMS Global Sum,DELEGATED GP,BRIDGE VIEW MEDICAL,42189564,"291,227.06"
Department of Health,NHS Bristol N Somerset S Glos ICB,31/08/2022,C&M-GMS LES Anti-coagulation,LOCAL INCENTIVE SCHEMES,BRIDGE VIEW MEDICAL,42189564,840.00
Department of Health,NHS Bristol N Somerset S Glos ICB,31/08/2022,C&M-GMS LES Basket of Procedures,LOCAL INCENTIVE SCHEMES,BRIDGE VIEW MEDICAL,42189564,"38,369.97"
Department of Health,NHS Bristol N Somerset S Glos ICB,31/08/2022,C&M-GMS LES Care Home/Nursing Home,LOCAL INCENTIVE SCHEMES,BRIDGE VIEW MEDICAL,42189564,"1,322.35"
Department of Health,NHS Bristol N Somerset S Glos ICB,31/08/2022,C&M-GMS LES DVT,LOCAL INCENTIVE SCHEMES,BRIDGE VIEW MEDICAL,42189564,10.00
Department of Health,NHS Bristol N Somerset S Glos ICB,31/08/2022,C&M-GMS LES Dementia,LOCAL INCENTIVE SCHEMES,BRIDGE VIEW MEDICAL,42189564,867.17
Department of Health,NHS Bristol N Somerset S Glos ICB,31/08/2022,C&M-GMS LES Diabetes-Insulin (GTT),LOCAL INCENTIVE SCHEMES,BRIDGE VIEW MEDICAL,42189564,175.00
Department of Health,NHS Bristol N Somerset S Glos ICB,31/08/2022,C&M-GMS LES Presc Incentive Sch,LOCAL INCENTIVE SCHEMES,BRIDGE VIEW MEDICAL,42189564,"38,629.00"
Department of Health,NHS Bristol N Somerset S Glos ICB,31/08/2022,C&M-GMS NES Near Patient Testing,LOCAL INCENTIVE SCHEMES,BRIDGE VIEW MEDICAL,42189564,"1,464.17"
Department of Health,NHS Bristol N Somerset S Glos ICB,31/08/2022,C&M-GMS PCN DES Clin Pharmacist,DELEGATED GP,BRIDGE VIEW MEDICAL,42189564,"4,776.50"
Department of Health,NHS Bristol N Somerset S Glos ICB,31/08/2022,C&M-GMS PCN DES Clinical Director,DELEGATED GP,BRIDGE VIEW MEDICAL,42189564,"2,381.08"
Department of Health,NHS Bristol N Somerset S Glos ICB,31/08/2022,C&M-GMS PCN DES Participation,DELEGATED GP,BRIDGE VIEW MEDICAL,42189564,"5,518.76"
Department of Health,NHS Bristol N Somerset S Glos ICB,31/08/2022,C&M-GMS PCN DES Physiotherapist,DELEGATED GP,BRIDGE VIEW MEDICAL,42189564,"8,956.92"
Department of Health,NHS Bristol N Somerset S Glos ICB,31/08/2022,C&M-GMS PCN DES Soc Prescribing,DELEGATED GP,BRIDGE VIEW MEDICAL,42189564,"5,499.04"
Department of Health,NHS Bristol N Somerset S Glos ICB,31/08/2022,C&M-GMS PCO Locum Adop/Pat/Mat,DELEGATED GP,BRIDGE VIEW MEDICAL,42189564,"12,529.18"
Department of Health,NHS Bristol N Somerset S Glos ICB,31/08/2022,C&M-GMS Prem Notional Rent,DELEGATED GP,BRIDGE VIEW MEDICAL,42189564,"28,060.10"
Department of Health,NHS Bristol N Somerset S Glos ICB,31/08/2022,C&M-GMS QOF Aspiration,DELEGATED GP,BRIDGE VIEW MEDICAL,42189564,"28,918.16"
Department of Health,NHS Bristol N Somerset S Glos ICB,31/08/2022,C&M-GMS WEIGHT MANAGEMENT SERVICE,DELEGATED GP,BRIDGE VIEW MEDICAL,42189564,"1,230.50"
Department of Health,NHS Bristol N Somerset S Glos ICB,31/08/2022,C&M-PCN DES DIETICIANS,DELEGATED GP,BRIDGE VIEW MEDICAL,42189564,"4,496.23"
Department of Health,NHS Bristol N Somerset S Glos ICB,31/08/2022,C&M-PCN DES PHARMACY TECHNICIANS,DELEGATED GP,BRIDGE VIEW MEDICAL,42189564,"3,035.67"
Department of Health,NHS Bristol N Somerset S Glos ICB,31/08/2022,C&M-PCN DES Paramedic Advanced Practitioner,DELEGATED GP,BRIDGE VIEW MEDICAL,42189564,"7,868.67"
Department of Health,NHS Bristol N Somerset S Glos ICB,31/08/2022,C&M-PCN-GMS DES Leadership Payment,DELEGATED GP,BRIDGE VIEW MEDICAL,42189564,"2,187.23"
Department of Health,NHS Bristol N Somerset S Glos ICB,31/08/2022,ME - GMS GP Prior Year ERs,DELEGATED GP,BRIDGE VIEW MEDICAL,42189564,"4,045.25"
Department of Health,NHS Bristol N Somerset S Glos ICB,31/08/2022,ME-GMS GP Prior Year EEs,DELEGATED GP,BRIDGE VIEW MEDICAL,42189564,"3,516.40"
Department of Health,NHS Bristol N Somerset S Glos ICB,31/08/2022,ME-GMS GP Pension Added Years EEs,DELEGATED GP,BRIDGE VIEW MEDICAL,42189565,"-1,398.79"
Department of Health,NHS Bristol N Somerset S Glos ICB,31/08/2022,ME-GMS GP Pension EEs,DELEGATED GP,BRIDGE VIEW MEDICAL,42189565,"-19,066.11"
Department of Health,NHS Bristol N Somerset S Glos ICB,31/08/2022,ME-GMS GP Pension ERs,DELEGATED GP,BRIDGE VIEW MEDICAL,42189565,"-21,783.64"
Department of Health,NHS Bristol N Somerset S Glos ICB,31/08/2022,Clinical&Medical-Commercial Sector,NHS 111,BRISDOC HEALTHCARE SERVICES LTD,41995134,"92,792.46"
Department of Health,NHS Bristol N Somerset S Glos ICB,31/08/2022,Clinical&Medical-Commercial Sector,NHS 111,BRISDOC HEALTHCARE SERVICES LTD,41995137,"84,562.49"
Department of Health,NHS Bristol N Somerset S Glos ICB,31/08/2022,Clinical&Medical-Commercial Sector,OUT OF HOURS,BRISDOC HEALTHCARE SERVICES LTD,41995144,"820,708.92"
Department of Health,NHS Bristol N Somerset S Glos ICB,31/08/2022,Clinical&Medical-Commercial Sector,OUT OF HOURS,BRISDOC HEALTHCARE SERVICES LTD,42016431,"431,721.02"
Department of Health,NHS Bristol N Somerset S Glos ICB,31/08/2022,Clinical&Medical-Commercial Sector,OUT OF HOURS,BRISDOC HEALTHCARE SERVICES LTD,42040993,"98,485.07"
Department of Health,NHS Bristol N Somerset S Glos ICB,31/08/2022,Clinical&Medical-Commercial Sector,NHS 111,BRISDOC HEALTHCARE SERVICES LTD,42041009,"51,806.52"
Department of Health,NHS Bristol N Somerset S Glos ICB,31/08/2022,Clinical&Medical-Othe Public Sector,SAFEGUARDING,BRISTOL CITY COUNCIL,42225256,"32,660.00"
Department of Health,NHS Bristol N Somerset S Glos ICB,31/08/2022,Clinical&Medical-Othe Public Sector,SAFEGUARDING,BRISTOL CITY COUNCIL,42225280,"43,822.00"
Department of Health,NHS Bristol N Somerset S Glos ICB,31/08/2022,Cont Care- Children,CHILDRENS CONTINUING CARE,BRISTOL CITY COUNCIL,42225393,"245,223.71"
Department of Health,NHS Bristol N Somerset S Glos ICB,31/08/2022,Clinical&Medical-Othe Public Sector,MENTAL HEALTH ACT,BRISTOL CITY COUNCIL,42259418,"2,239,759.00"
Department of Health,NHS Bristol N Somerset S Glos ICB,31/08/2022,Cont Care-Funded Nursing Care Allow,FUNDED NURSING CARE,BRISTOL CITY COUNCIL,42285473,"2,967,334.00"
Department of Health,NHS Bristol N Somerset S Glos ICB,31/08/2022,Clinical&Medical-Voluntary Sector,COMMUNITY SERVICES B,BRITISH RED CROSS SOCIETY,42208056,"95,957.50"
Department of Health,NHS Bristol N Somerset S Glos ICB,31/08/2022,Clinical&Medical-Voluntary Sector,COMMUNITY A NOT BED-BASED NOT PLACEMENTS,BRITISH RED CROSS SOCIETY,42252032,"60,000.00"
Department of Health,NHS Bristol N Somerset S Glos ICB,31/08/2022,C&M-PMS Contract Value,DELEGATED GP,BROADMEAD MEDICAL CENTRE,42025597,"83,689.70"
Department of Health,NHS Bristol N Somerset S Glos ICB,31/08/2022,C&M-PMS LES Anti-coagulation,LOCAL INCENTIVE SCHEMES,BROADMEAD MEDICAL CENTRE,42025597,38.00
Department of Health,NHS Bristol N Somerset S Glos ICB,31/08/2022,C&M-PMS NES Near Patient Testing,LOCAL INCENTIVE SCHEMES,BROADMEAD MEDICAL CENTRE,42025597,171.67
Department of Health,NHS Bristol N Somerset S Glos ICB,31/08/2022,C&M-PMS PCN DES Participation,DELEGATED GP,BROADMEAD MEDICAL CENTRE,42025597,"1,551.83"
Department of Health,NHS Bristol N Somerset S Glos ICB,31/08/2022,C&M-PMS Prem Actual Rent,DELEGATED GP,BROADMEAD MEDICAL CENTRE,42025597,"18,895.93"
Department of Health,NHS Bristol N Somerset S Glos ICB,31/08/2022,C&M-PMS Prem Rates,DELEGATED GP,BROADMEAD MEDICAL CENTRE,42025597,"5,617.83"
Department of Health,NHS Bristol N Somerset S Glos ICB,31/08/2022,C&M-PMS QOF Aspiration,DELEGATED GP,BROADMEAD MEDICAL CENTRE,42025597,"3,700.98"
Department of Health,NHS Bristol N Somerset S Glos ICB,31/08/2022,Clinical&Medical-Commercial Sector,REABLEMENT,BRUNELCARE,42158239,"32,085.00"
Department of Health,NHS Bristol N Somerset S Glos ICB,31/08/2022,Clinical&Medical-Commercial Sector,REABLEMENT,BRUNELCARE,42158251,"42,780.00"
Department of Health,NHS Bristol N Somerset S Glos ICB,31/08/2022,Clinical&Medical-Commercial Sector,REABLEMENT,BRUNELCARE,42285337,"186,318.96"
Department of Health,NHS Bristol N Somerset S Glos ICB,31/08/2022,Clinical&Medical-Commercial Sector,REABLEMENT,BRUNELCARE,42285344,"186,318.96"
Department of Health,NHS Bristol N Somerset S Glos ICB,31/08/2022,C&M-PMS Contract Value,DELEGATED GP,CADBURY HEATH HEALTHCARE,42006132,"85,022.75"
Department of Health,NHS Bristol N Somerset S Glos ICB,31/08/2022,C&M-PMS DES Learn Dsblty Hlth Chk,DELEGATED GP,CADBURY HEATH HEALTHCARE,42006132,"1,260.00"
Department of Health,NHS Bristol N Somerset S Glos ICB,31/08/2022,C&M-PMS LES Anti-coagulation,LOCAL INCENTIVE SCHEMES,CADBURY HEATH HEALTHCARE,42006132,152.00
Department of Health,NHS Bristol N Somerset S Glos ICB,31/08/2022,C&M-PMS LES Basket of Procedures,LOCAL INCENTIVE SCHEMES,CADBURY HEATH HEALTHCARE,42006132,"8,846.53"
Department of Health,NHS Bristol N Somerset S Glos ICB,31/08/2022,C&M-PMS LES DVT,LOCAL INCENTIVE SCHEMES,CADBURY HEATH HEALTHCARE,42006132,133.33
Department of Health,NHS Bristol N Somerset S Glos ICB,31/08/2022,C&M-PMS LES Dementia,LOCAL INCENTIVE SCHEMES,CADBURY HEATH HEALTHCARE,42006132,869.83
Department of Health,NHS Bristol N Somerset S Glos ICB,31/08/2022,C&M-PMS NES Near Patient Testing,LOCAL INCENTIVE SCHEMES,CADBURY HEATH HEALTHCARE,42006132,735.83
Department of Health,NHS Bristol N Somerset S Glos ICB,31/08/2022,C&M-PMS PCN DES Participation,DELEGATED GP,CADBURY HEATH HEALTHCARE,42006132,"1,525.59"
Department of Health,NHS Bristol N Somerset S Glos ICB,31/08/2022,C&M-PMS QOF Aspiration,DELEGATED GP,CADBURY HEATH HEALTHCARE,42006132,"10,133.48"
Department of Health,NHS Bristol N Somerset S Glos ICB,31/08/2022,C&M-PMS WEIGHT MANAGEMENT SERVICE,DELEGATED GP,CADBURY HEATH HEALTHCARE,42006132,264.50
Department of Health,NHS Bristol N Somerset S Glos ICB,31/08/2022,Clinical&Medical-Commercial Sector,REABLEMENT,CEDAR CARE HOMES LTD,41925650,"106,950.00"
Department of Health,NHS Bristol N Somerset S Glos ICB,31/08/2022,C&M-PMS Contract Value,DELEGATED GP,CEDARS SURGERY WESTON MARE,42006157,"128,914.09"
Department of Health,NHS Bristol N Somerset S Glos ICB,31/08/2022,C&M-PMS LES Anti-coagulation,LOCAL INCENTIVE SCHEMES,CEDARS SURGERY WESTON MARE,42006157,973.33
Department of Health,NHS Bristol N Somerset S Glos ICB,31/08/2022,C&M-PMS LES Basket of Procedures,LOCAL INCENTIVE SCHEMES,CEDARS SURGERY WESTON MARE,42006157,"6,517.66"
Department of Health,NHS Bristol N Somerset S Glos ICB,31/08/2022,C&M-PMS LES Dementia,LOCAL INCENTIVE SCHEMES,CEDARS SURGERY WESTON MARE,42006157,"1,117.33"
Department of Health,NHS Bristol N Somerset S Glos ICB,31/08/2022,C&M-PMS NES Near Patient Testing,LOCAL INCENTIVE SCHEMES,CEDARS SURGERY WESTON MARE,42006157,893.33
Department of Health,NHS Bristol N Somerset S Glos ICB,31/08/2022,C&M-PMS PCN DES Participation,DELEGATED GP,CEDARS SURGERY WESTON MARE,42006157,"2,354.66"
Department of Health,NHS Bristol N Somerset S Glos ICB,31/08/2022,C&M-PMS Prem Notional Rent,DELEGATED GP,CEDARS SURGERY WESTON MARE,42006157,"3,950.00"
Department of Health,NHS Bristol N Somerset S Glos ICB,31/08/2022,C&M-PMS QOF Aspiration,DELEGATED GP,CEDARS SURGERY WESTON MARE,42006157,"16,305.01"
Department of Health,NHS Bristol N Somerset S Glos ICB,31/08/2022,ME - PMS GP Prior Year ERs,DELEGATED GP,CEDARS SURGERY WESTON MARE,42006157,"6,524.98"
Department of Health,NHS Bristol N Somerset S Glos ICB,31/08/2022,ME-PMS GP Pension EEs-PMS,DELEGATED GP,CEDARS SURGERY WESTON MARE,42006157,"2,045.33"
Department of Health,NHS Bristol N Somerset S Glos ICB,31/08/2022,ME-PMS GP Pension ERs-PMS,DELEGATED GP,CEDARS SURGERY WESTON MARE,42006157,"2,352.95"
Department of Health,NHS Bristol N Somerset S Glos ICB,31/08/2022,ME-PMS GP Prior Year EEs,DELEGATED GP,CEDARS SURGERY WESTON MARE,42006157,"5,671.91"
Department of Health,NHS Bristol N Somerset S Glos ICB,31/08/2022,Clinical&Medical-Voluntary Sector,COMMUNITY A NOT BED-BASED NOT PLACEMENTS,CHANGES BRISTOL LTD,42251999,"62,204.00"
Department of Health,NHS Bristol N Somerset S Glos ICB,31/08/2022,C&M-APMS LES Anti-coagulation,LOCAL INCENTIVE SCHEMES,CHARLOTTE KEEL MEDICAL PRACTICE,42006063,85.50
Department of Health,NHS Bristol N Somerset S Glos ICB,31/08/2022,C&M-APMS LES Basket of Procedures,LOCAL INCENTIVE SCHEMES,CHARLOTTE KEEL MEDICAL PRACTICE,42006063,"16,581.44"
Department of Health,NHS Bristol N Somerset S Glos ICB,31/08/2022,C&M-APMS LES DVT,LOCAL INCENTIVE SCHEMES,CHARLOTTE KEEL MEDICAL PRACTICE,42006063,106.67
Department of Health,NHS Bristol N Somerset S Glos ICB,31/08/2022,C&M-APMS LES Dementia,LOCAL INCENTIVE SCHEMES,CHARLOTTE KEEL MEDICAL PRACTICE,42006063,262.58
Department of Health,NHS Bristol N Somerset S Glos ICB,31/08/2022,C&M-APMS LES Diabetes-Insulin (GTT),LOCAL INCENTIVE SCHEMES,CHARLOTTE KEEL MEDICAL PRACTICE,42006063,58.33
Department of Health,NHS Bristol N Somerset S Glos ICB,31/08/2022,C&M-APMS List Size Adjustment,DELEGATED GP,CHARLOTTE KEEL MEDICAL PRACTICE,42006063,"155,763.22"
Department of Health,NHS Bristol N Somerset S Glos ICB,31/08/2022,C&M-APMS NES Near Patient Testing,LOCAL INCENTIVE SCHEMES,CHARLOTTE KEEL MEDICAL PRACTICE,42006063,377.50
Department of Health,NHS Bristol N Somerset S Glos ICB,31/08/2022,C&M-APMS PCN DES Participation,DELEGATED GP,CHARLOTTE KEEL MEDICAL PRACTICE,42006063,"2,761.08"
Department of Health,NHS Bristol N Somerset S Glos ICB,31/08/2022,C&M-APMS QOF Aspiration,DELEGATED GP,CHARLOTTE KEEL MEDICAL PRACTICE,42006063,"11,839.80"
Department of Health,NHS Bristol N Somerset S Glos ICB,31/08/2022,C&M-PMS Contract Value,DELEGATED GP,CLEVEDON RIVERSIDE GROUP,42006145,"130,889.96"
Department of Health,NHS Bristol N Somerset S Glos ICB,31/08/2022,C&M-PMS LES Anti-coagulation,LOCAL INCENTIVE SCHEMES,CLEVEDON RIVERSIDE GROUP,42006145,800.00
Department of Health,NHS Bristol N Somerset S Glos ICB,31/08/2022,C&M-PMS LES Basket of Procedures,LOCAL INCENTIVE SCHEMES,CLEVEDON RIVERSIDE GROUP,42006145,"6,775.42"
Department of Health,NHS Bristol N Somerset S Glos ICB,31/08/2022,C&M-PMS LES DVT,LOCAL INCENTIVE SCHEMES,CLEVEDON RIVERSIDE GROUP,42006145,116.67
Department of Health,NHS Bristol N Somerset S Glos ICB,31/08/2022,C&M-PMS LES Dementia,LOCAL INCENTIVE SCHEMES,CLEVEDON RIVERSIDE GROUP,42006145,560.67
Department of Health,NHS Bristol N Somerset S Glos ICB,31/08/2022,C&M-PMS NES Near Patient Testing,LOCAL INCENTIVE SCHEMES,CLEVEDON RIVERSIDE GROUP,42006145,999.17
Department of Health,NHS Bristol N Somerset S Glos ICB,31/08/2022,C&M-PMS PCN DES Participation,DELEGATED GP,CLEVEDON RIVERSIDE GROUP,42006145,"2,373.85"
Department of Health,NHS Bristol N Somerset S Glos ICB,31/08/2022,C&M-PMS Prem Notional Rent,DELEGATED GP,CLEVEDON RIVERSIDE GROUP,42006145,"17,588.92"
Department of Health,NHS Bristol N Somerset S Glos ICB,31/08/2022,C&M-PMS QOF Aspiration,DELEGATED GP,CLEVEDON RIVERSIDE GROUP,42006145,"16,304.04"
Department of Health,NHS Bristol N Somerset S Glos ICB,31/08/2022,C&M-PMS LES Care Home/Nursing Home,LOCAL INCENTIVE SCHEMES,CLEVEDON RIVERSIDE GROUP,42189542,"1,557.34"
Department of Health,NHS Bristol N Somerset S Glos ICB,31/08/2022,C&M-PMS LES Presc Incentive Sch,LOCAL INCENTIVE SCHEMES,CLEVEDON RIVERSIDE GROUP,42189542,"16,229.00"
Department of Health,NHS Bristol N Somerset S Glos ICB,31/08/2022,C&M-PMS PCO Locum Adop/Pat/Mat,DELEGATED GP,CLEVEDON RIVERSIDE GROUP,42189542,"11,969.38"
Department of Health,NHS Bristol N Somerset S Glos ICB,31/08/2022,C&M-PMS Contract Value,DELEGATED GP,CLOSE FARM SURGERY,42006130,"51,022.74"
Department of Health,NHS Bristol N Somerset S Glos ICB,31/08/2022,C&M-PMS LES Anti-coagulation,LOCAL INCENTIVE SCHEMES,CLOSE FARM SURGERY,42006130,66.50
Department of Health,NHS Bristol N Somerset S Glos ICB,31/08/2022,C&M-PMS LES Basket of Procedures,LOCAL INCENTIVE SCHEMES,CLOSE FARM SURGERY,42006130,"5,380.69"
Department of Health,NHS Bristol N Somerset S Glos ICB,31/08/2022,C&M-PMS LES DVT,LOCAL INCENTIVE SCHEMES,CLOSE FARM SURGERY,42006130,80.00
Department of Health,NHS Bristol N Somerset S Glos ICB,31/08/2022,C&M-PMS LES Dementia,LOCAL INCENTIVE SCHEMES,CLOSE FARM SURGERY,42006130,196.50
Department of Health,NHS Bristol N Somerset S Glos ICB,31/08/2022,C&M-PMS NES Near Patient Testing,LOCAL INCENTIVE SCHEMES,CLOSE FARM SURGERY,42006130,360.00
Department of Health,NHS Bristol N Somerset S Glos ICB,31/08/2022,C&M-PMS PCN DES Participation,DELEGATED GP,CLOSE FARM SURGERY,42006130,939.77
Department of Health,NHS Bristol N Somerset S Glos ICB,31/08/2022,C&M-PMS Prem Notional Rent,DELEGATED GP,CLOSE FARM SURGERY,42006130,"4,083.27"
Department of Health,NHS Bristol N Somerset S Glos ICB,31/08/2022,C&M-PMS Prem Water Rates,DELEGATED GP,CLOSE FARM SURGERY,42006130,291.08
Department of Health,NHS Bristol N Somerset S Glos ICB,31/08/2022,C&M-PMS QOF Aspiration,DELEGATED GP,CLOSE FARM SURGERY,42006130,"6,428.03"
Department of Health,NHS Bristol N Somerset S Glos ICB,31/08/2022,Rent,PROGRAMME ESTATES & FACILITIES COSTS,COMMUNITY HEALTH PARTNERSHIPS LTD,41915889,"94,959.13"
Department of Health,NHS Bristol N Somerset S Glos ICB,31/08/2022,Rent,PROGRAMME ESTATES & FACILITIES COSTS,COMMUNITY HEALTH PARTNERSHIPS LTD,41915894,"94,959.13"
Department of Health,NHS Bristol N Somerset S Glos ICB,31/08/2022,Cont Care- Adult 100% Fully Funded,CHC ADULT FULLY FUNDED,COMMUNITY THERAPEUTIC SERVICES LTD,41950940,"31,534.13"
Department of Health,NHS Bristol N Somerset S Glos ICB,31/08/2022,Cont Care- Adult 100% Fully Funded,CHC ADULT FULLY FUNDED,COMMUNITY THERAPEUTIC SERVICES LTD,41950980,"26,611.64"
Department of Health,NHS Bristol N Somerset S Glos ICB,31/08/2022,C&M-APMS Contract Value,DELEGATED GP,COMPASS HEALTH,42006136,"41,666.67"
Department of Health,NHS Bristol N Somerset S Glos ICB,31/08/2022,C&M-PMS Contract Value,DELEGATED GP,CONCORD MEDICAL CENTRE,42006138,"113,396.63"
Department of Health,NHS Bristol N Somerset S Glos ICB,31/08/2022,C&M-PMS LES Anti-coagulation,LOCAL INCENTIVE SCHEMES,CONCORD MEDICAL CENTRE,42006138,147.25
Department of Health,NHS Bristol N Somerset S Glos ICB,31/08/2022,C&M-PMS LES Basket of Procedures,LOCAL INCENTIVE SCHEMES,CONCORD MEDICAL CENTRE,42006138,"11,541.09"
Department of Health,NHS Bristol N Somerset S Glos ICB,31/08/2022,C&M-PMS LES Dementia,LOCAL INCENTIVE SCHEMES,CONCORD MEDICAL CENTRE,42006138,239.08
Department of Health,NHS Bristol N Somerset S Glos ICB,31/08/2022,C&M-PMS LES Diabetes-Insulin (GTT),LOCAL INCENTIVE SCHEMES,CONCORD MEDICAL CENTRE,42006138,58.33
Department of Health,NHS Bristol N Somerset S Glos ICB,31/08/2022,C&M-PMS NES Near Patient Testing,LOCAL INCENTIVE SCHEMES,CONCORD MEDICAL CENTRE,42006138,721.67
Department of Health,NHS Bristol N Somerset S Glos ICB,31/08/2022,C&M-PMS PCN DES Participation,DELEGATED GP,CONCORD MEDICAL CENTRE,42006138,"2,023.23"
Department of Health,NHS Bristol N Somerset S Glos ICB,31/08/2022,C&M-PMS Prem Notional Rent,DELEGATED GP,CONCORD MEDICAL CENTRE,42006138,"22,333.58"
Department of Health,NHS Bristol N Somerset S Glos ICB,31/08/2022,C&M-PMS QOF Aspiration,DELEGATED GP,CONCORD MEDICAL CENTRE,42006138,"11,311.89"
Department of Health,NHS Bristol N Somerset S Glos ICB,31/08/2022,C&M-PMS DES Minor Surgery,DELEGATED GP,CONCORD MEDICAL CENTRE,42189534,"5,497.48"
Department of Health,NHS Bristol N Somerset S Glos ICB,31/08/2022,C&M-PMS LES Care Home/Nursing Home,LOCAL INCENTIVE SCHEMES,CONCORD MEDICAL CENTRE,42189534,87.54
Department of Health,NHS Bristol N Somerset S Glos ICB,31/08/2022,C&M-PMS LES Presc Incentive Sch,LOCAL INCENTIVE SCHEMES,CONCORD MEDICAL CENTRE,42189534,"16,286.00"
Department of Health,NHS Bristol N Somerset S Glos ICB,31/08/2022,C&M-PMS PCO Doctors Ret Scheme,DELEGATED GP,CONCORD MEDICAL CENTRE,42189534,"3,692.16"
Department of Health,NHS Bristol N Somerset S Glos ICB,31/08/2022,C&M-PMS WEIGHT MANAGEMENT SERVICE,DELEGATED GP,CONCORD MEDICAL CENTRE,42189534,195.50
Department of Health,NHS Bristol N Somerset S Glos ICB,31/08/2022,C&M-PCN-PMS DES Leadership Payment,DELEGATED GP,CONISTON MEDICAL PRACTICE BRISTOL,42006140,"1,825.26"
Department of Health,NHS Bristol N Somerset S Glos ICB,31/08/2022,C&M-PMS Contract Value,DELEGATED GP,CONISTON MEDICAL PRACTICE BRISTOL,42006140,"67,976.14"
Department of Health,NHS Bristol N Somerset S Glos ICB,31/08/2022,C&M-PMS DES Extended Hours Access,DELEGATED GP,CONISTON MEDICAL PRACTICE BRISTOL,42006140,"4,099.68"
Department of Health,NHS Bristol N Somerset S Glos ICB,31/08/2022,C&M-PMS LES Anti-coagulation,LOCAL INCENTIVE SCHEMES,CONISTON MEDICAL PRACTICE BRISTOL,42006140,346.67
Department of Health,NHS Bristol N Somerset S Glos ICB,31/08/2022,C&M-PMS LES Basket of Procedures,LOCAL INCENTIVE SCHEMES,CONISTON MEDICAL PRACTICE BRISTOL,42006140,"11,831.89"
Department of Health,NHS Bristol N Somerset S Glos ICB,31/08/2022,C&M-PMS LES DVT,LOCAL INCENTIVE SCHEMES,CONISTON MEDICAL PRACTICE BRISTOL,42006140,53.33
Department of Health,NHS Bristol N Somerset S Glos ICB,31/08/2022,C&M-PMS LES Dementia,LOCAL INCENTIVE SCHEMES,CONISTON MEDICAL PRACTICE BRISTOL,42006140,167.67
Department of Health,NHS Bristol N Somerset S Glos ICB,31/08/2022,C&M-PMS LES Diabetes-Insulin (GTT),LOCAL INCENTIVE SCHEMES,CONISTON MEDICAL PRACTICE BRISTOL,42006140,58.33
Department of Health,NHS Bristol N Somerset S Glos ICB,31/08/2022,C&M-PMS NES Near Patient Testing,LOCAL INCENTIVE SCHEMES,CONISTON MEDICAL PRACTICE BRISTOL,42006140,410.83
Department of Health,NHS Bristol N Somerset S Glos ICB,31/08/2022,C&M-PMS PCN DES Clinical Director,DELEGATED GP,CONISTON MEDICAL PRACTICE BRISTOL,42006140,"2,095.39"
Department of Health,NHS Bristol N Somerset S Glos ICB,31/08/2022,C&M-PMS PCN DES Participation,DELEGATED GP,CONISTON MEDICAL PRACTICE BRISTOL,42006140,"1,255.96"
Department of Health,NHS Bristol N Somerset S Glos ICB,31/08/2022,C&M-PMS Prem Notional Rent,DELEGATED GP,CONISTON MEDICAL PRACTICE BRISTOL,42006140,"4,270.83"
Department of Health,NHS Bristol N Somerset S Glos ICB,31/08/2022,C&M-PMS QOF Aspiration,DELEGATED GP,CONISTON MEDICAL PRACTICE BRISTOL,42006140,"7,427.30"
Department of Health,NHS Bristol N Somerset S Glos ICB,31/08/2022,Cont Care- Adult 100% Fully Funded,CHC ADULT FULLY FUNDED,CORRAN SUPPORT LTD,42177172,"29,082.22"
Department of Health,NHS Bristol N Somerset S Glos ICB,31/08/2022,C&M-PMS Contract Value,DELEGATED GP,COURTSIDE SURGERY,42006144,"110,463.09"
Department of Health,NHS Bristol N Somerset S Glos ICB,31/08/2022,C&M-PMS LES Anti-coagulation,LOCAL INCENTIVE SCHEMES,COURTSIDE SURGERY,42006144,185.25
Department of Health,NHS Bristol N Somerset S Glos ICB,31/08/2022,C&M-PMS LES Basket of Procedures,LOCAL INCENTIVE SCHEMES,COURTSIDE SURGERY,42006144,"10,980.58"
Department of Health,NHS Bristol N Somerset S Glos ICB,31/08/2022,C&M-PMS LES DVT,LOCAL INCENTIVE SCHEMES,COURTSIDE SURGERY,42006144,173.33
Department of Health,NHS Bristol N Somerset S Glos ICB,31/08/2022,C&M-PMS LES Dementia,LOCAL INCENTIVE SCHEMES,COURTSIDE SURGERY,42006144,334.00
Department of Health,NHS Bristol N Somerset S Glos ICB,31/08/2022,C&M-PMS LES Diabetes-Insulin (GTT),LOCAL INCENTIVE SCHEMES,COURTSIDE SURGERY,42006144,175.00
Department of Health,NHS Bristol N Somerset S Glos ICB,31/08/2022,C&M-PMS NES Near Patient Testing,LOCAL INCENTIVE SCHEMES,COURTSIDE SURGERY,42006144,822.50
Department of Health,NHS Bristol N Somerset S Glos ICB,31/08/2022,C&M-PMS PCN DES Participation,DELEGATED GP,COURTSIDE SURGERY,42006144,"1,994.92"
Department of Health,NHS Bristol N Somerset S Glos ICB,31/08/2022,C&M-PMS Prem Notional Rent,DELEGATED GP,COURTSIDE SURGERY,42006144,"12,725.00"
Department of Health,NHS Bristol N Somerset S Glos ICB,31/08/2022,C&M-PMS Prem Water Rates,DELEGATED GP,COURTSIDE SURGERY,42006144,711.07
Department of Health,NHS Bristol N Somerset S Glos ICB,31/08/2022,C&M-PMS QOF Aspiration,DELEGATED GP,COURTSIDE SURGERY,42006144,"13,786.45"
Department of Health,NHS Bristol N Somerset S Glos ICB,31/08/2022,ME - PMS GP Prior Year ERs,DELEGATED GP,COURTSIDE SURGERY,42025599,"-7,112.91"
Department of Health,NHS Bristol N Somerset S Glos ICB,31/08/2022,ME-PMS GP Pension Added Years EEs,DELEGATED GP,COURTSIDE SURGERY,42025599,-656.96
Department of Health,NHS Bristol N Somerset S Glos ICB,31/08/2022,ME-PMS GP Pension EEs-PMS,DELEGATED GP,COURTSIDE SURGERY,42025599,"-6,053.03"
Department of Health,NHS Bristol N Somerset S Glos ICB,31/08/2022,ME-PMS GP Pension ERs-PMS,DELEGATED GP,COURTSIDE SURGERY,42025599,"-6,896.72"
Department of Health,NHS Bristol N Somerset S Glos ICB,31/08/2022,ME-PMS GP Prior Year AVCs,DELEGATED GP,COURTSIDE SURGERY,42025599,"-1,977.95"
Department of Health,NHS Bristol N Somerset S Glos ICB,31/08/2022,ME-PMS GP Prior Year EEs,DELEGATED GP,COURTSIDE SURGERY,42025599,"-8,315.63"
Department of Health,NHS Bristol N Somerset S Glos ICB,31/08/2022,Clinical&Medical-Commercial Sector,REABLEMENT,CRAIGDALE CARE LTD,42016374,"45,802.50"
Department of Health,NHS Bristol N Somerset S Glos ICB,31/08/2022,C&M-PCN-PMS DES Leadership Payment,DELEGATED GP,CREST FAMILY PRACTICE,42006161,"4,891.60"
Department of Health,NHS Bristol N Somerset S Glos ICB,31/08/2022,C&M-PMS Contract Value,DELEGATED GP,CREST FAMILY PRACTICE,42006161,"51,586.74"
Department of Health,NHS Bristol N Somerset S Glos ICB,31/08/2022,C&M-PMS DES Extended Hours Access,DELEGATED GP,CREST FAMILY PRACTICE,42006161,"9,311.76"
Department of Health,NHS Bristol N Somerset S Glos ICB,31/08/2022,C&M-PMS LES Anti-coagulation,LOCAL INCENTIVE SCHEMES,CREST FAMILY PRACTICE,42006161,57.00
Department of Health,NHS Bristol N Somerset S Glos ICB,31/08/2022,C&M-PMS LES Basket of Procedures,LOCAL INCENTIVE SCHEMES,CREST FAMILY PRACTICE,42006161,"15,600.63"
Department of Health,NHS Bristol N Somerset S Glos ICB,31/08/2022,C&M-PMS LES Dementia,LOCAL INCENTIVE SCHEMES,CREST FAMILY PRACTICE,42006161,239.08
Department of Health,NHS Bristol N Somerset S Glos ICB,31/08/2022,C&M-PMS NES Near Patient Testing,LOCAL INCENTIVE SCHEMES,CREST FAMILY PRACTICE,42006161,275.00
Department of Health,NHS Bristol N Somerset S Glos ICB,31/08/2022,C&M-PMS PCN DES Clinical Director,DELEGATED GP,CREST FAMILY PRACTICE,42006161,"4,759.35"
Department of Health,NHS Bristol N Somerset S Glos ICB,31/08/2022,C&M-PMS PCN DES Participation,DELEGATED GP,CREST FAMILY PRACTICE,42006161,944.32
Department of Health,NHS Bristol N Somerset S Glos ICB,31/08/2022,C&M-PMS QOF Aspiration,DELEGATED GP,CREST FAMILY PRACTICE,42006161,"4,464.23"
Department of Health,NHS Bristol N Somerset S Glos ICB,31/08/2022,C&M- PCN DES CARE COORDINATOR,DELEGATED GP,CREST FAMILY PRACTICE,42189550,"2,498.92"
Department of Health,NHS Bristol N Somerset S Glos ICB,31/08/2022,C&M- PCN DES CARE HOME PREMIUM,DELEGATED GP,CREST FAMILY PRACTICE,42189550,"3,170.00"
Department of Health,NHS Bristol N Somerset S Glos ICB,31/08/2022,C&M-PCN DES HEALTH AND WELLBEING COACH,DELEGATED GP,CREST FAMILY PRACTICE,42189550,"14,889.53"
Department of Health,NHS Bristol N Somerset S Glos ICB,31/08/2022,C&M-PCN DES PHARMACY TECHNICIANS,DELEGATED GP,CREST FAMILY PRACTICE,42189550,"8,607.55"
Department of Health,NHS Bristol N Somerset S Glos ICB,31/08/2022,C&M-PCN DES Paramedic Advanced Practitioner,DELEGATED GP,CREST FAMILY PRACTICE,42189550,"19,620.24"
Department of Health,NHS Bristol N Somerset S Glos ICB,31/08/2022,C&M-PCN DES Trainee Nursing Associate,DELEGATED GP,CREST FAMILY PRACTICE,42189550,"4,297.02"
Department of Health,NHS Bristol N Somerset S Glos ICB,31/08/2022,C&M-PMS LES Presc Incentive Sch,LOCAL INCENTIVE SCHEMES,CREST FAMILY PRACTICE,42189550,"6,815.00"
Department of Health,NHS Bristol N Somerset S Glos ICB,31/08/2022,C&M-PMS PCN DES Clin Pharmacist,DELEGATED GP,CREST FAMILY PRACTICE,42189550,"35,468.87"
Department of Health,NHS Bristol N Somerset S Glos ICB,31/08/2022,C&M-PMS PCN DES Physiotherapist,DELEGATED GP,CREST FAMILY PRACTICE,42189550,"9,557.79"
Department of Health,NHS Bristol N Somerset S Glos ICB,31/08/2022,C&M-PMS PCN DES Soc Prescribing,DELEGATED GP,CREST FAMILY PRACTICE,42189550,"6,031.87"
Department of Health,NHS Bristol N Somerset S Glos ICB,31/08/2022,C&M-PMS PCO Doctors Ret Scheme,DELEGATED GP,CREST FAMILY PRACTICE,42189550,923.04
Department of Health,NHS Bristol N Somerset S Glos ICB,31/08/2022,C&M-PMS WEIGHT MANAGEMENT SERVICE,DELEGATED GP,CREST FAMILY PRACTICE,42189550,103.50
Department of Health,NHS Bristol N Somerset S Glos ICB,31/08/2022,Clinical&Medical-Commercial Sector,MENTAL HEALTH ACT,CYGNET (DH) LTD,42040577,"39,765.60"
Department of Health,NHS Bristol N Somerset S Glos ICB,31/08/2022,Clinical&Medical-Commercial Sector,MENTAL HEALTH ACT,CYGNET (DH) LTD,42102575,"58,860.00"
Department of Health,NHS Bristol N Somerset S Glos ICB,31/08/2022,Clinical&Medical-Commercial Sector,MENTAL HEALTH ACT,CYGNET (DH) LTD,42285326,"76,845.00"
Department of Health,NHS Bristol N Somerset S Glos ICB,31/08/2022,legal fees,CORPORATE COSTS & SERVICES,DAC BEACHCROFT LLP,42123645,"29,624.98"
Department of Health,NHS Bristol N Somerset S Glos ICB,31/08/2022,Computer Hardware Purch,GP-IT PROGRAMME,DELL CORPORATION LTD,42102277,"51,250.00"
Department of Health,NHS Bristol N Somerset S Glos ICB,31/08/2022,Computer Hardware Purch,GP-IT PROGRAMME,DELL CORPORATION LTD,42102277,"10,250.00"
Department of Health,NHS Bristol N Somerset S Glos ICB,31/08/2022,Computer Hardware Purch,GP-IT PROGRAMME,DELL CORPORATION LTD,42196145,"25,625.00"
Department of Health,NHS Bristol N Somerset S Glos ICB,31/08/2022,Computer Hardware Purch,GP-IT PROGRAMME,DELL CORPORATION LTD,42196145,"5,125.00"
Department of Health,NHS Bristol N Somerset S Glos ICB,31/08/2022,Hcare Srv Rec NHS Trust-Contract Baseline,DEMENTIA,DEVON PARTNERSHIP NHS TRUST,42027837,"443,681.48"
Department of Health,NHS Bristol N Somerset S Glos ICB,31/08/2022,C&M-PMS Contract Value,DELEGATED GP,DOWNEND HEALTH GROUP,42006142,"201,416.45"
Department of Health,NHS Bristol N Somerset S Glos ICB,31/08/2022,C&M-PMS DES Learn Dsblty Hlth Chk,DELEGATED GP,DOWNEND HEALTH GROUP,42006142,"1,820.00"
Department of Health,NHS Bristol N Somerset S Glos ICB,31/08/2022,C&M-PMS LES Anti-coagulation,LOCAL INCENTIVE SCHEMES,DOWNEND HEALTH GROUP,42006142,403.75
Department of Health,NHS Bristol N Somerset S Glos ICB,31/08/2022,C&M-PMS LES Basket of Procedures,LOCAL INCENTIVE SCHEMES,DOWNEND HEALTH GROUP,42006142,"20,052.91"
Department of Health,NHS Bristol N Somerset S Glos ICB,31/08/2022,C&M-PMS LES DVT,LOCAL INCENTIVE SCHEMES,DOWNEND HEALTH GROUP,42006142,93.33
Department of Health,NHS Bristol N Somerset S Glos ICB,31/08/2022,C&M-PMS LES Dementia,LOCAL INCENTIVE SCHEMES,DOWNEND HEALTH GROUP,42006142,"1,277.92"
Department of Health,NHS Bristol N Somerset S Glos ICB,31/08/2022,C&M-PMS LES Diabetes-Insulin (GTT),LOCAL INCENTIVE SCHEMES,DOWNEND HEALTH GROUP,42006142,116.67
Department of Health,NHS Bristol N Somerset S Glos ICB,31/08/2022,C&M-PMS NES Near Patient Testing,LOCAL INCENTIVE SCHEMES,DOWNEND HEALTH GROUP,42006142,"1,350.00"
Department of Health,NHS Bristol N Somerset S Glos ICB,31/08/2022,C&M-PMS PCN DES Participation,DELEGATED GP,DOWNEND HEALTH GROUP,42006142,"3,655.34"
Department of Health,NHS Bristol N Somerset S Glos ICB,31/08/2022,C&M-PMS Prem Notional Rent,DELEGATED GP,DOWNEND HEALTH GROUP,42006142,"28,857.81"
Department of Health,NHS Bristol N Somerset S Glos ICB,31/08/2022,C&M-PMS Prem Water Rates,DELEGATED GP,DOWNEND HEALTH GROUP,42006142,148.14
Department of Health,NHS Bristol N Somerset S Glos ICB,31/08/2022,C&M-PMS QOF Aspiration,DELEGATED GP,DOWNEND HEALTH GROUP,42006142,"26,298.24"
Department of Health,NHS Bristol N Somerset S Glos ICB,31/08/2022,C&M-PMS WEIGHT MANAGEMENT SERVICE,DELEGATED GP,DOWNEND HEALTH GROUP,42006142,506.00
Department of Health,NHS Bristol N Somerset S Glos ICB,31/08/2022,ME - PMS GP Prior Year ERs,DELEGATED GP,DOWNEND HEALTH GROUP,42006142,"2,388.67"
Department of Health,NHS Bristol N Somerset S Glos ICB,31/08/2022,ME-PMS GP Prior Year AVCs,DELEGATED GP,DOWNEND HEALTH GROUP,42006142,"1,479.59"
Department of Health,NHS Bristol N Somerset S Glos ICB,31/08/2022,ME-PMS GP Prior Year EEs,DELEGATED GP,DOWNEND HEALTH GROUP,42006142,"2,639.68"
Department of Health,NHS Bristol N Somerset S Glos ICB,31/08/2022,ME - PMS GP Prior Year ERs,DELEGATED GP,DOWNEND HEALTH GROUP,42006143,"-6,347.84"
Department of Health,NHS Bristol N Somerset S Glos ICB,31/08/2022,ME-PMS GP Pension EEs-PMS,DELEGATED GP,DOWNEND HEALTH GROUP,42006143,"-13,941.77"
Department of Health,NHS Bristol N Somerset S Glos ICB,31/08/2022,ME-PMS GP Pension ERs-PMS,DELEGATED GP,DOWNEND HEALTH GROUP,42006143,"-15,350.13"
Department of Health,NHS Bristol N Somerset S Glos ICB,31/08/2022,ME-PMS GP Prior Year EEs,DELEGATED GP,DOWNEND HEALTH GROUP,42006143,"-5,821.07"
Department of Health,NHS Bristol N Somerset S Glos ICB,31/08/2022,C&M-PMS LES Care Home/Nursing Home,LOCAL INCENTIVE SCHEMES,DOWNEND HEALTH GROUP,42189536,"1,340.78"
Department of Health,NHS Bristol N Somerset S Glos ICB,31/08/2022,C&M-PMS LES Presc Incentive Sch,LOCAL INCENTIVE SCHEMES,DOWNEND HEALTH GROUP,42189536,"27,046.00"
Department of Health,NHS Bristol N Somerset S Glos ICB,31/08/2022,C&M-PMS PCO Doctors Ret Scheme,DELEGATED GP,DOWNEND HEALTH GROUP,42189536,923.04
Department of Health,NHS Bristol N Somerset S Glos ICB,31/08/2022,C&M-PCN-PMS DES Leadership Payment,DELEGATED GP,DR BURNHAM & PARTNERS,42006168,"1,812.91"
Department of Health,NHS Bristol N Somerset S Glos ICB,31/08/2022,C&M-PMS Contract Value,DELEGATED GP,DR BURNHAM & PARTNERS,42006168,"73,506.84"
Department of Health,NHS Bristol N Somerset S Glos ICB,31/08/2022,C&M-PMS DES Extended Hours Access,DELEGATED GP,DR BURNHAM & PARTNERS,42006168,"3,926.52"
Department of Health,NHS Bristol N Somerset S Glos ICB,31/08/2022,C&M-PMS LES Anti-coagulation,LOCAL INCENTIVE SCHEMES,DR BURNHAM & PARTNERS,42006168,213.75
Department of Health,NHS Bristol N Somerset S Glos ICB,31/08/2022,C&M-PMS LES Basket of Procedures,LOCAL INCENTIVE SCHEMES,DR BURNHAM & PARTNERS,42006168,"10,432.42"
Department of Health,NHS Bristol N Somerset S Glos ICB,31/08/2022,C&M-PMS LES DVT,LOCAL INCENTIVE SCHEMES,DR BURNHAM & PARTNERS,42006168,120.00
Department of Health,NHS Bristol N Somerset S Glos ICB,31/08/2022,C&M-PMS LES Dementia,LOCAL INCENTIVE SCHEMES,DR BURNHAM & PARTNERS,42006168,364.17
Department of Health,NHS Bristol N Somerset S Glos ICB,31/08/2022,C&M-PMS LES Diabetes-Insulin (GTT),LOCAL INCENTIVE SCHEMES,DR BURNHAM & PARTNERS,42006168,58.33
Department of Health,NHS Bristol N Somerset S Glos ICB,31/08/2022,C&M-PMS NES Near Patient Testing,LOCAL INCENTIVE SCHEMES,DR BURNHAM & PARTNERS,42006168,705.83
Department of Health,NHS Bristol N Somerset S Glos ICB,31/08/2022,C&M-PMS PCN DES Clinical Director,DELEGATED GP,DR BURNHAM & PARTNERS,42006168,"2,006.89"
Department of Health,NHS Bristol N Somerset S Glos ICB,31/08/2022,C&M-PMS PCN DES Participation,DELEGATED GP,DR BURNHAM & PARTNERS,42006168,"1,330.55"
Department of Health,NHS Bristol N Somerset S Glos ICB,31/08/2022,C&M-PMS QOF Aspiration,DELEGATED GP,DR BURNHAM & PARTNERS,42006168,"7,906.83"
Department of Health,NHS Bristol N Somerset S Glos ICB,31/08/2022,C&M- PCN DES CARE COORDINATOR,DELEGATED GP,DR BURNHAM & PARTNERS,42197611,"2,475.79"
Department of Health,NHS Bristol N Somerset S Glos ICB,31/08/2022,C&M- PCN DES CARE HOME PREMIUM,DELEGATED GP,DR BURNHAM & PARTNERS,42197611,"3,030.00"
Department of Health,NHS Bristol N Somerset S Glos ICB,31/08/2022,C&M-PCN DES PHARMACY TECHNICIANS,DELEGATED GP,DR BURNHAM & PARTNERS,42197611,"2,690.24"
Department of Health,NHS Bristol N Somerset S Glos ICB,31/08/2022,C&M-PMS LES Care Home/Nursing Home,LOCAL INCENTIVE SCHEMES,DR BURNHAM & PARTNERS,42197611,410.07
Department of Health,NHS Bristol N Somerset S Glos ICB,31/08/2022,C&M-PMS LES Presc Incentive Sch,LOCAL INCENTIVE SCHEMES,DR BURNHAM & PARTNERS,42197611,"45,889.50"
Department of Health,NHS Bristol N Somerset S Glos ICB,31/08/2022,C&M-PMS PCN DES Clin Pharmacist,DELEGATED GP,DR BURNHAM & PARTNERS,42197611,"13,415.62"
Department of Health,NHS Bristol N Somerset S Glos ICB,31/08/2022,C&M-PMS PCN DES Physiotherapist,DELEGATED GP,DR BURNHAM & PARTNERS,42197611,"6,070.94"
Department of Health,NHS Bristol N Somerset S Glos ICB,31/08/2022,C&M-PMS PCN DES Soc Prescribing,DELEGATED GP,DR BURNHAM & PARTNERS,42197611,"3,511.08"
Department of Health,NHS Bristol N Somerset S Glos ICB,31/08/2022,C&M-PMS PCO Doctors Ret Scheme,DELEGATED GP,DR BURNHAM & PARTNERS,42197611,"2,615.36"
Department of Health,NHS Bristol N Somerset S Glos ICB,31/08/2022,C&M-PMS Contract Value,DELEGATED GP,DR MALE THOMPSON & LEWIS,42006170,"44,439.75"
Department of Health,NHS Bristol N Somerset S Glos ICB,31/08/2022,C&M-PMS LES Anti-coagulation,LOCAL INCENTIVE SCHEMES,DR MALE THOMPSON & LEWIS,42006170,114.00
Department of Health,NHS Bristol N Somerset S Glos ICB,31/08/2022,C&M-PMS LES Basket of Procedures,LOCAL INCENTIVE SCHEMES,DR MALE THOMPSON & LEWIS,42006170,"4,027.11"
Department of Health,NHS Bristol N Somerset S Glos ICB,31/08/2022,C&M-PMS LES DVT,LOCAL INCENTIVE SCHEMES,DR MALE THOMPSON & LEWIS,42006170,66.67
Department of Health,NHS Bristol N Somerset S Glos ICB,31/08/2022,C&M-PMS LES Dementia,LOCAL INCENTIVE SCHEMES,DR MALE THOMPSON & LEWIS,42006170,514.08
Department of Health,NHS Bristol N Somerset S Glos ICB,31/08/2022,C&M-PMS NES Near Patient Testing,LOCAL INCENTIVE SCHEMES,DR MALE THOMPSON & LEWIS,42006170,306.67
Department of Health,NHS Bristol N Somerset S Glos ICB,31/08/2022,C&M-PMS PCN DES Participation,DELEGATED GP,DR MALE THOMPSON & LEWIS,42006170,802.00
Department of Health,NHS Bristol N Somerset S Glos ICB,31/08/2022,C&M-PMS QOF Aspiration,DELEGATED GP,DR MALE THOMPSON & LEWIS,42006170,"5,108.56"
Department of Health,NHS Bristol N Somerset S Glos ICB,31/08/2022,C&M-PCN-PMS DES Leadership Payment,DELEGATED GP,DR ROSSDALE REASEACH ACCOUNT,42006123,"3,653.61"
Department of Health,NHS Bristol N Somerset S Glos ICB,31/08/2022,C&M-PMS Contract Value,DELEGATED GP,DR ROSSDALE REASEACH ACCOUNT,42006123,"125,424.30"
Department of Health,NHS Bristol N Somerset S Glos ICB,31/08/2022,C&M-PMS DES Extended Hours Access,DELEGATED GP,DR ROSSDALE REASEACH ACCOUNT,42006123,"8,778.36"
Department of Health,NHS Bristol N Somerset S Glos ICB,31/08/2022,C&M-PMS LES Anti-coagulation,LOCAL INCENTIVE SCHEMES,DR ROSSDALE REASEACH ACCOUNT,42006123,173.33
Department of Health,NHS Bristol N Somerset S Glos ICB,31/08/2022,C&M-PMS LES Basket of Procedures,LOCAL INCENTIVE SCHEMES,DR ROSSDALE REASEACH ACCOUNT,42006123,"21,920.36"
Department of Health,NHS Bristol N Somerset S Glos ICB,31/08/2022,C&M-PMS LES DVT,LOCAL INCENTIVE SCHEMES,DR ROSSDALE REASEACH ACCOUNT,42006123,80.00
Department of Health,NHS Bristol N Somerset S Glos ICB,31/08/2022,C&M-PMS LES Dementia,LOCAL INCENTIVE SCHEMES,DR ROSSDALE REASEACH ACCOUNT,42006123,516.75
Department of Health,NHS Bristol N Somerset S Glos ICB,31/08/2022,C&M-PMS LES Diabetes-Insulin (GTT),LOCAL INCENTIVE SCHEMES,DR ROSSDALE REASEACH ACCOUNT,42006123,58.33
Department of Health,NHS Bristol N Somerset S Glos ICB,31/08/2022,C&M-PMS NES Near Patient Testing,LOCAL INCENTIVE SCHEMES,DR ROSSDALE REASEACH ACCOUNT,42006123,541.67
Department of Health,NHS Bristol N Somerset S Glos ICB,31/08/2022,C&M-PMS PCN DES Clinical Director,DELEGATED GP,DR ROSSDALE REASEACH ACCOUNT,42006123,"4,486.72"
Department of Health,NHS Bristol N Somerset S Glos ICB,31/08/2022,C&M-PMS PCN DES Participation,DELEGATED GP,DR ROSSDALE REASEACH ACCOUNT,42006123,"2,157.97"
Department of Health,NHS Bristol N Somerset S Glos ICB,31/08/2022,C&M-PMS Prem Notional Rent,DELEGATED GP,DR ROSSDALE REASEACH ACCOUNT,42006123,"7,387.28"
Department of Health,NHS Bristol N Somerset S Glos ICB,31/08/2022,C&M-PMS QOF Aspiration,DELEGATED GP,DR ROSSDALE REASEACH ACCOUNT,42006123,"9,384.01"
Department of Health,NHS Bristol N Somerset S Glos ICB,31/08/2022,C&M-PMS WEIGHT MANAGEMENT SERVICE,DELEGATED GP,DR ROSSDALE REASEACH ACCOUNT,42006123,207.00
Department of Health,NHS Bristol N Somerset S Glos ICB,31/08/2022,ME - PMS GP Prior Year ERs,DELEGATED GP,DR ROSSDALE REASEACH ACCOUNT,42006123,418.57
Department of Health,NHS Bristol N Somerset S Glos ICB,31/08/2022,ME-PMS GP Prior Year EEs,DELEGATED GP,DR ROSSDALE REASEACH ACCOUNT,42006123,"4,118.27"
Department of Health,NHS Bristol N Somerset S Glos ICB,31/08/2022,C&M- PCN DES CARE COORDINATOR,DELEGATED GP,DR ROSSDALE REASEACH ACCOUNT,42197865,"7,128.99"
Department of Health,NHS Bristol N Somerset S Glos ICB,31/08/2022,C&M- PCN DES CARE HOME PREMIUM,DELEGATED GP,DR ROSSDALE REASEACH ACCOUNT,42197865,"1,790.00"
Department of Health,NHS Bristol N Somerset S Glos ICB,31/08/2022,C&M- PCN DES Nursing Associate,DELEGATED GP,DR ROSSDALE REASEACH ACCOUNT,42197865,"3,593.07"
Department of Health,NHS Bristol N Somerset S Glos ICB,31/08/2022,C&M-NCD Adult Mental Health Practitioner,DELEGATED GP,DR ROSSDALE REASEACH ACCOUNT,42197865,"1,796.59"
Department of Health,NHS Bristol N Somerset S Glos ICB,31/08/2022,C&M-PCN DES PHARMACY TECHNICIANS,DELEGATED GP,DR ROSSDALE REASEACH ACCOUNT,42197865,"8,303.97"
Department of Health,NHS Bristol N Somerset S Glos ICB,31/08/2022,C&M-PMS LES Care Home/Nursing Home,LOCAL INCENTIVE SCHEMES,DR ROSSDALE REASEACH ACCOUNT,42197865,119.80
Department of Health,NHS Bristol N Somerset S Glos ICB,31/08/2022,C&M-PMS LES Presc Incentive Sch,LOCAL INCENTIVE SCHEMES,DR ROSSDALE REASEACH ACCOUNT,42197865,"9,023.50"
Department of Health,NHS Bristol N Somerset S Glos ICB,31/08/2022,C&M-PMS PCN DES Clin Pharmacist,DELEGATED GP,DR ROSSDALE REASEACH ACCOUNT,42197865,"17,144.64"
Department of Health,NHS Bristol N Somerset S Glos ICB,31/08/2022,C&M-PMS PCN DES Physiotherapist,DELEGATED GP,DR ROSSDALE REASEACH ACCOUNT,42197865,"18,120.00"
Department of Health,NHS Bristol N Somerset S Glos ICB,31/08/2022,C&M-PMS PCN DES Soc Prescribing,DELEGATED GP,DR ROSSDALE REASEACH ACCOUNT,42197865,"4,953.41"
Department of Health,NHS Bristol N Somerset S Glos ICB,31/08/2022,C&M-PMS Contract Value,DELEGATED GP,EAST TREES HEALTH CENTRE (L81023),42006164,"114,821.11"
Department of Health,NHS Bristol N Somerset S Glos ICB,31/08/2022,C&M-PMS LES Anti-coagulation,LOCAL INCENTIVE SCHEMES,EAST TREES HEALTH CENTRE (L81023),42006164,47.50
Department of Health,NHS Bristol N Somerset S Glos ICB,31/08/2022,C&M-PMS LES Basket of Procedures,LOCAL INCENTIVE SCHEMES,EAST TREES HEALTH CENTRE (L81023),42006164,"13,363.31"
Department of Health,NHS Bristol N Somerset S Glos ICB,31/08/2022,C&M-PMS LES DVT,LOCAL INCENTIVE SCHEMES,EAST TREES HEALTH CENTRE (L81023),42006164,13.33
Department of Health,NHS Bristol N Somerset S Glos ICB,31/08/2022,C&M-PMS LES Dementia,LOCAL INCENTIVE SCHEMES,EAST TREES HEALTH CENTRE (L81023),42006164,361.50
Department of Health,NHS Bristol N Somerset S Glos ICB,31/08/2022,C&M-PMS NES Near Patient Testing,LOCAL INCENTIVE SCHEMES,EAST TREES HEALTH CENTRE (L81023),42006164,447.50
Department of Health,NHS Bristol N Somerset S Glos ICB,31/08/2022,C&M-PMS PCN DES Participation,DELEGATED GP,EAST TREES HEALTH CENTRE (L81023),42006164,"2,118.41"
Department of Health,NHS Bristol N Somerset S Glos ICB,31/08/2022,C&M-PMS PCO Locum Sickness,DELEGATED GP,EAST TREES HEALTH CENTRE (L81023),42006164,"5,059.80"
Department of Health,NHS Bristol N Somerset S Glos ICB,31/08/2022,C&M-PMS Prem Notional Rent,DELEGATED GP,EAST TREES HEALTH CENTRE (L81023),42006164,"25,654.21"
Department of Health,NHS Bristol N Somerset S Glos ICB,31/08/2022,C&M-PMS QOF Aspiration,DELEGATED GP,EAST TREES HEALTH CENTRE (L81023),42006164,"7,802.83"
Department of Health,NHS Bristol N Somerset S Glos ICB,31/08/2022,Telecoms-Mobile Phones,CORPORATE COSTS & SERVICES,EE LTD,41915915,"33,806.04"
Department of Health,NHS Bristol N Somerset S Glos ICB,31/08/2022,Computer Network Costs,PRIMARY CARE IT,EE LTD,41939601,"32,051.96"
Department of Health,NHS Bristol N Somerset S Glos ICB,31/08/2022,Computer Software/License,PRIMARY CARE IT,EGTON MEDICAL INFORMATION SYSTEMS LTD,42054799,"48,452.06"
Department of Health,NHS Bristol N Somerset S Glos ICB,31/08/2022,Cont Care- Adult 100% Fully Funded,CHC ADULT FULLY FUNDED,ELYSIUM HEALTHCARE LTD,41961320,"26,945.20"
Department of Health,NHS Bristol N Somerset S Glos ICB,31/08/2022,Cont Care- Adult 100% Fully Funded,CHC ADULT FULLY FUNDED,ELYSIUM HEALTHCARE LTD,42040292,"29,472.94"
Department of Health,NHS Bristol N Somerset S Glos ICB,31/08/2022,Cont Care- Adult 100% Fully Funded,CHC ADULT FULLY FUNDED,ELYSIUM HEALTHCARE LTD,42040633,"29,472.94"
Department of Health,NHS Bristol N Somerset S Glos ICB,31/08/2022,Cont Care- Adult 100% Fully Funded,CHC ADULT FULLY FUNDED,ELYSIUM HEALTHCARE LTD,42040737,"33,882.38"
Department of Health,NHS Bristol N Somerset S Glos ICB,31/08/2022,Cont Care- Children,CHILDRENS CONTINUING CARE,EMERGENCY PERSONNEL HOMECARE LTD,41896523,"61,220.16"
Department of Health,NHS Bristol N Somerset S Glos ICB,31/08/2022,Cont Care- Adult 100% Fully Funded,CHC ADULT FULLY FUNDED,EMERGENCY PERSONNEL HOMECARE LTD,41896531,"81,672.62"
Department of Health,NHS Bristol N Somerset S Glos ICB,31/08/2022,Cont Care- Adult 100% Fully Funded,CHC AD FULL FUND PERS HLTH BUD,EMERGENCY PERSONNEL HOMECARE LTD,42102647,"34,995.31"
Department of Health,NHS Bristol N Somerset S Glos ICB,31/08/2022,Cont Care- Adult 100% Fully Funded,CHC ADULT FULLY FUNDED,EMERGENCY PERSONNEL LTD,42260298,"44,615.76"
Department of Health,NHS Bristol N Somerset S Glos ICB,31/08/2022,Cont Care- Adult 100% Fully Funded,CHC AD FULL FUND PERS HLTH BUD,EMERGENCY PERSONNEL LTD,42260737,"31,123.82"
Department of Health,NHS Bristol N Somerset S Glos ICB,31/08/2022,Cont Care- Children,CHILDRENS CONTINUING CARE,EMERGENCY PERSONNEL LTD,42285459,"61,220.16"
Department of Health,NHS Bristol N Somerset S Glos ICB,31/08/2022,Cont Care- Adult 100% Fully Funded,CHC ADULT FULLY FUNDED,EMERGENCY PERSONNEL LTD,42285463,"81,672.62"
Department of Health,NHS Bristol N Somerset S Glos ICB,31/08/2022,C&M-PMS Contract Value,DELEGATED GP,EMERSONS GREEN MEDICAL CENTRE,42025603,"70,304.23"
Department of Health,NHS Bristol N Somerset S Glos ICB,31/08/2022,C&M-PMS DES Learn Dsblty Hlth Chk,DELEGATED GP,EMERSONS GREEN MEDICAL CENTRE,42025603,420.00
Department of Health,NHS Bristol N Somerset S Glos ICB,31/08/2022,C&M-PMS LES Anti-coagulation,LOCAL INCENTIVE SCHEMES,EMERSONS GREEN MEDICAL CENTRE,42025603,66.50
Department of Health,NHS Bristol N Somerset S Glos ICB,31/08/2022,C&M-PMS LES Basket of Procedures,LOCAL INCENTIVE SCHEMES,EMERSONS GREEN MEDICAL CENTRE,42025603,"8,683.65"
Department of Health,NHS Bristol N Somerset S Glos ICB,31/08/2022,C&M-PMS LES Dementia,LOCAL INCENTIVE SCHEMES,EMERSONS GREEN MEDICAL CENTRE,42025603,126.42
Department of Health,NHS Bristol N Somerset S Glos ICB,31/08/2022,C&M-PMS NES Near Patient Testing,LOCAL INCENTIVE SCHEMES,EMERSONS GREEN MEDICAL CENTRE,42025603,503.33
Department of Health,NHS Bristol N Somerset S Glos ICB,31/08/2022,C&M-PMS PCN DES Participation,DELEGATED GP,EMERSONS GREEN MEDICAL CENTRE,42025603,"1,298.80"
Department of Health,NHS Bristol N Somerset S Glos ICB,31/08/2022,C&M-PMS QOF Aspiration,DELEGATED GP,EMERSONS GREEN MEDICAL CENTRE,42025603,"6,710.28"
Department of Health,NHS Bristol N Somerset S Glos ICB,31/08/2022,C&M-PMS WEIGHT MANAGEMENT SERVICE,DELEGATED GP,EMERSONS GREEN MEDICAL CENTRE,42025603,69.00
Department of Health,NHS Bristol N Somerset S Glos ICB,31/08/2022,ME - PMS GP Prior Year ERs,DELEGATED GP,EMERSONS GREEN MEDICAL CENTRE,42025603,"5,410.84"
Department of Health,NHS Bristol N Somerset S Glos ICB,31/08/2022,ME-PMS GP Prior Year AVCs,DELEGATED GP,EMERSONS GREEN MEDICAL CENTRE,42025603,"1,692.21"
Department of Health,NHS Bristol N Somerset S Glos ICB,31/08/2022,ME-PMS GP Prior Year EEs,DELEGATED GP,EMERSONS GREEN MEDICAL CENTRE,42025603,"5,079.80"
Department of Health,NHS Bristol N Somerset S Glos ICB,31/08/2022,Cont Care- Adult 100% Fully Funded,CHC ADULT FULLY FUNDED,EXCEL LIVING LTD,42177570,"30,411.78"
Department of Health,NHS Bristol N Somerset S Glos ICB,31/08/2022,Clinical&Medical-Commercial Sector,REABLEMENT,FAIRVIEW COURT,42208080,"32,154.75"
Department of Health,NHS Bristol N Somerset S Glos ICB,31/08/2022,C&M-PMS Contract Value,DELEGATED GP,FALLODON WAY MEDICAL CENTRE,42006173,"82,526.98"
Department of Health,NHS Bristol N Somerset S Glos ICB,31/08/2022,C&M-PMS DES Learn Dsblty Hlth Chk,DELEGATED GP,FALLODON WAY MEDICAL CENTRE,42006173,"1,540.00"
Department of Health,NHS Bristol N Somerset S Glos ICB,31/08/2022,C&M-PMS LES Anti-coagulation,LOCAL INCENTIVE SCHEMES,FALLODON WAY MEDICAL CENTRE,42006173,123.50
Department of Health,NHS Bristol N Somerset S Glos ICB,31/08/2022,C&M-PMS LES Basket of Procedures,LOCAL INCENTIVE SCHEMES,FALLODON WAY MEDICAL CENTRE,42006173,"8,751.28"
Department of Health,NHS Bristol N Somerset S Glos ICB,31/08/2022,C&M-PMS LES DVT,LOCAL INCENTIVE SCHEMES,FALLODON WAY MEDICAL CENTRE,42006173,13.33
Department of Health,NHS Bristol N Somerset S Glos ICB,31/08/2022,C&M-PMS LES Dementia,LOCAL INCENTIVE SCHEMES,FALLODON WAY MEDICAL CENTRE,42006173,266.58
Department of Health,NHS Bristol N Somerset S Glos ICB,31/08/2022,C&M-PMS NES Near Patient Testing,LOCAL INCENTIVE SCHEMES,FALLODON WAY MEDICAL CENTRE,42006173,431.67
Department of Health,NHS Bristol N Somerset S Glos ICB,31/08/2022,C&M-PMS PCN DES Participation,DELEGATED GP,FALLODON WAY MEDICAL CENTRE,42006173,"1,389.97"
Department of Health,NHS Bristol N Somerset S Glos ICB,31/08/2022,C&M-PMS Prem Notional Rent,DELEGATED GP,FALLODON WAY MEDICAL CENTRE,42006173,"4,795.58"
Department of Health,NHS Bristol N Somerset S Glos ICB,31/08/2022,C&M-PMS QOF Aspiration,DELEGATED GP,FALLODON WAY MEDICAL CENTRE,42006173,"8,548.60"
Department of Health,NHS Bristol N Somerset S Glos ICB,31/08/2022,ME-PMS GP Prior Year EEs,DELEGATED GP,FALLODON WAY MEDICAL CENTRE,42006173,56.74
Department of Health,NHS Bristol N Somerset S Glos ICB,31/08/2022,C&M-PMS Contract Value,DELEGATED GP,FAMILY PRACTICE BRISTOL,42006151,"115,259.75"
Department of Health,NHS Bristol N Somerset S Glos ICB,31/08/2022,C&M-PMS LES Anti-coagulation,LOCAL INCENTIVE SCHEMES,FAMILY PRACTICE BRISTOL,42006151,133.00
Department of Health,NHS Bristol N Somerset S Glos ICB,31/08/2022,C&M-PMS LES Basket of Procedures,LOCAL INCENTIVE SCHEMES,FAMILY PRACTICE BRISTOL,42006151,"12,471.90"
Department of Health,NHS Bristol N Somerset S Glos ICB,31/08/2022,C&M-PMS LES DVT,LOCAL INCENTIVE SCHEMES,FAMILY PRACTICE BRISTOL,42006151,53.33
Department of Health,NHS Bristol N Somerset S Glos ICB,31/08/2022,C&M-PMS LES Dementia,LOCAL INCENTIVE SCHEMES,FAMILY PRACTICE BRISTOL,42006151,529.17
Department of Health,NHS Bristol N Somerset S Glos ICB,31/08/2022,C&M-PMS NES Near Patient Testing,LOCAL INCENTIVE SCHEMES,FAMILY PRACTICE BRISTOL,42006151,477.50
Department of Health,NHS Bristol N Somerset S Glos ICB,31/08/2022,C&M-PMS PCN DES Participation,DELEGATED GP,FAMILY PRACTICE BRISTOL,42006151,"2,114.49"
Department of Health,NHS Bristol N Somerset S Glos ICB,31/08/2022,C&M-PMS Prem Notional Rent,DELEGATED GP,FAMILY PRACTICE BRISTOL,42006151,"12,605.94"
Department of Health,NHS Bristol N Somerset S Glos ICB,31/08/2022,C&M-PMS QOF Aspiration,DELEGATED GP,FAMILY PRACTICE BRISTOL,42006151,"10,273.21"
Department of Health,NHS Bristol N Somerset S Glos ICB,31/08/2022,C&M-PMS WEIGHT MANAGEMENT SERVICE,DELEGATED GP,FAMILY PRACTICE BRISTOL,42006151,138.00
Department of Health,NHS Bristol N Somerset S Glos ICB,31/08/2022,ME-PMS GP Pension EEs-PMS,DELEGATED GP,FAMILY PRACTICE BRISTOL,42006151,107.74
Department of Health,NHS Bristol N Somerset S Glos ICB,31/08/2022,ME-PMS GP Pension ERs-PMS,DELEGATED GP,FAMILY PRACTICE BRISTOL,42006151,123.95
Department of Health,NHS Bristol N Somerset S Glos ICB,31/08/2022,Clinical&Medical-Commercial Sector,ACUTE SERVICES H,FERTILITY BRISTOL LTD,42123400,"37,005.00"
Department of Health,NHS Bristol N Somerset S Glos ICB,31/08/2022,C&M-PMS Contract Value,DELEGATED GP,FIRECLAY HEALTH,42006149,"164,070.61"
Department of Health,NHS Bristol N Somerset S Glos ICB,31/08/2022,C&M-PMS LES Anti-coagulation,LOCAL INCENTIVE SCHEMES,FIRECLAY HEALTH,42006149,194.75
Department of Health,NHS Bristol N Somerset S Glos ICB,31/08/2022,C&M-PMS LES Basket of Procedures,LOCAL INCENTIVE SCHEMES,FIRECLAY HEALTH,42006149,"19,265.35"
Department of Health,NHS Bristol N Somerset S Glos ICB,31/08/2022,C&M-PMS LES DVT,LOCAL INCENTIVE SCHEMES,FIRECLAY HEALTH,42006149,53.33
Department of Health,NHS Bristol N Somerset S Glos ICB,31/08/2022,C&M-PMS LES Dementia,LOCAL INCENTIVE SCHEMES,FIRECLAY HEALTH,42006149,459.08
Department of Health,NHS Bristol N Somerset S Glos ICB,31/08/2022,C&M-PMS NES Near Patient Testing,LOCAL INCENTIVE SCHEMES,FIRECLAY HEALTH,42006149,"1,048.33"
Department of Health,NHS Bristol N Somerset S Glos ICB,31/08/2022,C&M-PMS PCN DES Participation,DELEGATED GP,FIRECLAY HEALTH,42006149,"3,032.85"
Department of Health,NHS Bristol N Somerset S Glos ICB,31/08/2022,C&M-PMS Prem Notional Rent,DELEGATED GP,FIRECLAY HEALTH,42006149,"16,220.83"
Department of Health,NHS Bristol N Somerset S Glos ICB,31/08/2022,C&M-PMS Prem Water Rates,DELEGATED GP,FIRECLAY HEALTH,42006149,113.81
Department of Health,NHS Bristol N Somerset S Glos ICB,31/08/2022,C&M-PMS QOF Aspiration,DELEGATED GP,FIRECLAY HEALTH,42006149,"15,464.68"
Department of Health,NHS Bristol N Somerset S Glos ICB,31/08/2022,C&M-PMS WEIGHT MANAGEMENT SERVICE,DELEGATED GP,FIRECLAY HEALTH,42006149,103.50
Department of Health,NHS Bristol N Somerset S Glos ICB,31/08/2022,C&M-PMS Contract Value,DELEGATED GP,FIRECLAY HEALTH,42006150,-796.96
Department of Health,NHS Bristol N Somerset S Glos ICB,31/08/2022,ME-PMS GP Pension Added Years EEs,DELEGATED GP,FIRECLAY HEALTH,42006150,"-2,308.74"
Department of Health,NHS Bristol N Somerset S Glos ICB,31/08/2022,ME-PMS GP Pension EEs-PMS,DELEGATED GP,FIRECLAY HEALTH,42006150,"-16,456.84"
Department of Health,NHS Bristol N Somerset S Glos ICB,31/08/2022,ME-PMS GP Pension ERs-PMS,DELEGATED GP,FIRECLAY HEALTH,42006150,"-17,342.89"
Department of Health,NHS Bristol N Somerset S Glos ICB,31/08/2022,C&M-PMS Contract Value,DELEGATED GP,FISHPONDS FAMILY PRACTICE,42006067,"100,888.79"
Department of Health,NHS Bristol N Somerset S Glos ICB,31/08/2022,C&M-PMS LES Anti-coagulation,LOCAL INCENTIVE SCHEMES,FISHPONDS FAMILY PRACTICE,42006067,114.00
Department of Health,NHS Bristol N Somerset S Glos ICB,31/08/2022,C&M-PMS LES Basket of Procedures,LOCAL INCENTIVE SCHEMES,FISHPONDS FAMILY PRACTICE,42006067,"11,710.26"
Department of Health,NHS Bristol N Somerset S Glos ICB,31/08/2022,C&M-PMS LES DVT,LOCAL INCENTIVE SCHEMES,FISHPONDS FAMILY PRACTICE,42006067,66.67
Department of Health,NHS Bristol N Somerset S Glos ICB,31/08/2022,C&M-PMS LES Dementia,LOCAL INCENTIVE SCHEMES,FISHPONDS FAMILY PRACTICE,42006067,336.67
Department of Health,NHS Bristol N Somerset S Glos ICB,31/08/2022,C&M-PMS NES Near Patient Testing,LOCAL INCENTIVE SCHEMES,FISHPONDS FAMILY PRACTICE,42006067,493.33
Department of Health,NHS Bristol N Somerset S Glos ICB,31/08/2022,C&M-PMS PCN DES Participation,DELEGATED GP,FISHPONDS FAMILY PRACTICE,42006067,"1,859.77"
Department of Health,NHS Bristol N Somerset S Glos ICB,31/08/2022,C&M-PMS Prem Service Charges,DELEGATED GP,FISHPONDS FAMILY PRACTICE,42006067,"45,560.15"
Department of Health,NHS Bristol N Somerset S Glos ICB,31/08/2022,C&M-PMS QOF Aspiration,DELEGATED GP,FISHPONDS FAMILY PRACTICE,42006067,"9,710.99"
Department of Health,NHS Bristol N Somerset S Glos ICB,31/08/2022,C&M-PMS Contract Value,DELEGATED GP,FROME VALLEY MEDICAL CENTRE,42006071,"113,694.17"
Department of Health,NHS Bristol N Somerset S Glos ICB,31/08/2022,C&M-PMS LES Anti-coagulation,LOCAL INCENTIVE SCHEMES,FROME VALLEY MEDICAL CENTRE,42006071,218.50
Department of Health,NHS Bristol N Somerset S Glos ICB,31/08/2022,C&M-PMS LES Basket of Procedures,LOCAL INCENTIVE SCHEMES,FROME VALLEY MEDICAL CENTRE,42006071,"10,821.98"
Department of Health,NHS Bristol N Somerset S Glos ICB,31/08/2022,C&M-PMS LES DVT,LOCAL INCENTIVE SCHEMES,FROME VALLEY MEDICAL CENTRE,42006071,200.00
Department of Health,NHS Bristol N Somerset S Glos ICB,31/08/2022,C&M-PMS LES Dementia,LOCAL INCENTIVE SCHEMES,FROME VALLEY MEDICAL CENTRE,42006071,"1,269.92"
Department of Health,NHS Bristol N Somerset S Glos ICB,31/08/2022,C&M-PMS NES Near Patient Testing,LOCAL INCENTIVE SCHEMES,FROME VALLEY MEDICAL CENTRE,42006071,806.67
Department of Health,NHS Bristol N Somerset S Glos ICB,31/08/2022,C&M-PMS PCN DES Participation,DELEGATED GP,FROME VALLEY MEDICAL CENTRE,42006071,"2,097.96"
Department of Health,NHS Bristol N Somerset S Glos ICB,31/08/2022,C&M-PMS Prem Notional Rent,DELEGATED GP,FROME VALLEY MEDICAL CENTRE,42006071,"11,277.67"
Department of Health,NHS Bristol N Somerset S Glos ICB,31/08/2022,C&M-PMS QOF Aspiration,DELEGATED GP,FROME VALLEY MEDICAL CENTRE,42006071,"13,493.87"
Department of Health,NHS Bristol N Somerset S Glos ICB,31/08/2022,ME-PMS GP Pension EEs-PMS,DELEGATED GP,FROME VALLEY MEDICAL CENTRE,42006071,539.92
Department of Health,NHS Bristol N Somerset S Glos ICB,31/08/2022,ME-PMS GP Pension ERs-PMS,DELEGATED GP,FROME VALLEY MEDICAL CENTRE,42006071,621.12
Department of Health,NHS Bristol N Somerset S Glos ICB,31/08/2022,C&M-PMS Contract Value,DELEGATED GP,FROME VALLEY MEDICAL CENTRE,42006072,-615.25
Department of Health,NHS Bristol N Somerset S Glos ICB,31/08/2022,ME - PMS GP Prior Year ERs,DELEGATED GP,FROME VALLEY MEDICAL CENTRE,42006072,"-21,190.13"
Department of Health,NHS Bristol N Somerset S Glos ICB,31/08/2022,ME-PMS GP Pension Added Years EEs,DELEGATED GP,FROME VALLEY MEDICAL CENTRE,42006072,-175.29
Department of Health,NHS Bristol N Somerset S Glos ICB,31/08/2022,ME-PMS GP Pension EEs-PMS,DELEGATED GP,FROME VALLEY MEDICAL CENTRE,42006072,"-9,700.75"
Department of Health,NHS Bristol N Somerset S Glos ICB,31/08/2022,ME-PMS GP Pension ERs-PMS,DELEGATED GP,FROME VALLEY MEDICAL CENTRE,42006072,"-11,227.37"
Department of Health,NHS Bristol N Somerset S Glos ICB,31/08/2022,ME-PMS GP Prior Year EEs,DELEGATED GP,FROME VALLEY MEDICAL CENTRE,42006072,"-18,241.59"
Department of Health,NHS Bristol N Somerset S Glos ICB,31/08/2022,Computer Network Costs,CORPORATE COSTS & SERVICES,GCI NETWORK SOLUTIONS LTD,42123737,473.99
Department of Health,NHS Bristol N Somerset S Glos ICB,31/08/2022,Computer Network Costs,PRIMARY CARE IT,GCI NETWORK SOLUTIONS LTD,42123737,"50,253.40"
Department of Health,NHS Bristol N Somerset S Glos ICB,31/08/2022,C&M-PCN-PMS DES Leadership Payment,DELEGATED GP,GLOUCESTER ROAD MEDICAL CENTRE,42006073,"1,970.19"
Department of Health,NHS Bristol N Somerset S Glos ICB,31/08/2022,C&M-PMS Contract Value,DELEGATED GP,GLOUCESTER ROAD MEDICAL CENTRE,42006073,"137,584.16"
Department of Health,NHS Bristol N Somerset S Glos ICB,31/08/2022,C&M-PMS DES Extended Hours Access,DELEGATED GP,GLOUCESTER ROAD MEDICAL CENTRE,42006073,"4,639.32"
Department of Health,NHS Bristol N Somerset S Glos ICB,31/08/2022,C&M-PMS LES Anti-coagulation,LOCAL INCENTIVE SCHEMES,GLOUCESTER ROAD MEDICAL CENTRE,42006073,199.50
Department of Health,NHS Bristol N Somerset S Glos ICB,31/08/2022,C&M-PMS LES Basket of Procedures,LOCAL INCENTIVE SCHEMES,GLOUCESTER ROAD MEDICAL CENTRE,42006073,"19,884.74"
Department of Health,NHS Bristol N Somerset S Glos ICB,31/08/2022,C&M-PMS LES DVT,LOCAL INCENTIVE SCHEMES,GLOUCESTER ROAD MEDICAL CENTRE,42006073,26.67
Department of Health,NHS Bristol N Somerset S Glos ICB,31/08/2022,C&M-PMS LES Dementia,LOCAL INCENTIVE SCHEMES,GLOUCESTER ROAD MEDICAL CENTRE,42006073,169.00
Department of Health,NHS Bristol N Somerset S Glos ICB,31/08/2022,C&M-PMS LES Diabetes-Insulin (GTT),LOCAL INCENTIVE SCHEMES,GLOUCESTER ROAD MEDICAL CENTRE,42006073,58.33
Department of Health,NHS Bristol N Somerset S Glos ICB,31/08/2022,C&M-PMS NES Near Patient Testing,LOCAL INCENTIVE SCHEMES,GLOUCESTER ROAD MEDICAL CENTRE,42006073,629.17
Department of Health,NHS Bristol N Somerset S Glos ICB,31/08/2022,C&M-PMS PCN DES Clinical Director,DELEGATED GP,GLOUCESTER ROAD MEDICAL CENTRE,42006073,"2,371.21"
Department of Health,NHS Bristol N Somerset S Glos ICB,31/08/2022,C&M-PMS PCN DES Participation,DELEGATED GP,GLOUCESTER ROAD MEDICAL CENTRE,42006073,"2,486.01"
Department of Health,NHS Bristol N Somerset S Glos ICB,31/08/2022,C&M-PMS Prem Notional Rent,DELEGATED GP,GLOUCESTER ROAD MEDICAL CENTRE,42006073,"10,733.33"
Department of Health,NHS Bristol N Somerset S Glos ICB,31/08/2022,C&M-PMS QOF Aspiration,DELEGATED GP,GLOUCESTER ROAD MEDICAL CENTRE,42006073,"12,577.65"
Department of Health,NHS Bristol N Somerset S Glos ICB,31/08/2022,C&M- PCN DES CARE COORDINATOR,DELEGATED GP,GLOUCESTER ROAD MEDICAL CENTRE,42198054,"26,389.15"
Department of Health,NHS Bristol N Somerset S Glos ICB,31/08/2022,C&M- PCN DES CARE HOME PREMIUM,DELEGATED GP,GLOUCESTER ROAD MEDICAL CENTRE,42198054,"1,800.00"
Department of Health,NHS Bristol N Somerset S Glos ICB,31/08/2022,C&M- PCN DES Nursing Associate,DELEGATED GP,GLOUCESTER ROAD MEDICAL CENTRE,42198054,"4,997.84"
Department of Health,NHS Bristol N Somerset S Glos ICB,31/08/2022,C&M-NCD Adult Mental Health Practitioner,DELEGATED GP,GLOUCESTER ROAD MEDICAL CENTRE,42198054,"2,263.70"
Department of Health,NHS Bristol N Somerset S Glos ICB,31/08/2022,C&M-NCD Paramedic Advanced Practitioner,DELEGATED GP,GLOUCESTER ROAD MEDICAL CENTRE,42198054,"9,051.54"
Department of Health,NHS Bristol N Somerset S Glos ICB,31/08/2022,C&M-PCN DES PHARMACY TECHNICIANS,DELEGATED GP,GLOUCESTER ROAD MEDICAL CENTRE,42198054,"6,071.34"
Department of Health,NHS Bristol N Somerset S Glos ICB,31/08/2022,C&M-PMS C&M-APMS PCN DES Physician Assoc,DELEGATED GP,GLOUCESTER ROAD MEDICAL CENTRE,42198054,"8,778.15"
Department of Health,NHS Bristol N Somerset S Glos ICB,31/08/2022,C&M-PMS LES Care Home/Nursing Home,LOCAL INCENTIVE SCHEMES,GLOUCESTER ROAD MEDICAL CENTRE,42198054,474.57
Department of Health,NHS Bristol N Somerset S Glos ICB,31/08/2022,C&M-PMS LES Presc Incentive Sch,LOCAL INCENTIVE SCHEMES,GLOUCESTER ROAD MEDICAL CENTRE,42198054,"20,150.78"
Department of Health,NHS Bristol N Somerset S Glos ICB,31/08/2022,C&M-PMS PCN DES Clin Pharmacist,DELEGATED GP,GLOUCESTER ROAD MEDICAL CENTRE,42198054,"21,369.73"
Department of Health,NHS Bristol N Somerset S Glos ICB,31/08/2022,C&M-PMS PCN DES Physiotherapist,DELEGATED GP,GLOUCESTER ROAD MEDICAL CENTRE,42198054,"17,291.67"
Department of Health,NHS Bristol N Somerset S Glos ICB,31/08/2022,C&M-PMS PCN DES Soc Prescribing,DELEGATED GP,GLOUCESTER ROAD MEDICAL CENTRE,42198054,"17,281.72"
Department of Health,NHS Bristol N Somerset S Glos ICB,31/08/2022,C&M-PMS WEIGHT MANAGEMENT SERVICE,DELEGATED GP,GLOUCESTER ROAD MEDICAL CENTRE,42198054,69.00
Department of Health,NHS Bristol N Somerset S Glos ICB,31/08/2022,Hcare Srv Rec Fdtn Trust-Contract Baseline,ACUTE SERVICES B,GLOUCESTERSHIRE HOSPITALS NHS FOUNDATION TRUST,42027843,"66,593.00"
Department of Health,NHS Bristol N Somerset S Glos ICB,31/08/2022,Clinical&Medical-Independent Sector,COMMUNITY SERVICES B,GP CARE UK LTD,42208048,"28,754.00"
Department of Health,NHS Bristol N Somerset S Glos ICB,31/08/2022,Clinical&Medical-Independent Sector,COMMUNITY SERVICES B,GP CARE UK LTD,42208077,"54,531.50"
Department of Health,NHS Bristol N Somerset S Glos ICB,31/08/2022,C&M-PMS Contract Value,DELEGATED GP,GRAHAM ROAD SURGERY,42025590,"96,472.58"
Department of Health,NHS Bristol N Somerset S Glos ICB,31/08/2022,C&M-PMS LES Anti-coagulation,LOCAL INCENTIVE SCHEMES,GRAHAM ROAD SURGERY,42025590,226.67
Department of Health,NHS Bristol N Somerset S Glos ICB,31/08/2022,C&M-PMS LES Basket of Procedures,LOCAL INCENTIVE SCHEMES,GRAHAM ROAD SURGERY,42025590,"5,729.88"
Department of Health,NHS Bristol N Somerset S Glos ICB,31/08/2022,C&M-PMS LES Dementia,LOCAL INCENTIVE SCHEMES,GRAHAM ROAD SURGERY,42025590,448.00
Department of Health,NHS Bristol N Somerset S Glos ICB,31/08/2022,C&M-PMS NES Near Patient Testing,LOCAL INCENTIVE SCHEMES,GRAHAM ROAD SURGERY,42025590,495.00
Department of Health,NHS Bristol N Somerset S Glos ICB,31/08/2022,C&M-PMS PCN DES Participation,DELEGATED GP,GRAHAM ROAD SURGERY,42025590,"1,781.86"
Department of Health,NHS Bristol N Somerset S Glos ICB,31/08/2022,C&M-PMS Prem Notional Rent,DELEGATED GP,GRAHAM ROAD SURGERY,42025590,"4,229.00"
Department of Health,NHS Bristol N Somerset S Glos ICB,31/08/2022,C&M-PMS Prem Rates,DELEGATED GP,GRAHAM ROAD SURGERY,42025590,"19,061.80"
Department of Health,NHS Bristol N Somerset S Glos ICB,31/08/2022,C&M-PMS Prem Water Rates,DELEGATED GP,GRAHAM ROAD SURGERY,42025590,262.37
Department of Health,NHS Bristol N Somerset S Glos ICB,31/08/2022,C&M-PMS QOF Aspiration,DELEGATED GP,GRAHAM ROAD SURGERY,42025590,"14,174.41"
Department of Health,NHS Bristol N Somerset S Glos ICB,31/08/2022,C&M-PMS Contract Value,DELEGATED GP,GRANGE ROAD SURGERY,42006080,"85,797.11"
Department of Health,NHS Bristol N Somerset S Glos ICB,31/08/2022,C&M-PMS DES Learn Dsblty Hlth Chk,DELEGATED GP,GRANGE ROAD SURGERY,42006080,140.00
Department of Health,NHS Bristol N Somerset S Glos ICB,31/08/2022,C&M-PMS LES Anti-coagulation,LOCAL INCENTIVE SCHEMES,GRANGE ROAD SURGERY,42006080,76.00
Department of Health,NHS Bristol N Somerset S Glos ICB,31/08/2022,C&M-PMS LES Basket of Procedures,LOCAL INCENTIVE SCHEMES,GRANGE ROAD SURGERY,42006080,"9,976.42"
Department of Health,NHS Bristol N Somerset S Glos ICB,31/08/2022,C&M-PMS LES Dementia,LOCAL INCENTIVE SCHEMES,GRANGE ROAD SURGERY,42006080,295.42
Department of Health,NHS Bristol N Somerset S Glos ICB,31/08/2022,C&M-PMS NES Near Patient Testing,LOCAL INCENTIVE SCHEMES,GRANGE ROAD SURGERY,42006080,614.17
Department of Health,NHS Bristol N Somerset S Glos ICB,31/08/2022,C&M-PMS PCN DES Participation,DELEGATED GP,GRANGE ROAD SURGERY,42006080,"1,574.50"
Department of Health,NHS Bristol N Somerset S Glos ICB,31/08/2022,C&M-PMS Prem Notional Rent,DELEGATED GP,GRANGE ROAD SURGERY,42006080,"5,483.33"
Department of Health,NHS Bristol N Somerset S Glos ICB,31/08/2022,C&M-PMS QOF Aspiration,DELEGATED GP,GRANGE ROAD SURGERY,42006080,"8,704.81"
Department of Health,NHS Bristol N Somerset S Glos ICB,31/08/2022,C&M-PMS WEIGHT MANAGEMENT SERVICE,DELEGATED GP,GRANGE ROAD SURGERY,42006080,253.00
Department of Health,NHS Bristol N Somerset S Glos ICB,31/08/2022,C&M-PMS Contract Value,DELEGATED GP,GREENWAY COMMUNTIY PRACTICE,42006088,"78,763.98"
Department of Health,NHS Bristol N Somerset S Glos ICB,31/08/2022,C&M-PMS LES Anti-coagulation,LOCAL INCENTIVE SCHEMES,GREENWAY COMMUNTIY PRACTICE,42006088,118.75
Department of Health,NHS Bristol N Somerset S Glos ICB,31/08/2022,C&M-PMS LES Basket of Procedures,LOCAL INCENTIVE SCHEMES,GREENWAY COMMUNTIY PRACTICE,42006088,"8,494.60"
Department of Health,NHS Bristol N Somerset S Glos ICB,31/08/2022,C&M-PMS LES DVT,LOCAL INCENTIVE SCHEMES,GREENWAY COMMUNTIY PRACTICE,42006088,13.33
Department of Health,NHS Bristol N Somerset S Glos ICB,31/08/2022,C&M-PMS LES Dementia,LOCAL INCENTIVE SCHEMES,GREENWAY COMMUNTIY PRACTICE,42006088,899.08
Department of Health,NHS Bristol N Somerset S Glos ICB,31/08/2022,C&M-PMS LES Diabetes-Insulin (GTT),LOCAL INCENTIVE SCHEMES,GREENWAY COMMUNTIY PRACTICE,42006088,116.67
Department of Health,NHS Bristol N Somerset S Glos ICB,31/08/2022,C&M-PMS NES Near Patient Testing,LOCAL INCENTIVE SCHEMES,GREENWAY COMMUNTIY PRACTICE,42006088,390.83
Department of Health,NHS Bristol N Somerset S Glos ICB,31/08/2022,C&M-PMS PCN DES Participation,DELEGATED GP,GREENWAY COMMUNTIY PRACTICE,42006088,"1,431.58"
Department of Health,NHS Bristol N Somerset S Glos ICB,31/08/2022,C&M-PMS Prem Notional Rent,DELEGATED GP,GREENWAY COMMUNTIY PRACTICE,42006088,"13,156.00"
Department of Health,NHS Bristol N Somerset S Glos ICB,31/08/2022,C&M-PMS Prem Water Rates,DELEGATED GP,GREENWAY COMMUNTIY PRACTICE,42006088,646.82
Department of Health,NHS Bristol N Somerset S Glos ICB,31/08/2022,C&M-PMS QOF Aspiration,DELEGATED GP,GREENWAY COMMUNTIY PRACTICE,42006088,"8,362.81"
Department of Health,NHS Bristol N Somerset S Glos ICB,31/08/2022,C&M-PMS WEIGHT MANAGEMENT SERVICE,DELEGATED GP,GREENWAY COMMUNTIY PRACTICE,42006088,287.50
Department of Health,NHS Bristol N Somerset S Glos ICB,31/08/2022,ME-PMS GP Pension EEs-PMS,DELEGATED GP,GREENWAY COMMUNTIY PRACTICE,42006088,29.57
Department of Health,NHS Bristol N Somerset S Glos ICB,31/08/2022,ME-PMS GP Pension ERs-PMS,DELEGATED GP,GREENWAY COMMUNTIY PRACTICE,42006088,85.05
Department of Health,NHS Bristol N Somerset S Glos ICB,31/08/2022,ME - PMS GP Prior Year ERs,DELEGATED GP,GREENWAY COMMUNTIY PRACTICE,42006089,"-9,285.24"
Department of Health,NHS Bristol N Somerset S Glos ICB,31/08/2022,ME-PMS GP Pension EEs-PMS,DELEGATED GP,GREENWAY COMMUNTIY PRACTICE,42006089,"-13,435.36"
Department of Health,NHS Bristol N Somerset S Glos ICB,31/08/2022,ME-PMS GP Pension ERs-PMS,DELEGATED GP,GREENWAY COMMUNTIY PRACTICE,42006089,"-14,478.16"
Department of Health,NHS Bristol N Somerset S Glos ICB,31/08/2022,ME-PMS GP Prior Year EEs,DELEGATED GP,GREENWAY COMMUNTIY PRACTICE,42006089,"-8,071.25"
Department of Health,NHS Bristol N Somerset S Glos ICB,31/08/2022,C&M-PMS Contract Value,DELEGATED GP,HANHAM SURGERY,42006078,"163,446.52"
Department of Health,NHS Bristol N Somerset S Glos ICB,31/08/2022,C&M-PMS DES Learn Dsblty Hlth Chk,DELEGATED GP,HANHAM SURGERY,42006078,980.00
Department of Health,NHS Bristol N Somerset S Glos ICB,31/08/2022,C&M-PMS LES Anti-coagulation,LOCAL INCENTIVE SCHEMES,HANHAM SURGERY,42006078,380.00
Department of Health,NHS Bristol N Somerset S Glos ICB,31/08/2022,C&M-PMS LES Basket of Procedures,LOCAL INCENTIVE SCHEMES,HANHAM SURGERY,42006078,"16,596.05"
Department of Health,NHS Bristol N Somerset S Glos ICB,31/08/2022,C&M-PMS LES DVT,LOCAL INCENTIVE SCHEMES,HANHAM SURGERY,42006078,223.33
Department of Health,NHS Bristol N Somerset S Glos ICB,31/08/2022,C&M-PMS LES Dementia,LOCAL INCENTIVE SCHEMES,HANHAM SURGERY,42006078,562.00
Department of Health,NHS Bristol N Somerset S Glos ICB,31/08/2022,C&M-PMS NES Near Patient Testing,LOCAL INCENTIVE SCHEMES,HANHAM SURGERY,42006078,"1,170.83"
Department of Health,NHS Bristol N Somerset S Glos ICB,31/08/2022,C&M-PMS PCN DES Participation,DELEGATED GP,HANHAM SURGERY,42006078,"3,022.05"
Department of Health,NHS Bristol N Somerset S Glos ICB,31/08/2022,C&M-PMS Prem Notional Rent,DELEGATED GP,HANHAM SURGERY,42006078,"13,283.33"
Department of Health,NHS Bristol N Somerset S Glos ICB,31/08/2022,C&M-PMS QOF Aspiration,DELEGATED GP,HANHAM SURGERY,42006078,"18,339.46"
Department of Health,NHS Bristol N Somerset S Glos ICB,31/08/2022,C&M-PMS WEIGHT MANAGEMENT SERVICE,DELEGATED GP,HANHAM SURGERY,42006078,103.50
Department of Health,NHS Bristol N Somerset S Glos ICB,31/08/2022,ME - PMS GP Prior Year ERs,DELEGATED GP,HANHAM SURGERY,42006078,0.03
Department of Health,NHS Bristol N Somerset S Glos ICB,31/08/2022,ME-PMS GP Pension EEs-PMS,DELEGATED GP,HANHAM SURGERY,42006078,144.75
Department of Health,NHS Bristol N Somerset S Glos ICB,31/08/2022,ME-PMS GP Pension ERs-PMS,DELEGATED GP,HANHAM SURGERY,42006078,166.53
Department of Health,NHS Bristol N Somerset S Glos ICB,31/08/2022,C&M-PMS Contract Value,DELEGATED GP,HANHAM SURGERY,42006079,"-1,892.28"
Department of Health,NHS Bristol N Somerset S Glos ICB,31/08/2022,ME - PMS GP Prior Year ERs,DELEGATED GP,HANHAM SURGERY,42006079,"-1,051.10"
Department of Health,NHS Bristol N Somerset S Glos ICB,31/08/2022,ME-PMS GP Pension Added Years EEs,DELEGATED GP,HANHAM SURGERY,42006079,-964.89
Department of Health,NHS Bristol N Somerset S Glos ICB,31/08/2022,ME-PMS GP Pension EEs Adjs - PMS,DELEGATED GP,HANHAM SURGERY,42006079,"-1,493.94"
Department of Health,NHS Bristol N Somerset S Glos ICB,31/08/2022,ME-PMS GP Pension EEs-PMS,DELEGATED GP,HANHAM SURGERY,42006079,"-17,334.67"
Department of Health,NHS Bristol N Somerset S Glos ICB,31/08/2022,ME-PMS GP Pension ERs Adjs - PMS,DELEGATED GP,HANHAM SURGERY,42006079,"-1,718.62"
Department of Health,NHS Bristol N Somerset S Glos ICB,31/08/2022,ME-PMS GP Pension ERs-PMS,DELEGATED GP,HANHAM SURGERY,42006079,"-19,780.84"
Department of Health,NHS Bristol N Somerset S Glos ICB,31/08/2022,ME-PMS GP Prior Year EEs,DELEGATED GP,HANHAM SURGERY,42006079,"-4,284.70"
Department of Health,NHS Bristol N Somerset S Glos ICB,31/08/2022,C&M-PMS DES Minor Surgery,DELEGATED GP,HANHAM SURGERY,42189497,"4,006.22"
Department of Health,NHS Bristol N Somerset S Glos ICB,31/08/2022,C&M-PMS LES Care Home/Nursing Home,LOCAL INCENTIVE SCHEMES,HANHAM SURGERY,42189497,483.79
Department of Health,NHS Bristol N Somerset S Glos ICB,31/08/2022,C&M-PMS LES Presc Incentive Sch,LOCAL INCENTIVE SCHEMES,HANHAM SURGERY,42189497,"22,217.33"
Department of Health,NHS Bristol N Somerset S Glos ICB,31/08/2022,C&M-PMS PCO Doctors Ret Scheme,DELEGATED GP,HANHAM SURGERY,42189497,"1,230.72"
Department of Health,NHS Bristol N Somerset S Glos ICB,31/08/2022,C&M-PMS PCO Locum Adop/Pat/Mat,DELEGATED GP,HANHAM SURGERY,42189497,"8,407.30"
Department of Health,NHS Bristol N Somerset S Glos ICB,31/08/2022,C&M-PMS Contract Value,DELEGATED GP,HARBOURSIDE FAMILY PRACTICE,42006082,"69,559.16"
Department of Health,NHS Bristol N Somerset S Glos ICB,31/08/2022,C&M-PMS LES Anti-coagulation,LOCAL INCENTIVE SCHEMES,HARBOURSIDE FAMILY PRACTICE,42006082,253.33
Department of Health,NHS Bristol N Somerset S Glos ICB,31/08/2022,C&M-PMS LES Basket of Procedures,LOCAL INCENTIVE SCHEMES,HARBOURSIDE FAMILY PRACTICE,42006082,"3,460.05"
Department of Health,NHS Bristol N Somerset S Glos ICB,31/08/2022,C&M-PMS LES DVT,LOCAL INCENTIVE SCHEMES,HARBOURSIDE FAMILY PRACTICE,42006082,80.00
Department of Health,NHS Bristol N Somerset S Glos ICB,31/08/2022,C&M-PMS LES Dementia,LOCAL INCENTIVE SCHEMES,HARBOURSIDE FAMILY PRACTICE,42006082,596.58
Department of Health,NHS Bristol N Somerset S Glos ICB,31/08/2022,C&M-PMS NES Near Patient Testing,LOCAL INCENTIVE SCHEMES,HARBOURSIDE FAMILY PRACTICE,42006082,381.67
Department of Health,NHS Bristol N Somerset S Glos ICB,31/08/2022,C&M-PMS PCN DES Participation,DELEGATED GP,HARBOURSIDE FAMILY PRACTICE,42006082,"1,211.92"
Department of Health,NHS Bristol N Somerset S Glos ICB,31/08/2022,C&M-PMS QOF Aspiration,DELEGATED GP,HARBOURSIDE FAMILY PRACTICE,42006082,"7,018.48"
Department of Health,NHS Bristol N Somerset S Glos ICB,31/08/2022,ME - PMS GP Prior Year ERs,DELEGATED GP,HARBOURSIDE FAMILY PRACTICE,42006082,397.84
Department of Health,NHS Bristol N Somerset S Glos ICB,31/08/2022,ME-PMS GP Prior Year EEs,DELEGATED GP,HARBOURSIDE FAMILY PRACTICE,42006082,154.94
Department of Health,NHS Bristol N Somerset S Glos ICB,31/08/2022,ME - PMS GP Prior Year ERs,DELEGATED GP,HARBOURSIDE FAMILY PRACTICE,42006083,"-6,725.33"
Department of Health,NHS Bristol N Somerset S Glos ICB,31/08/2022,ME-PMS GP Pension Added Years EEs,DELEGATED GP,HARBOURSIDE FAMILY PRACTICE,42006083,-126.48
Department of Health,NHS Bristol N Somerset S Glos ICB,31/08/2022,ME-PMS GP Pension EEs-PMS,DELEGATED GP,HARBOURSIDE FAMILY PRACTICE,42006083,"-7,360.88"
Department of Health,NHS Bristol N Somerset S Glos ICB,31/08/2022,ME-PMS GP Pension ERs-PMS,DELEGATED GP,HARBOURSIDE FAMILY PRACTICE,42006083,"-8,066.54"
Department of Health,NHS Bristol N Somerset S Glos ICB,31/08/2022,ME-PMS GP Prior Year EEs,DELEGATED GP,HARBOURSIDE FAMILY PRACTICE,42006083,"-6,760.54"
Department of Health,NHS Bristol N Somerset S Glos ICB,31/08/2022,C&M-PMS Contract Value,DELEGATED GP,HARTWOOD HEALTHCARE,42006086,"60,745.67"
Department of Health,NHS Bristol N Somerset S Glos ICB,31/08/2022,C&M-PMS LES Anti-coagulation,LOCAL INCENTIVE SCHEMES,HARTWOOD HEALTHCARE,42006086,137.75
Department of Health,NHS Bristol N Somerset S Glos ICB,31/08/2022,C&M-PMS LES Basket of Procedures,LOCAL INCENTIVE SCHEMES,HARTWOOD HEALTHCARE,42006086,"6,875.64"
Department of Health,NHS Bristol N Somerset S Glos ICB,31/08/2022,C&M-PMS LES Dementia,LOCAL INCENTIVE SCHEMES,HARTWOOD HEALTHCARE,42006086,265.25
Department of Health,NHS Bristol N Somerset S Glos ICB,31/08/2022,C&M-PMS LES Diabetes-Insulin (GTT),LOCAL INCENTIVE SCHEMES,HARTWOOD HEALTHCARE,42006086,58.33
Department of Health,NHS Bristol N Somerset S Glos ICB,31/08/2022,C&M-PMS NES Near Patient Testing,LOCAL INCENTIVE SCHEMES,HARTWOOD HEALTHCARE,42006086,430.00
Department of Health,NHS Bristol N Somerset S Glos ICB,31/08/2022,C&M-PMS PCN DES Participation,DELEGATED GP,HARTWOOD HEALTHCARE,42006086,"1,113.49"
Department of Health,NHS Bristol N Somerset S Glos ICB,31/08/2022,C&M-PMS QOF Aspiration,DELEGATED GP,HARTWOOD HEALTHCARE,42006086,"6,354.93"
Department of Health,NHS Bristol N Somerset S Glos ICB,31/08/2022,C&M-PMS WEIGHT MANAGEMENT SERVICE,DELEGATED GP,HARTWOOD HEALTHCARE,42006086,161.00
Department of Health,NHS Bristol N Somerset S Glos ICB,31/08/2022,C&M-PMS Contract Value,DELEGATED GP,HEYWOOD FAMILY PRACTICE,42006076,"54,055.23"
Department of Health,NHS Bristol N Somerset S Glos ICB,31/08/2022,C&M-PMS LES Anti-coagulation,LOCAL INCENTIVE SCHEMES,HEYWOOD FAMILY PRACTICE,42006076,240.00
Department of Health,NHS Bristol N Somerset S Glos ICB,31/08/2022,C&M-PMS LES Basket of Procedures,LOCAL INCENTIVE SCHEMES,HEYWOOD FAMILY PRACTICE,42006076,"2,809.14"
Department of Health,NHS Bristol N Somerset S Glos ICB,31/08/2022,C&M-PMS LES DVT,LOCAL INCENTIVE SCHEMES,HEYWOOD FAMILY PRACTICE,42006076,53.33
Department of Health,NHS Bristol N Somerset S Glos ICB,31/08/2022,C&M-PMS LES Dementia,LOCAL INCENTIVE SCHEMES,HEYWOOD FAMILY PRACTICE,42006076,126.42
Department of Health,NHS Bristol N Somerset S Glos ICB,31/08/2022,C&M-PMS LES Diabetes-Insulin (GTT),LOCAL INCENTIVE SCHEMES,HEYWOOD FAMILY PRACTICE,42006076,58.33
Department of Health,NHS Bristol N Somerset S Glos ICB,31/08/2022,C&M-PMS NES Near Patient Testing,LOCAL INCENTIVE SCHEMES,HEYWOOD FAMILY PRACTICE,42006076,400.00
Department of Health,NHS Bristol N Somerset S Glos ICB,31/08/2022,C&M-PMS PCN DES Participation,DELEGATED GP,HEYWOOD FAMILY PRACTICE,42006076,984.74
Department of Health,NHS Bristol N Somerset S Glos ICB,31/08/2022,C&M-PMS Prem Notional Rent,DELEGATED GP,HEYWOOD FAMILY PRACTICE,42006076,"9,341.67"
Department of Health,NHS Bristol N Somerset S Glos ICB,31/08/2022,C&M-PMS QOF Aspiration,DELEGATED GP,HEYWOOD FAMILY PRACTICE,42006076,"6,902.79"
Department of Health,NHS Bristol N Somerset S Glos ICB,31/08/2022,C&M-PMS WEIGHT MANAGEMENT SERVICE,DELEGATED GP,HEYWOOD FAMILY PRACTICE,42006076,184.00
Department of Health,NHS Bristol N Somerset S Glos ICB,31/08/2022,C&M-PMS Contract Value,DELEGATED GP,HILLVIEW FAMILY PRACTICE,42006084,"51,883.15"
Department of Health,NHS Bristol N Somerset S Glos ICB,31/08/2022,C&M-PMS DES Learn Dsblty Hlth Chk,DELEGATED GP,HILLVIEW FAMILY PRACTICE,42006084,"3,360.00"
Department of Health,NHS Bristol N Somerset S Glos ICB,31/08/2022,C&M-PMS LES Anti-coagulation,LOCAL INCENTIVE SCHEMES,HILLVIEW FAMILY PRACTICE,42006084,42.75
Department of Health,NHS Bristol N Somerset S Glos ICB,31/08/2022,C&M-PMS LES Basket of Procedures,LOCAL INCENTIVE SCHEMES,HILLVIEW FAMILY PRACTICE,42006084,"5,923.89"
Department of Health,NHS Bristol N Somerset S Glos ICB,31/08/2022,C&M-PMS LES DVT,LOCAL INCENTIVE SCHEMES,HILLVIEW FAMILY PRACTICE,42006084,13.33
Department of Health,NHS Bristol N Somerset S Glos ICB,31/08/2022,C&M-PMS LES Dementia,LOCAL INCENTIVE SCHEMES,HILLVIEW FAMILY PRACTICE,42006084,56.33
Department of Health,NHS Bristol N Somerset S Glos ICB,31/08/2022,C&M-PMS NES Near Patient Testing,LOCAL INCENTIVE SCHEMES,HILLVIEW FAMILY PRACTICE,42006084,282.50
Department of Health,NHS Bristol N Somerset S Glos ICB,31/08/2022,C&M-PMS PCN DES Participation,DELEGATED GP,HILLVIEW FAMILY PRACTICE,42006084,930.06
Department of Health,NHS Bristol N Somerset S Glos ICB,31/08/2022,C&M-PMS QOF Aspiration,DELEGATED GP,HILLVIEW FAMILY PRACTICE,42006084,"5,142.54"
Department of Health,NHS Bristol N Somerset S Glos ICB,31/08/2022,Apprenticeship Levy Payable,BALANCE SHEET,HMRC,42101997,"7,802.00"
Department of Health,NHS Bristol N Somerset S Glos ICB,31/08/2022,Income tax <1Yr,BALANCE SHEET,HMRC,42101997,"255,223.89"
Department of Health,NHS Bristol N Somerset S Glos ICB,31/08/2022,Income tax <1Yr-Student Loans,BALANCE SHEET,HMRC,42101997,"10,099.00"
Department of Health,NHS Bristol N Somerset S Glos ICB,31/08/2022,National Insurance < 1 yr-NI- ERS,BALANCE SHEET,HMRC,42101997,"210,100.85"
Department of Health,NHS Bristol N Somerset S Glos ICB,31/08/2022,National Insurance < 1 yr-NI-EES,BALANCE SHEET,HMRC,42101997,"141,586.93"
Department of Health,NHS Bristol N Somerset S Glos ICB,31/08/2022,Post Graduate Loan Payable,BALANCE SHEET,HMRC,42101997,686.00
Department of Health,NHS Bristol N Somerset S Glos ICB,31/08/2022,Statutory Mat Pay < 1 yr,BALANCE SHEET,HMRC,42101997,"-8,111.11"
Department of Health,NHS Bristol N Somerset S Glos ICB,31/08/2022,Clinical&Medical-Commercial Sector,REABLEMENT,HORFIELD CARE LTD,42016536,"66,349.92"
Department of Health,NHS Bristol N Somerset S Glos ICB,31/08/2022,C&M-PMS Contract Value,DELEGATED GP,HORFIELD HEALTH CENTRE PROPERTY PARTNERSHIP,42006092,"125,608.07"
Department of Health,NHS Bristol N Somerset S Glos ICB,31/08/2022,C&M-PMS LES Anti-coagulation,LOCAL INCENTIVE SCHEMES,HORFIELD HEALTH CENTRE PROPERTY PARTNERSHIP,42006092,152.00
Department of Health,NHS Bristol N Somerset S Glos ICB,31/08/2022,C&M-PMS LES Basket of Procedures,LOCAL INCENTIVE SCHEMES,HORFIELD HEALTH CENTRE PROPERTY PARTNERSHIP,42006092,"14,684.16"
Department of Health,NHS Bristol N Somerset S Glos ICB,31/08/2022,C&M-PMS LES DVT,LOCAL INCENTIVE SCHEMES,HORFIELD HEALTH CENTRE PROPERTY PARTNERSHIP,42006092,120.00
Department of Health,NHS Bristol N Somerset S Glos ICB,31/08/2022,C&M-PMS LES Dementia,LOCAL INCENTIVE SCHEMES,HORFIELD HEALTH CENTRE PROPERTY PARTNERSHIP,42006092,588.17
Department of Health,NHS Bristol N Somerset S Glos ICB,31/08/2022,C&M-PMS LES Diabetes-Insulin (GTT),LOCAL INCENTIVE SCHEMES,HORFIELD HEALTH CENTRE PROPERTY PARTNERSHIP,42006092,233.33
Department of Health,NHS Bristol N Somerset S Glos ICB,31/08/2022,C&M-PMS NES Near Patient Testing,LOCAL INCENTIVE SCHEMES,HORFIELD HEALTH CENTRE PROPERTY PARTNERSHIP,42006092,809.17
Department of Health,NHS Bristol N Somerset S Glos ICB,31/08/2022,C&M-PMS PCN DES Participation,DELEGATED GP,HORFIELD HEALTH CENTRE PROPERTY PARTNERSHIP,42006092,"2,319.85"
Department of Health,NHS Bristol N Somerset S Glos ICB,31/08/2022,C&M-PMS Prem Notional Rent,DELEGATED GP,HORFIELD HEALTH CENTRE PROPERTY PARTNERSHIP,42006092,"14,241.67"
Department of Health,NHS Bristol N Somerset S Glos ICB,31/08/2022,C&M-PMS Prem Rates,DELEGATED GP,HORFIELD HEALTH CENTRE PROPERTY PARTNERSHIP,42006092,"30,976.00"
Department of Health,NHS Bristol N Somerset S Glos ICB,31/08/2022,C&M-PMS QOF Aspiration,DELEGATED GP,HORFIELD HEALTH CENTRE PROPERTY PARTNERSHIP,42006092,"12,282.56"
Department of Health,NHS Bristol N Somerset S Glos ICB,31/08/2022,C&M-PMS WEIGHT MANAGEMENT SERVICE,DELEGATED GP,HORFIELD HEALTH CENTRE PROPERTY PARTNERSHIP,42006092,103.50
Department of Health,NHS Bristol N Somerset S Glos ICB,31/08/2022,C&M-PMS Contract Value,DELEGATED GP,HORFIELD HEALTH CENTRE PROPERTY PARTNERSHIP,42006093,"-2,631.07"
Department of Health,NHS Bristol N Somerset S Glos ICB,31/08/2022,ME-PMS GP Pension Added Years EEs,DELEGATED GP,HORFIELD HEALTH CENTRE PROPERTY PARTNERSHIP,42006093,"-2,941.56"
Department of Health,NHS Bristol N Somerset S Glos ICB,31/08/2022,ME-PMS GP Pension EEs-PMS,DELEGATED GP,HORFIELD HEALTH CENTRE PROPERTY PARTNERSHIP,42006093,"-11,316.14"
Department of Health,NHS Bristol N Somerset S Glos ICB,31/08/2022,ME-PMS GP Pension ERs-PMS,DELEGATED GP,HORFIELD HEALTH CENTRE PROPERTY PARTNERSHIP,42006093,"-12,668.06"
Department of Health,NHS Bristol N Somerset S Glos ICB,31/08/2022,Contract & Agency-Agency Int Mgr,COMMISSIONING,HUNTER HEALTHCARE RESOURCING LTD,41950636,"41,131.85"
Department of Health,NHS Bristol N Somerset S Glos ICB,31/08/2022,Clinical&Medical-Commercial Sector,NEUROREHABILITATION,HUNTERCOMBE GROUP(THE),42102586,"29,730.00"
Department of Health,NHS Bristol N Somerset S Glos ICB,31/08/2022,Clinical&Medical-Commercial Sector,NEUROREHABILITATION,HUNTERCOMBE GROUP(THE),42157642,"66,788.63"
Department of Health,NHS Bristol N Somerset S Glos ICB,31/08/2022,Cont Care- Adult 100% Fully Funded,CHC ADULT FULLY FUNDED,HUNTERCOMBE GROUP(THE),42157686,"30,210.00"
Department of Health,NHS Bristol N Somerset S Glos ICB,31/08/2022,C&M-PMS Contract Value,DELEGATED GP,KENNEDY WAY SURGERY,42006090,"89,905.08"
Department of Health,NHS Bristol N Somerset S Glos ICB,31/08/2022,C&M-PMS LES Anti-coagulation,LOCAL INCENTIVE SCHEMES,KENNEDY WAY SURGERY,42006090,142.50
Department of Health,NHS Bristol N Somerset S Glos ICB,31/08/2022,C&M-PMS LES Basket of Procedures,LOCAL INCENTIVE SCHEMES,KENNEDY WAY SURGERY,42006090,"8,875.63"
Department of Health,NHS Bristol N Somerset S Glos ICB,31/08/2022,C&M-PMS LES DVT,LOCAL INCENTIVE SCHEMES,KENNEDY WAY SURGERY,42006090,80.00
Department of Health,NHS Bristol N Somerset S Glos ICB,31/08/2022,C&M-PMS LES Dementia,LOCAL INCENTIVE SCHEMES,KENNEDY WAY SURGERY,42006090,636.50
Department of Health,NHS Bristol N Somerset S Glos ICB,31/08/2022,C&M-PMS LES Diabetes-Insulin (GTT),LOCAL INCENTIVE SCHEMES,KENNEDY WAY SURGERY,42006090,116.67
Department of Health,NHS Bristol N Somerset S Glos ICB,31/08/2022,C&M-PMS NES Near Patient Testing,LOCAL INCENTIVE SCHEMES,KENNEDY WAY SURGERY,42006090,784.17
Department of Health,NHS Bristol N Somerset S Glos ICB,31/08/2022,C&M-PMS PCN DES Participation,DELEGATED GP,KENNEDY WAY SURGERY,42006090,"1,620.21"
Department of Health,NHS Bristol N Somerset S Glos ICB,31/08/2022,C&M-PMS Prem Notional Rent,DELEGATED GP,KENNEDY WAY SURGERY,42006090,"5,858.33"
Department of Health,NHS Bristol N Somerset S Glos ICB,31/08/2022,C&M-PMS QOF Aspiration,DELEGATED GP,KENNEDY WAY SURGERY,42006090,"8,686.64"
Department of Health,NHS Bristol N Somerset S Glos ICB,31/08/2022,ME-PMS GP Pension EEs-PMS,DELEGATED GP,KENNEDY WAY SURGERY,42006091,"-16,178.50"
Department of Health,NHS Bristol N Somerset S Glos ICB,31/08/2022,ME-PMS GP Pension ERs-PMS,DELEGATED GP,KENNEDY WAY SURGERY,42006091,"-17,156.45"
Department of Health,NHS Bristol N Somerset S Glos ICB,31/08/2022,C&M-PCN-PMS DES Leadership Payment,DELEGATED GP,KINGSWOOD HEALTH CENTRE,42025592,"2,931.37"
Department of Health,NHS Bristol N Somerset S Glos ICB,31/08/2022,C&M-PMS Contract Value,DELEGATED GP,KINGSWOOD HEALTH CENTRE,42025592,"93,392.82"
Department of Health,NHS Bristol N Somerset S Glos ICB,31/08/2022,C&M-PMS DES Extended Hours Access,DELEGATED GP,KINGSWOOD HEALTH CENTRE,42025592,"6,503.76"
Department of Health,NHS Bristol N Somerset S Glos ICB,31/08/2022,C&M-PMS LES Anti-coagulation,LOCAL INCENTIVE SCHEMES,KINGSWOOD HEALTH CENTRE,42025592,156.75
Department of Health,NHS Bristol N Somerset S Glos ICB,31/08/2022,C&M-PMS LES Basket of Procedures,LOCAL INCENTIVE SCHEMES,KINGSWOOD HEALTH CENTRE,42025592,"16,311.60"
Department of Health,NHS Bristol N Somerset S Glos ICB,31/08/2022,C&M-PMS LES DVT,LOCAL INCENTIVE SCHEMES,KINGSWOOD HEALTH CENTRE,42025592,130.00
Department of Health,NHS Bristol N Somerset S Glos ICB,31/08/2022,C&M-PMS LES Dementia,LOCAL INCENTIVE SCHEMES,KINGSWOOD HEALTH CENTRE,42025592,"1,208.25"
Department of Health,NHS Bristol N Somerset S Glos ICB,31/08/2022,C&M-PMS NES Near Patient Testing,LOCAL INCENTIVE SCHEMES,KINGSWOOD HEALTH CENTRE,42025592,643.33
Department of Health,NHS Bristol N Somerset S Glos ICB,31/08/2022,C&M-PMS PCN DES Clinical Director,DELEGATED GP,KINGSWOOD HEALTH CENTRE,42025592,"3,324.14"
Department of Health,NHS Bristol N Somerset S Glos ICB,31/08/2022,C&M-PMS PCN DES Participation,DELEGATED GP,KINGSWOOD HEALTH CENTRE,42025592,"1,704.11"
Department of Health,NHS Bristol N Somerset S Glos ICB,31/08/2022,C&M-PMS Prem Actual Rent,DELEGATED GP,KINGSWOOD HEALTH CENTRE,42025592,276.52
Department of Health,NHS Bristol N Somerset S Glos ICB,31/08/2022,C&M-PMS Prem Notional Rent,DELEGATED GP,KINGSWOOD HEALTH CENTRE,42025592,"16,568.33"
Department of Health,NHS Bristol N Somerset S Glos ICB,31/08/2022,C&M-PMS QOF Aspiration,DELEGATED GP,KINGSWOOD HEALTH CENTRE,42025592,"11,640.49"
Department of Health,NHS Bristol N Somerset S Glos ICB,31/08/2022,ME - PMS GP Prior Year ERs,DELEGATED GP,KINGSWOOD HEALTH CENTRE,42025592,"19,554.26"
Department of Health,NHS Bristol N Somerset S Glos ICB,31/08/2022,ME-PMS GP Pension AVCs,DELEGATED GP,KINGSWOOD HEALTH CENTRE,42025592,"3,156.56"
Department of Health,NHS Bristol N Somerset S Glos ICB,31/08/2022,ME-PMS GP Pension EEs-PMS,DELEGATED GP,KINGSWOOD HEALTH CENTRE,42025592,438.02
Department of Health,NHS Bristol N Somerset S Glos ICB,31/08/2022,ME-PMS GP Pension ERs-PMS,DELEGATED GP,KINGSWOOD HEALTH CENTRE,42025592,503.90
Department of Health,NHS Bristol N Somerset S Glos ICB,31/08/2022,ME-PMS GP Prior Year AVCs,DELEGATED GP,KINGSWOOD HEALTH CENTRE,42025592,"1,364.68"
Department of Health,NHS Bristol N Somerset S Glos ICB,31/08/2022,ME-PMS GP Prior Year EEs,DELEGATED GP,KINGSWOOD HEALTH CENTRE,42025592,"20,888.16"
Department of Health,NHS Bristol N Somerset S Glos ICB,31/08/2022,C&M- PCN DES CARE COORDINATOR,DELEGATED GP,KINGSWOOD HEALTH CENTRE,42189509,"8,706.64"
Department of Health,NHS Bristol N Somerset S Glos ICB,31/08/2022,C&M- PCN DES CARE HOME PREMIUM,DELEGATED GP,KINGSWOOD HEALTH CENTRE,42189509,"5,880.00"
Department of Health,NHS Bristol N Somerset S Glos ICB,31/08/2022,C&M-PCN DES PHARMACY TECHNICIANS,DELEGATED GP,KINGSWOOD HEALTH CENTRE,42189509,"9,742.48"
Department of Health,NHS Bristol N Somerset S Glos ICB,31/08/2022,C&M-PCN DES Paramedic Advanced Practitioner,DELEGATED GP,KINGSWOOD HEALTH CENTRE,42189509,"7,683.90"
Department of Health,NHS Bristol N Somerset S Glos ICB,31/08/2022,C&M-PMS C&M-APMS PCN DES Physician Assoc,DELEGATED GP,KINGSWOOD HEALTH CENTRE,42189509,"4,523.66"
Department of Health,NHS Bristol N Somerset S Glos ICB,31/08/2022,C&M-PMS LES Care Home/Nursing Home,LOCAL INCENTIVE SCHEMES,KINGSWOOD HEALTH CENTRE,42189509,"1,529.69"
Department of Health,NHS Bristol N Somerset S Glos ICB,31/08/2022,C&M-PMS LES Presc Incentive Sch,LOCAL INCENTIVE SCHEMES,KINGSWOOD HEALTH CENTRE,42189509,"9,488.50"
Department of Health,NHS Bristol N Somerset S Glos ICB,31/08/2022,C&M-PMS PCN DES Clin Pharmacist,DELEGATED GP,KINGSWOOD HEALTH CENTRE,42189509,"10,796.68"
Department of Health,NHS Bristol N Somerset S Glos ICB,31/08/2022,C&M-PMS PCN DES Physiotherapist,DELEGATED GP,KINGSWOOD HEALTH CENTRE,42189509,"8,597.70"
Department of Health,NHS Bristol N Somerset S Glos ICB,31/08/2022,C&M-PMS PCN DES Soc Prescribing,DELEGATED GP,KINGSWOOD HEALTH CENTRE,42189509,"5,015.83"
Department of Health,NHS Bristol N Somerset S Glos ICB,31/08/2022,C&M-PMS WEIGHT MANAGEMENT SERVICE,DELEGATED GP,KINGSWOOD HEALTH CENTRE,42189509,161.00
Department of Health,NHS Bristol N Somerset S Glos ICB,31/08/2022,Contract & Agency-Agency Int Mgr,PROGRAMME WIDE PROJECTS,KPMG LLP,41925304,"41,082.00"
Department of Health,NHS Bristol N Somerset S Glos ICB,31/08/2022,C&M-PMS Contract Value,DELEGATED GP,LAWRENCE HILL HEALTH CENTRE,42006103,"92,009.46"
Department of Health,NHS Bristol N Somerset S Glos ICB,31/08/2022,C&M-PMS LES Anti-coagulation,LOCAL INCENTIVE SCHEMES,LAWRENCE HILL HEALTH CENTRE,42006103,61.75
Department of Health,NHS Bristol N Somerset S Glos ICB,31/08/2022,C&M-PMS LES Basket of Procedures,LOCAL INCENTIVE SCHEMES,LAWRENCE HILL HEALTH CENTRE,42006103,"10,763.17"
Department of Health,NHS Bristol N Somerset S Glos ICB,31/08/2022,C&M-PMS LES Dementia,LOCAL INCENTIVE SCHEMES,LAWRENCE HILL HEALTH CENTRE,42006103,812.58
Department of Health,NHS Bristol N Somerset S Glos ICB,31/08/2022,C&M-PMS NES Near Patient Testing,LOCAL INCENTIVE SCHEMES,LAWRENCE HILL HEALTH CENTRE,42006103,339.17
Department of Health,NHS Bristol N Somerset S Glos ICB,31/08/2022,C&M-PMS PCN DES Participation,DELEGATED GP,LAWRENCE HILL HEALTH CENTRE,42006103,"1,703.49"
Department of Health,NHS Bristol N Somerset S Glos ICB,31/08/2022,C&M-PMS Prem Notional Rent,DELEGATED GP,LAWRENCE HILL HEALTH CENTRE,42006103,"11,308.33"
Department of Health,NHS Bristol N Somerset S Glos ICB,31/08/2022,C&M-PMS QOF Aspiration,DELEGATED GP,LAWRENCE HILL HEALTH CENTRE,42006103,"6,819.38"
Department of Health,NHS Bristol N Somerset S Glos ICB,31/08/2022,C&M-PMS WEIGHT MANAGEMENT SERVICE,DELEGATED GP,LAWRENCE HILL HEALTH CENTRE,42006103,103.50
Department of Health,NHS Bristol N Somerset S Glos ICB,31/08/2022,C&M-PMS Contract Value,DELEGATED GP,LEAP VALLEY SURGERY,42006105,"63,887.89"
Department of Health,NHS Bristol N Somerset S Glos ICB,31/08/2022,C&M-PMS DES Learn Dsblty Hlth Chk,DELEGATED GP,LEAP VALLEY SURGERY,42006105,"1,120.00"
Department of Health,NHS Bristol N Somerset S Glos ICB,31/08/2022,C&M-PMS LES Anti-coagulation,LOCAL INCENTIVE SCHEMES,LEAP VALLEY SURGERY,42006105,109.25
Department of Health,NHS Bristol N Somerset S Glos ICB,31/08/2022,C&M-PMS LES Basket of Procedures,LOCAL INCENTIVE SCHEMES,LEAP VALLEY SURGERY,42006105,"6,886.29"
Department of Health,NHS Bristol N Somerset S Glos ICB,31/08/2022,C&M-PMS NES Near Patient Testing,LOCAL INCENTIVE SCHEMES,LEAP VALLEY SURGERY,42006105,414.17
Department of Health,NHS Bristol N Somerset S Glos ICB,31/08/2022,C&M-PMS PCN DES Participation,DELEGATED GP,LEAP VALLEY SURGERY,42006105,"1,180.19"
Department of Health,NHS Bristol N Somerset S Glos ICB,31/08/2022,C&M-PMS Prem Notional Rent,DELEGATED GP,LEAP VALLEY SURGERY,42006105,"1,266.67"
Department of Health,NHS Bristol N Somerset S Glos ICB,31/08/2022,C&M-PMS QOF Aspiration,DELEGATED GP,LEAP VALLEY SURGERY,42006105,"6,277.89"
Department of Health,NHS Bristol N Somerset S Glos ICB,31/08/2022,C&M-PMS WEIGHT MANAGEMENT SERVICE,DELEGATED GP,LEAP VALLEY SURGERY,42006105,103.50
Department of Health,NHS Bristol N Somerset S Glos ICB,31/08/2022,C&M-PMS Contract Value,DELEGATED GP,LEAP VALLEY SURGERY,42006106,"-3,859.02"
Department of Health,NHS Bristol N Somerset S Glos ICB,31/08/2022,ME - PMS GP Prior Year ERs,DELEGATED GP,LEAP VALLEY SURGERY,42006106,"-3,636.76"
Department of Health,NHS Bristol N Somerset S Glos ICB,31/08/2022,ME-PMS GP Pension EEs-PMS,DELEGATED GP,LEAP VALLEY SURGERY,42006106,"-8,610.28"
Department of Health,NHS Bristol N Somerset S Glos ICB,31/08/2022,ME-PMS GP Pension ERs-PMS,DELEGATED GP,LEAP VALLEY SURGERY,42006106,"-8,690.29"
Department of Health,NHS Bristol N Somerset S Glos ICB,31/08/2022,ME-PMS GP Prior Year EEs,DELEGATED GP,LEAP VALLEY SURGERY,42006106,"-3,667.11"
Department of Health,NHS Bristol N Somerset S Glos ICB,31/08/2022,C&M-PMS Contract Value,DELEGATED GP,LENNARD SURGERY (THE),42006175,"69,862.80"
Department of Health,NHS Bristol N Somerset S Glos ICB,31/08/2022,C&M-PMS LES Anti-coagulation,LOCAL INCENTIVE SCHEMES,LENNARD SURGERY (THE),42006175,80.75
Department of Health,NHS Bristol N Somerset S Glos ICB,31/08/2022,C&M-PMS LES Basket of Procedures,LOCAL INCENTIVE SCHEMES,LENNARD SURGERY (THE),42006175,"8,052.52"
Department of Health,NHS Bristol N Somerset S Glos ICB,31/08/2022,C&M-PMS LES DVT,LOCAL INCENTIVE SCHEMES,LENNARD SURGERY (THE),42006175,26.67
Department of Health,NHS Bristol N Somerset S Glos ICB,31/08/2022,C&M-PMS LES Dementia,LOCAL INCENTIVE SCHEMES,LENNARD SURGERY (THE),42006175,530.50
Department of Health,NHS Bristol N Somerset S Glos ICB,31/08/2022,C&M-PMS NES Near Patient Testing,LOCAL INCENTIVE SCHEMES,LENNARD SURGERY (THE),42006175,440.83
Department of Health,NHS Bristol N Somerset S Glos ICB,31/08/2022,C&M-PMS PCN DES Participation,DELEGATED GP,LENNARD SURGERY (THE),42006175,"1,273.80"
Department of Health,NHS Bristol N Somerset S Glos ICB,31/08/2022,C&M-PMS Prem Notional Rent,DELEGATED GP,LENNARD SURGERY (THE),42006175,"4,883.33"
Department of Health,NHS Bristol N Somerset S Glos ICB,31/08/2022,C&M-PMS QOF Aspiration,DELEGATED GP,LENNARD SURGERY (THE),42006175,"7,472.31"
Department of Health,NHS Bristol N Somerset S Glos ICB,31/08/2022,C&M-PMS WEIGHT MANAGEMENT SERVICE,DELEGATED GP,LENNARD SURGERY (THE),42006175,218.50
Department of Health,NHS Bristol N Somerset S Glos ICB,31/08/2022,Cont Care- Palliative Care,CHC ADULT - FULLY FUNDED - FAST TRACK,LEONARD CHESHIRE DISABILITY,42157811,"65,551.83"
Department of Health,NHS Bristol N Somerset S Glos ICB,31/08/2022,C&M-APMS LES Anti-coagulation,LOCAL INCENTIVE SCHEMES,LOCALITY HEALTH CENTRE,42006095,160.00
Department of Health,NHS Bristol N Somerset S Glos ICB,31/08/2022,C&M-APMS LES Basket of Procedures,LOCAL INCENTIVE SCHEMES,LOCALITY HEALTH CENTRE,42006095,"2,353.58"
Department of Health,NHS Bristol N Somerset S Glos ICB,31/08/2022,C&M-APMS LES Dementia,LOCAL INCENTIVE SCHEMES,LOCALITY HEALTH CENTRE,42006095,126.42
Department of Health,NHS Bristol N Somerset S Glos ICB,31/08/2022,C&M-APMS List Size Adjustment,DELEGATED GP,LOCALITY HEALTH CENTRE,42006095,"44,945.82"
Department of Health,NHS Bristol N Somerset S Glos ICB,31/08/2022,C&M-APMS NES Near Patient Testing,LOCAL INCENTIVE SCHEMES,LOCALITY HEALTH CENTRE,42006095,310.83
Department of Health,NHS Bristol N Somerset S Glos ICB,31/08/2022,C&M-APMS PCN DES Participation,DELEGATED GP,LOCALITY HEALTH CENTRE,42006095,833.42
Department of Health,NHS Bristol N Somerset S Glos ICB,31/08/2022,C&M-APMS QOF Aspiration,DELEGATED GP,LOCALITY HEALTH CENTRE,42006095,"4,659.48"
Department of Health,NHS Bristol N Somerset S Glos ICB,31/08/2022,C&M-PMS Contract Value,DELEGATED GP,LOCKING CASTLE MEDICAL CENTRE,42025601,"80,830.78"
Department of Health,NHS Bristol N Somerset S Glos ICB,31/08/2022,C&M-PMS LES Anti-coagulation,LOCAL INCENTIVE SCHEMES,LOCKING CASTLE MEDICAL CENTRE,42025601,480.00
Department of Health,NHS Bristol N Somerset S Glos ICB,31/08/2022,C&M-PMS LES Basket of Procedures,LOCAL INCENTIVE SCHEMES,LOCKING CASTLE MEDICAL CENTRE,42025601,"4,324.72"
Department of Health,NHS Bristol N Somerset S Glos ICB,31/08/2022,C&M-PMS LES Dementia,LOCAL INCENTIVE SCHEMES,LOCKING CASTLE MEDICAL CENTRE,42025601,303.83
Department of Health,NHS Bristol N Somerset S Glos ICB,31/08/2022,C&M-PMS NES Near Patient Testing,LOCAL INCENTIVE SCHEMES,LOCKING CASTLE MEDICAL CENTRE,42025601,520.83
Department of Health,NHS Bristol N Somerset S Glos ICB,31/08/2022,C&M-PMS PCN DES Participation,DELEGATED GP,LOCKING CASTLE MEDICAL CENTRE,42025601,"1,489.18"
Department of Health,NHS Bristol N Somerset S Glos ICB,31/08/2022,C&M-PMS Prem Actual Rent,DELEGATED GP,LOCKING CASTLE MEDICAL CENTRE,42025601,"25,050.00"
Department of Health,NHS Bristol N Somerset S Glos ICB,31/08/2022,C&M-PMS Prem Water Rates,DELEGATED GP,LOCKING CASTLE MEDICAL CENTRE,42025601,"1,005.50"
Department of Health,NHS Bristol N Somerset S Glos ICB,31/08/2022,C&M-PMS QOF Aspiration,DELEGATED GP,LOCKING CASTLE MEDICAL CENTRE,42025601,"8,090.49"
Department of Health,NHS Bristol N Somerset S Glos ICB,31/08/2022,C&M- PCN DES CARE COORDINATOR,DELEGATED GP,MENDIP VALE MEDICAL PRACTICE,42189505,"10,944.14"
Department of Health,NHS Bristol N Somerset S Glos ICB,31/08/2022,C&M- PCN DES CARE HOME PREMIUM,DELEGATED GP,MENDIP VALE MEDICAL PRACTICE,42189505,"4,210.00"
Department of Health,NHS Bristol N Somerset S Glos ICB,31/08/2022,C&M-GMS DES Extended Hours Access,DELEGATED GP,MENDIP VALE MEDICAL PRACTICE,42189505,"5,516.04"
Department of Health,NHS Bristol N Somerset S Glos ICB,31/08/2022,C&M-GMS Global Sum,DELEGATED GP,MENDIP VALE MEDICAL PRACTICE,42189505,"365,405.04"
Department of Health,NHS Bristol N Somerset S Glos ICB,31/08/2022,C&M-GMS LES Anti-coagulation,LOCAL INCENTIVE SCHEMES,MENDIP VALE MEDICAL PRACTICE,42189505,"1,560.00"
Department of Health,NHS Bristol N Somerset S Glos ICB,31/08/2022,C&M-GMS LES Basket of Procedures,LOCAL INCENTIVE SCHEMES,MENDIP VALE MEDICAL PRACTICE,42189505,"24,334.55"
Department of Health,NHS Bristol N Somerset S Glos ICB,31/08/2022,C&M-GMS LES Care Home/Nursing Home,LOCAL INCENTIVE SCHEMES,MENDIP VALE MEDICAL PRACTICE,42189505,"1,939.76"
Department of Health,NHS Bristol N Somerset S Glos ICB,31/08/2022,C&M-GMS LES DVT,LOCAL INCENTIVE SCHEMES,MENDIP VALE MEDICAL PRACTICE,42189505,10.00
Department of Health,NHS Bristol N Somerset S Glos ICB,31/08/2022,C&M-GMS LES Dementia,LOCAL INCENTIVE SCHEMES,MENDIP VALE MEDICAL PRACTICE,42189505,"1,856.75"
Department of Health,NHS Bristol N Somerset S Glos ICB,31/08/2022,C&M-GMS LES Diabetes-Insulin (GTT),LOCAL INCENTIVE SCHEMES,MENDIP VALE MEDICAL PRACTICE,42189505,58.33
Department of Health,NHS Bristol N Somerset S Glos ICB,31/08/2022,C&M-GMS LES Presc Incentive Sch,LOCAL INCENTIVE SCHEMES,MENDIP VALE MEDICAL PRACTICE,42189505,"40,263.25"
Department of Health,NHS Bristol N Somerset S Glos ICB,31/08/2022,C&M-GMS NES Near Patient Testing,LOCAL INCENTIVE SCHEMES,MENDIP VALE MEDICAL PRACTICE,42189505,"2,323.33"
Department of Health,NHS Bristol N Somerset S Glos ICB,31/08/2022,C&M-GMS PCN DES Clin Pharmacist,DELEGATED GP,MENDIP VALE MEDICAL PRACTICE,42189505,"14,329.50"
Department of Health,NHS Bristol N Somerset S Glos ICB,31/08/2022,C&M-GMS PCN DES Clinical Director,DELEGATED GP,MENDIP VALE MEDICAL PRACTICE,42189505,"2,819.31"
Department of Health,NHS Bristol N Somerset S Glos ICB,31/08/2022,C&M-GMS PCN DES Participation,DELEGATED GP,MENDIP VALE MEDICAL PRACTICE,42189505,"6,687.80"
Department of Health,NHS Bristol N Somerset S Glos ICB,31/08/2022,C&M-GMS PCN DES Physiotherapist,DELEGATED GP,MENDIP VALE MEDICAL PRACTICE,42189505,"7,752.82"
Department of Health,NHS Bristol N Somerset S Glos ICB,31/08/2022,C&M-GMS PCN DES Soc Prescribing,DELEGATED GP,MENDIP VALE MEDICAL PRACTICE,42189505,"8,985.01"
Department of Health,NHS Bristol N Somerset S Glos ICB,31/08/2022,C&M-GMS Prem Notional Rent,DELEGATED GP,MENDIP VALE MEDICAL PRACTICE,42189505,"29,969.34"
Department of Health,NHS Bristol N Somerset S Glos ICB,31/08/2022,C&M-GMS Prem Water Rates,DELEGATED GP,MENDIP VALE MEDICAL PRACTICE,42189505,537.97
Department of Health,NHS Bristol N Somerset S Glos ICB,31/08/2022,C&M-GMS QOF Aspiration,DELEGATED GP,MENDIP VALE MEDICAL PRACTICE,42189505,"39,803.85"
Department of Health,NHS Bristol N Somerset S Glos ICB,31/08/2022,C&M-GMS WEIGHT MANAGEMENT SERVICE,DELEGATED GP,MENDIP VALE MEDICAL PRACTICE,42189505,368.00
Department of Health,NHS Bristol N Somerset S Glos ICB,31/08/2022,C&M-PCN DES Paramedic Advanced Practitioner,DELEGATED GP,MENDIP VALE MEDICAL PRACTICE,42189505,"21,834.83"
Department of Health,NHS Bristol N Somerset S Glos ICB,31/08/2022,C&M-PCN-GMS DES Leadership Payment,DELEGATED GP,MENDIP VALE MEDICAL PRACTICE,42189505,"2,502.59"
Department of Health,NHS Bristol N Somerset S Glos ICB,31/08/2022,ME - GMS GP Prior Year ERs,DELEGATED GP,MENDIP VALE MEDICAL PRACTICE,42189505,38.19
Department of Health,NHS Bristol N Somerset S Glos ICB,31/08/2022,ME - GMS GP Prior Year ERs,DELEGATED GP,MENDIP VALE MEDICAL PRACTICE,42189506,"-25,064.67"
Department of Health,NHS Bristol N Somerset S Glos ICB,31/08/2022,ME-GMS GP Pension EEs,DELEGATED GP,MENDIP VALE MEDICAL PRACTICE,42189506,"-33,207.94"
Department of Health,NHS Bristol N Somerset S Glos ICB,31/08/2022,ME-GMS GP Pension ERs,DELEGATED GP,MENDIP VALE MEDICAL PRACTICE,42189506,"-34,928.40"
Department of Health,NHS Bristol N Somerset S Glos ICB,31/08/2022,ME-GMS GP Prior Year EEs,DELEGATED GP,MENDIP VALE MEDICAL PRACTICE,42189506,"-24,732.87"
Department of Health,NHS Bristol N Somerset S Glos ICB,31/08/2022,C&M-GMS Cost of Drugs -Dispensing,CENTRAL DRUGS,MENDIP VALE MEDICAL PRACTICE,42197986,"69,670.67"
Department of Health,NHS Bristol N Somerset S Glos ICB,31/08/2022,C&M-GMS Prof Fees Dispensing,CENTRAL DRUGS,MENDIP VALE MEDICAL PRACTICE,42197986,"16,201.24"
Department of Health,NHS Bristol N Somerset S Glos ICB,31/08/2022,C&M-PMS Contract Value,DELEGATED GP,MERRYWOOD PRACTICE,42006181,"56,183.49"
Department of Health,NHS Bristol N Somerset S Glos ICB,31/08/2022,C&M-PMS LES Anti-coagulation,LOCAL INCENTIVE SCHEMES,MERRYWOOD PRACTICE,42006181,85.50
Department of Health,NHS Bristol N Somerset S Glos ICB,31/08/2022,C&M-PMS LES Basket of Procedures,LOCAL INCENTIVE SCHEMES,MERRYWOOD PRACTICE,42006181,"6,198.69"
Department of Health,NHS Bristol N Somerset S Glos ICB,31/08/2022,C&M-PMS LES DVT,LOCAL INCENTIVE SCHEMES,MERRYWOOD PRACTICE,42006181,13.33
Department of Health,NHS Bristol N Somerset S Glos ICB,31/08/2022,C&M-PMS LES Dementia,LOCAL INCENTIVE SCHEMES,MERRYWOOD PRACTICE,42006181,97.58
Department of Health,NHS Bristol N Somerset S Glos ICB,31/08/2022,C&M-PMS NES Near Patient Testing,LOCAL INCENTIVE SCHEMES,MERRYWOOD PRACTICE,42006181,311.67
Department of Health,NHS Bristol N Somerset S Glos ICB,31/08/2022,C&M-PMS PCN DES Participation,DELEGATED GP,MERRYWOOD PRACTICE,42006181,"1,022.54"
Department of Health,NHS Bristol N Somerset S Glos ICB,31/08/2022,C&M-PMS QOF Aspiration,DELEGATED GP,MERRYWOOD PRACTICE,42006181,"5,941.37"
Department of Health,NHS Bristol N Somerset S Glos ICB,31/08/2022,C&M-PMS WEIGHT MANAGEMENT SERVICE,DELEGATED GP,MERRYWOOD PRACTICE,42006181,11.50
Department of Health,NHS Bristol N Somerset S Glos ICB,31/08/2022,Cont Care- Adult 100% Fully Funded,CHC ADULT FULLY FUNDED,MILESTONES TRUST,41961226,"26,414.84"
Department of Health,NHS Bristol N Somerset S Glos ICB,31/08/2022,Cont Care- Adult 100% Fully Funded,CHC ADULT FULLY FUNDED,MILESTONES TRUST,42102814,"39,622.26"
Department of Health,NHS Bristol N Somerset S Glos ICB,31/08/2022,Cont Care- Adult 100% Fully Funded,CHC ADULT FULLY FUNDED,MILESTONES TRUST,42102831,"31,093.92"
Department of Health,NHS Bristol N Somerset S Glos ICB,31/08/2022,Clinical&Medical-Voluntary Sector,MENTAL HEALTH ACT,MILESTONES TRUST,42102838,"36,255.67"
Department of Health,NHS Bristol N Somerset S Glos ICB,31/08/2022,C&M-PMS Contract Value,DELEGATED GP,MILTON SURGERY,42006183,"79,962.45"
Department of Health,NHS Bristol N Somerset S Glos ICB,31/08/2022,C&M-PMS LES Anti-coagulation,LOCAL INCENTIVE SCHEMES,MILTON SURGERY,42006183,386.67
Department of Health,NHS Bristol N Somerset S Glos ICB,31/08/2022,C&M-PMS LES Basket of Procedures,LOCAL INCENTIVE SCHEMES,MILTON SURGERY,42006183,"4,067.09"
Department of Health,NHS Bristol N Somerset S Glos ICB,31/08/2022,C&M-PMS LES Dementia,LOCAL INCENTIVE SCHEMES,MILTON SURGERY,42006183,617.00
Department of Health,NHS Bristol N Somerset S Glos ICB,31/08/2022,C&M-PMS NES Near Patient Testing,LOCAL INCENTIVE SCHEMES,MILTON SURGERY,42006183,550.00
Department of Health,NHS Bristol N Somerset S Glos ICB,31/08/2022,C&M-PMS PCN DES Participation,DELEGATED GP,MILTON SURGERY,42006183,"1,461.46"
Department of Health,NHS Bristol N Somerset S Glos ICB,31/08/2022,C&M-PMS Prem Notional Rent,DELEGATED GP,MILTON SURGERY,42006183,"4,090.21"
Department of Health,NHS Bristol N Somerset S Glos ICB,31/08/2022,C&M-PMS QOF Aspiration,DELEGATED GP,MILTON SURGERY,42006183,"10,485.61"
Department of Health,NHS Bristol N Somerset S Glos ICB,31/08/2022,C&M-PMS Contract Value,DELEGATED GP,MONKS PARK SURGERY,42006099,"63,087.32"
Department of Health,NHS Bristol N Somerset S Glos ICB,31/08/2022,C&M-PMS LES Anti-coagulation,LOCAL INCENTIVE SCHEMES,MONKS PARK SURGERY,42006099,104.50
Department of Health,NHS Bristol N Somerset S Glos ICB,31/08/2022,C&M-PMS LES Basket of Procedures,LOCAL INCENTIVE SCHEMES,MONKS PARK SURGERY,42006099,"6,180.36"
Department of Health,NHS Bristol N Somerset S Glos ICB,31/08/2022,C&M-PMS LES Dementia,LOCAL INCENTIVE SCHEMES,MONKS PARK SURGERY,42006099,97.58
Department of Health,NHS Bristol N Somerset S Glos ICB,31/08/2022,C&M-PMS NES Near Patient Testing,LOCAL INCENTIVE SCHEMES,MONKS PARK SURGERY,42006099,285.00
Department of Health,NHS Bristol N Somerset S Glos ICB,31/08/2022,C&M-PMS PCN DES Participation,DELEGATED GP,MONKS PARK SURGERY,42006099,976.31
Department of Health,NHS Bristol N Somerset S Glos ICB,31/08/2022,C&M-PMS Prem Notional Rent,DELEGATED GP,MONKS PARK SURGERY,42006099,"4,975.25"
Department of Health,NHS Bristol N Somerset S Glos ICB,31/08/2022,C&M-PMS QOF Aspiration,DELEGATED GP,MONKS PARK SURGERY,42006099,"5,579.50"
Department of Health,NHS Bristol N Somerset S Glos ICB,31/08/2022,ME - PMS GP Prior Year ERs,DELEGATED GP,MONKS PARK SURGERY,42006100,"-21,770.36"
Department of Health,NHS Bristol N Somerset S Glos ICB,31/08/2022,ME-PMS GP Pension EEs-PMS,DELEGATED GP,MONKS PARK SURGERY,42006100,"-10,807.98"
Department of Health,NHS Bristol N Somerset S Glos ICB,31/08/2022,ME-PMS GP Pension ERs-PMS,DELEGATED GP,MONKS PARK SURGERY,42006100,"-10,859.85"
Department of Health,NHS Bristol N Somerset S Glos ICB,31/08/2022,ME-PMS GP Prior Year EEs,DELEGATED GP,MONKS PARK SURGERY,42006100,"-22,192.28"
Department of Health,NHS Bristol N Somerset S Glos ICB,31/08/2022,C&M-PMS Contract Value,DELEGATED GP,MONTPELIER HEALTH CENTRE,42006101,"148,655.97"
Department of Health,NHS Bristol N Somerset S Glos ICB,31/08/2022,C&M-PMS LES Anti-coagulation,LOCAL INCENTIVE SCHEMES,MONTPELIER HEALTH CENTRE,42006101,99.75
Department of Health,NHS Bristol N Somerset S Glos ICB,31/08/2022,C&M-PMS LES Basket of Procedures,LOCAL INCENTIVE SCHEMES,MONTPELIER HEALTH CENTRE,42006101,"17,698.00"
Department of Health,NHS Bristol N Somerset S Glos ICB,31/08/2022,C&M-PMS LES Dementia,LOCAL INCENTIVE SCHEMES,MONTPELIER HEALTH CENTRE,42006101,83.83
Department of Health,NHS Bristol N Somerset S Glos ICB,31/08/2022,C&M-PMS NES Near Patient Testing,LOCAL INCENTIVE SCHEMES,MONTPELIER HEALTH CENTRE,42006101,422.50
Department of Health,NHS Bristol N Somerset S Glos ICB,31/08/2022,C&M-PMS PCN DES Participation,DELEGATED GP,MONTPELIER HEALTH CENTRE,42006101,"2,732.79"
Department of Health,NHS Bristol N Somerset S Glos ICB,31/08/2022,C&M-PMS Prem Notional Rent,DELEGATED GP,MONTPELIER HEALTH CENTRE,42006101,"3,191.33"
Department of Health,NHS Bristol N Somerset S Glos ICB,31/08/2022,C&M-PMS QOF Aspiration,DELEGATED GP,MONTPELIER HEALTH CENTRE,42006101,"10,518.15"
Department of Health,NHS Bristol N Somerset S Glos ICB,31/08/2022,C&M-PMS WEIGHT MANAGEMENT SERVICE,DELEGATED GP,MONTPELIER HEALTH CENTRE,42006101,115.00
Department of Health,NHS Bristol N Somerset S Glos ICB,31/08/2022,C&M- PCN DES CARE COORDINATOR,DELEGATED GP,NAILSEA FAMILY PRACTICE,42189515,"13,708.60"
Department of Health,NHS Bristol N Somerset S Glos ICB,31/08/2022,C&M- PCN DES CARE HOME PREMIUM,DELEGATED GP,NAILSEA FAMILY PRACTICE,42189515,"2,400.00"
Department of Health,NHS Bristol N Somerset S Glos ICB,31/08/2022,C&M-GMS DES Extended Hours Access,DELEGATED GP,NAILSEA FAMILY PRACTICE,42189515,"3,974.28"
Department of Health,NHS Bristol N Somerset S Glos ICB,31/08/2022,C&M-GMS DES Learn Dsblty Hlth Chk,DELEGATED GP,NAILSEA FAMILY PRACTICE,42189515,"1,120.00"
Department of Health,NHS Bristol N Somerset S Glos ICB,31/08/2022,C&M-GMS DES Minor Surgery,DELEGATED GP,NAILSEA FAMILY PRACTICE,42189515,"4,518.42"
Department of Health,NHS Bristol N Somerset S Glos ICB,31/08/2022,C&M-GMS Global Sum,DELEGATED GP,NAILSEA FAMILY PRACTICE,42189515,"259,528.89"
Department of Health,NHS Bristol N Somerset S Glos ICB,31/08/2022,C&M-GMS LES Anti-coagulation,LOCAL INCENTIVE SCHEMES,NAILSEA FAMILY PRACTICE,42189515,"2,400.00"
Department of Health,NHS Bristol N Somerset S Glos ICB,31/08/2022,C&M-GMS LES Basket of Procedures,LOCAL INCENTIVE SCHEMES,NAILSEA FAMILY PRACTICE,42189515,"18,222.01"
Department of Health,NHS Bristol N Somerset S Glos ICB,31/08/2022,C&M-GMS LES Care Home/Nursing Home,LOCAL INCENTIVE SCHEMES,NAILSEA FAMILY PRACTICE,42189515,"1,105.80"
Department of Health,NHS Bristol N Somerset S Glos ICB,31/08/2022,C&M-GMS LES Dementia,LOCAL INCENTIVE SCHEMES,NAILSEA FAMILY PRACTICE,42189515,"1,754.75"
Department of Health,NHS Bristol N Somerset S Glos ICB,31/08/2022,C&M-GMS LES Presc Incentive Sch,LOCAL INCENTIVE SCHEMES,NAILSEA FAMILY PRACTICE,42189515,"33,055.00"
Department of Health,NHS Bristol N Somerset S Glos ICB,31/08/2022,C&M-GMS NES Near Patient Testing,LOCAL INCENTIVE SCHEMES,NAILSEA FAMILY PRACTICE,42189515,"1,733.33"
Department of Health,NHS Bristol N Somerset S Glos ICB,31/08/2022,C&M-GMS PCN DES Clin Pharmacist,DELEGATED GP,NAILSEA FAMILY PRACTICE,42189515,"7,322.37"
Department of Health,NHS Bristol N Somerset S Glos ICB,31/08/2022,C&M-GMS PCN DES Clinical Director,DELEGATED GP,NAILSEA FAMILY PRACTICE,42189515,"2,031.30"
Department of Health,NHS Bristol N Somerset S Glos ICB,31/08/2022,C&M-GMS PCN DES Participation,DELEGATED GP,NAILSEA FAMILY PRACTICE,42189515,"4,773.20"
Department of Health,NHS Bristol N Somerset S Glos ICB,31/08/2022,C&M-GMS PCN DES Physiotherapist,DELEGATED GP,NAILSEA FAMILY PRACTICE,42189515,"4,785.85"
Department of Health,NHS Bristol N Somerset S Glos ICB,31/08/2022,C&M-GMS PCN DES Soc Prescribing,DELEGATED GP,NAILSEA FAMILY PRACTICE,42189515,"2,889.61"
Department of Health,NHS Bristol N Somerset S Glos ICB,31/08/2022,C&M-GMS Prem Notional Rent,DELEGATED GP,NAILSEA FAMILY PRACTICE,42189515,"33,592.17"
Department of Health,NHS Bristol N Somerset S Glos ICB,31/08/2022,C&M-GMS Prem Water Rates,DELEGATED GP,NAILSEA FAMILY PRACTICE,42189515,461.50
Department of Health,NHS Bristol N Somerset S Glos ICB,31/08/2022,C&M-GMS QOF Aspiration,DELEGATED GP,NAILSEA FAMILY PRACTICE,42189515,"31,318.68"
Department of Health,NHS Bristol N Somerset S Glos ICB,31/08/2022,C&M-GMS WEIGHT MANAGEMENT SERVICE,DELEGATED GP,NAILSEA FAMILY PRACTICE,42189515,264.50
Department of Health,NHS Bristol N Somerset S Glos ICB,31/08/2022,C&M-NCD Pharmacy Technician,DELEGATED GP,NAILSEA FAMILY PRACTICE,42189515,"2,909.28"
Department of Health,NHS Bristol N Somerset S Glos ICB,31/08/2022,C&M-PCN-GMS DES Leadership Payment,DELEGATED GP,NAILSEA FAMILY PRACTICE,42189515,"1,796.95"
Department of Health,NHS Bristol N Somerset S Glos ICB,31/08/2022,ME-GMS GP Prior Year EEs,DELEGATED GP,NAILSEA FAMILY PRACTICE,42189515,254.54
Department of Health,NHS Bristol N Somerset S Glos ICB,31/08/2022,ME - GMS GP Prior Year ERs,DELEGATED GP,NAILSEA FAMILY PRACTICE,42189516,"-6,260.26"
Department of Health,NHS Bristol N Somerset S Glos ICB,31/08/2022,ME-GMS GP Pension Added Years EEs,DELEGATED GP,NAILSEA FAMILY PRACTICE,42189516,-849.70
Department of Health,NHS Bristol N Somerset S Glos ICB,31/08/2022,ME-GMS GP Pension EEs,DELEGATED GP,NAILSEA FAMILY PRACTICE,42189516,"-20,346.74"
Department of Health,NHS Bristol N Somerset S Glos ICB,31/08/2022,ME-GMS GP Pension ERs,DELEGATED GP,NAILSEA FAMILY PRACTICE,42189516,"-22,659.12"
Department of Health,NHS Bristol N Somerset S Glos ICB,31/08/2022,ME-GMS GP Prior Year EEs,DELEGATED GP,NAILSEA FAMILY PRACTICE,42189516,-800.94
Department of Health,NHS Bristol N Somerset S Glos ICB,31/08/2022,Cont Care- Adult 100% Fully Funded,CHC ADULT FULLY FUNDED,NAS SERVICES LTD,42157507,"23,212.84"
Department of Health,NHS Bristol N Somerset S Glos ICB,31/08/2022,Cont Care- Adult 100% Fully Funded,CHC ADULT FULLY FUNDED,NAS SERVICES LTD,42177122,"23,986.60"
Department of Health,NHS Bristol N Somerset S Glos ICB,31/08/2022,Cont Care- Adult 100% Fully Funded,CHC ADULT FULLY FUNDED,NAS SERVICES LTD,42177153,"23,986.60"
Department of Health,NHS Bristol N Somerset S Glos ICB,31/08/2022,Cont Care- Children,CHILDRENS CONTINUING CARE,NAS SERVICES LTD,42177163,"23,083.73"
Department of Health,NHS Bristol N Somerset S Glos ICB,31/08/2022,Cont Care- Adult 100% Fully Funded,CHC ADULT FULLY FUNDED,NAS SERVICES LTD,42259087,"21,921.69"
Department of Health,NHS Bristol N Somerset S Glos ICB,31/08/2022,Cont Care- Adult 100% Fully Funded,CHC ADULT FULLY FUNDED,NAS SERVICES LTD,42259108,"21,921.69"
Department of Health,NHS Bristol N Somerset S Glos ICB,31/08/2022,Cont Care- Adult 100% Fully Funded,CHC ADULT FULLY FUNDED,NATIONAL STAR FOUNDATION LTD,42102581,"45,621.08"
Department of Health,NHS Bristol N Somerset S Glos ICB,31/08/2022,Cont Care- Adult 100% Fully Funded,CHC ADULT FULLY FUNDED,NATIONAL STAR FOUNDATION LTD,42154312,"56,320.91"
Department of Health,NHS Bristol N Somerset S Glos ICB,31/08/2022,Cont Care- Palliative Care,CHC ADULT - FULLY FUNDED - FAST TRACK,NETWORK HEALTHCARE PROFESSIONAL LTD,42258927,"48,956.70"
Department of Health,NHS Bristol N Somerset S Glos ICB,31/08/2022,Cont Care- Adult 100% Fully Funded,CHC AD FULL FUND PERS HLTH BUD,NETWORK VENTURES LTD,42225442,"33,173.20"
Department of Health,NHS Bristol N Somerset S Glos ICB,31/08/2022,Cont Care- Palliative Care,CHC ADULT - FULLY FUNDED - FAST TRACK,NETWORK VENTURES LTD,42258996,"44,810.22"
Department of Health,NHS Bristol N Somerset S Glos ICB,31/08/2022,Cont Care- Palliative Care,CHC ADULT - FULLY FUNDED - FAST TRACK,NETWORK VENTURES LTD,42285292,"54,081.30"
Department of Health,NHS Bristol N Somerset S Glos ICB,31/08/2022,Clinical&Medical-Independent Sector,ACUTE SERVICES C,NEW MEDICAL SYSTEMS LTD,41950625,"265,789.21"
Department of Health,NHS Bristol N Somerset S Glos ICB,31/08/2022,Clinical&Medical-Independent Sector,ACUTE SERVICES C,NEW MEDICAL SYSTEMS LTD,42142949,"367,486.09"
Department of Health,NHS Bristol N Somerset S Glos ICB,31/08/2022,Healthcare Srv Rec ICB,ACUTE SERVICES F,NHS BATH AND NORTH EAST SOMERSET SWINDON AND WILTSHIRE ICB,42157732,"1,300,000.00"
Department of Health,NHS Bristol N Somerset S Glos ICB,31/08/2022,Healthcare Srv Rec ICB,ACUTE SERVICES F,NHS BATH AND NORTH EAST SOMERSET SWINDON AND WILTSHIRE ICB,42158288,"-1,300,000.00"
Department of Health,NHS Bristol N Somerset S Glos ICB,31/08/2022,Healthcare Srv Rec ICB,ACUTE SERVICES F,NHS BATH AND NORTH EAST SOMERSET SWINDON AND WILTSHIRE ICB,42259560,"650,000.00"
Department of Health,NHS Bristol N Somerset S Glos ICB,31/08/2022,Healthcare Srv Rec ICB,ACUTE SERVICES F,NHS SOMERSET ICB,42260746,"445,414.00"
Department of Health,NHS Bristol N Somerset S Glos ICB,31/08/2022,Charges from CSU,THIRD PARTY HOSTED SERVICE 2 - (P),NHS SOUTH CENTRAL AND WEST COMMISSIONING SUPPORT UNIT,41994957,"83,322.02"
Department of Health,NHS Bristol N Somerset S Glos ICB,31/08/2022,Charges from CSU,PRIMARY CARE IT,NHS SOUTH CENTRAL AND WEST COMMISSIONING SUPPORT UNIT,42016344,"130,000.00"
Department of Health,NHS Bristol N Somerset S Glos ICB,31/08/2022,Charges from CSU,RECHARGES,NHS SOUTH CENTRAL AND WEST COMMISSIONING SUPPORT UNIT,42016344,"210,242.22"
Department of Health,NHS Bristol N Somerset S Glos ICB,31/08/2022,C&M-PMS Contract Value,DELEGATED GP,NIGHTINGALE VALLEY PRACTICE,42006097,"111,971.25"
Department of Health,NHS Bristol N Somerset S Glos ICB,31/08/2022,C&M-PMS LES Anti-coagulation,LOCAL INCENTIVE SCHEMES,NIGHTINGALE VALLEY PRACTICE,42006097,161.50
Department of Health,NHS Bristol N Somerset S Glos ICB,31/08/2022,C&M-PMS LES Basket of Procedures,LOCAL INCENTIVE SCHEMES,NIGHTINGALE VALLEY PRACTICE,42006097,"13,370.66"
Department of Health,NHS Bristol N Somerset S Glos ICB,31/08/2022,C&M-PMS LES Dementia,LOCAL INCENTIVE SCHEMES,NIGHTINGALE VALLEY PRACTICE,42006097,588.17
Department of Health,NHS Bristol N Somerset S Glos ICB,31/08/2022,C&M-PMS NES Near Patient Testing,LOCAL INCENTIVE SCHEMES,NIGHTINGALE VALLEY PRACTICE,42006097,730.00
Department of Health,NHS Bristol N Somerset S Glos ICB,31/08/2022,C&M-PMS PCN DES Participation,DELEGATED GP,NIGHTINGALE VALLEY PRACTICE,42006097,"2,058.80"
Department of Health,NHS Bristol N Somerset S Glos ICB,31/08/2022,C&M-PMS QOF Aspiration,DELEGATED GP,NIGHTINGALE VALLEY PRACTICE,42006097,"11,899.46"
Department of Health,NHS Bristol N Somerset S Glos ICB,31/08/2022,ME-PMS GP Pension EEs Adjs - PMS,DELEGATED GP,NIGHTINGALE VALLEY PRACTICE,42006097,132.53
Department of Health,NHS Bristol N Somerset S Glos ICB,31/08/2022,ME-PMS GP Pension EEs-PMS,DELEGATED GP,NIGHTINGALE VALLEY PRACTICE,42006097,397.59
Department of Health,NHS Bristol N Somerset S Glos ICB,31/08/2022,ME-PMS GP Pension ERs Adjs - PMS,DELEGATED GP,NIGHTINGALE VALLEY PRACTICE,42006097,268.43
Department of Health,NHS Bristol N Somerset S Glos ICB,31/08/2022,ME-PMS GP Pension ERs-PMS,DELEGATED GP,NIGHTINGALE VALLEY PRACTICE,42006097,805.29
Department of Health,NHS Bristol N Somerset S Glos ICB,31/08/2022,ME-PMS GP Prior Year AVCs,DELEGATED GP,NIGHTINGALE VALLEY PRACTICE,42006097,"11,609.96"
Department of Health,NHS Bristol N Somerset S Glos ICB,31/08/2022,C&M-PMS Contract Value,DELEGATED GP,NIGHTINGALE VALLEY PRACTICE,42006098,-235.68
Department of Health,NHS Bristol N Somerset S Glos ICB,31/08/2022,ME - PMS GP Prior Year ERs,DELEGATED GP,NIGHTINGALE VALLEY PRACTICE,42006098,"-11,609.96"
Department of Health,NHS Bristol N Somerset S Glos ICB,31/08/2022,ME-PMS GP Pension Added Years EEs,DELEGATED GP,NIGHTINGALE VALLEY PRACTICE,42006098,-496.63
Department of Health,NHS Bristol N Somerset S Glos ICB,31/08/2022,ME-PMS GP Pension EEs-PMS,DELEGATED GP,NIGHTINGALE VALLEY PRACTICE,42006098,"-8,746.43"
Department of Health,NHS Bristol N Somerset S Glos ICB,31/08/2022,ME-PMS GP Pension ERs-PMS,DELEGATED GP,NIGHTINGALE VALLEY PRACTICE,42006098,"-9,191.40"
Department of Health,NHS Bristol N Somerset S Glos ICB,31/08/2022,ME-PMS GP Prior Year AVCs,DELEGATED GP,NIGHTINGALE VALLEY PRACTICE,42006098,"-11,609.96"
Department of Health,NHS Bristol N Somerset S Glos ICB,31/08/2022,ME-PMS GP Prior Year EEs,DELEGATED GP,NIGHTINGALE VALLEY PRACTICE,42006098,"-10,899.48"
Department of Health,NHS Bristol N Somerset S Glos ICB,31/08/2022,Clinical&Medical-Voluntary Sector,COMMUNITY A NOT BED-BASED NOT PLACEMENTS,NILAARI AGENCY,41916050,"50,000.00"
Department of Health,NHS Bristol N Somerset S Glos ICB,31/08/2022,Hcare Srv Rec NHS Trust-Contract Baseline,ACUTE SERVICES A,NORTH BRISTOL NHS TRUST,42027848,"36,547,216.08"
Department of Health,NHS Bristol N Somerset S Glos ICB,31/08/2022,Cont Care-Funded Nursing Care Allow,FUNDED NURSING CARE,NORTH SOMERSET COUNCIL,41916070,"1,587,500.00"
Department of Health,NHS Bristol N Somerset S Glos ICB,31/08/2022,Cont Care- Adult 100% Fully Funded,CHC ADULT FULLY FUNDED,NORTH SOMERSET COUNCIL,41916087,"3,200,000.00"
Department of Health,NHS Bristol N Somerset S Glos ICB,31/08/2022,Clinical&Medical-Othe Public Sector,CHILDREN SERVICES,NORTH SOMERSET COUNCIL,41939587,"25,000.00"
Department of Health,NHS Bristol N Somerset S Glos ICB,31/08/2022,Clinical&Medical-Othe Public Sector,CHILDREN SERVICES,NORTH SOMERSET COUNCIL,41939594,"25,000.00"
Department of Health,NHS Bristol N Somerset S Glos ICB,31/08/2022,Clinical&Medical-Othe Public Sector,MENTAL HEALTH ACT,NORTH SOMERSET COUNCIL,41951152,"222,082.08"
Department of Health,NHS Bristol N Somerset S Glos ICB,31/08/2022,Clinical&Medical-Othe Public Sector,MENTAL HEALTH ACT,NORTH SOMERSET COUNCIL,41951166,"147,134.40"
Department of Health,NHS Bristol N Somerset S Glos ICB,31/08/2022,Clinical&Medical-Othe Public Sector,CYP MENTAL HEALTH (EXC LD),NORTH SOMERSET COUNCIL,42259233,"50,000.00"
Department of Health,NHS Bristol N Somerset S Glos ICB,31/08/2022,Clinical&Medical-Othe Public Sector,MENTAL HEALTH ACT,NORTH SOMERSET COUNCIL,42260148,"223,897.87"
Department of Health,NHS Bristol N Somerset S Glos ICB,31/08/2022,Clinical&Medical-Othe Public Sector,MENTAL HEALTH ACT,NORTH SOMERSET COUNCIL,42260316,"142,918.86"
Department of Health,NHS Bristol N Somerset S Glos ICB,31/08/2022,Clinical&Medical-Independent Sector,ACUTE SERVICES C,NUFFIELD HEALTH,41939583,"406,159.54"
Department of Health,NHS Bristol N Somerset S Glos ICB,31/08/2022,Cont Care- Children,CHILDRENS CONTINUING CARE,NURSELINE COMMUNITY SERVICES LTD,41896513,"65,877.30"
Department of Health,NHS Bristol N Somerset S Glos ICB,31/08/2022,Cont Care- Children,CHILDRENS CONTINUING CARE,NURSELINE COMMUNITY SERVICES LTD,42157534,"59,315.10"
Department of Health,NHS Bristol N Somerset S Glos ICB,31/08/2022,Cont Care- Adult 100% Fully Funded,CHC ADULT FULLY FUNDED,OCEAN COMMUNITY SERVICES LTD,42158021,"26,134.24"
Department of Health,NHS Bristol N Somerset S Glos ICB,31/08/2022,C&M- PCN DES CARE COORDINATOR,DELEGATED GP,OLD SCHOOL SURGERY,42189567,"8,905.65"
Department of Health,NHS Bristol N Somerset S Glos ICB,31/08/2022,C&M- PCN DES CARE HOME PREMIUM,DELEGATED GP,OLD SCHOOL SURGERY,42189567,"2,440.00"
Department of Health,NHS Bristol N Somerset S Glos ICB,31/08/2022,C&M- PCN DES Nursing Associate,DELEGATED GP,OLD SCHOOL SURGERY,42189567,"2,498.92"
Department of Health,NHS Bristol N Somerset S Glos ICB,31/08/2022,C&M-GMS DES Extended Hours Access,DELEGATED GP,OLD SCHOOL SURGERY,42189567,"5,945.16"
Department of Health,NHS Bristol N Somerset S Glos ICB,31/08/2022,C&M-GMS Global Sum,DELEGATED GP,OLD SCHOOL SURGERY,42189567,"167,896.28"
Department of Health,NHS Bristol N Somerset S Glos ICB,31/08/2022,C&M-GMS LES Anti-coagulation,LOCAL INCENTIVE SCHEMES,OLD SCHOOL SURGERY,42189567,123.50
Department of Health,NHS Bristol N Somerset S Glos ICB,31/08/2022,C&M-GMS LES Basket of Procedures,LOCAL INCENTIVE SCHEMES,OLD SCHOOL SURGERY,42189567,"23,781.59"
Department of Health,NHS Bristol N Somerset S Glos ICB,31/08/2022,C&M-GMS LES Care Home/Nursing Home,LOCAL INCENTIVE SCHEMES,OLD SCHOOL SURGERY,42189567,760.24
Department of Health,NHS Bristol N Somerset S Glos ICB,31/08/2022,C&M-GMS LES DVT,LOCAL INCENTIVE SCHEMES,OLD SCHOOL SURGERY,42189567,80.00
Department of Health,NHS Bristol N Somerset S Glos ICB,31/08/2022,C&M-GMS LES Dementia,LOCAL INCENTIVE SCHEMES,OLD SCHOOL SURGERY,42189567,445.33
Department of Health,NHS Bristol N Somerset S Glos ICB,31/08/2022,C&M-GMS LES Presc Incentive Sch,LOCAL INCENTIVE SCHEMES,OLD SCHOOL SURGERY,42189567,"19,999.65"
Department of Health,NHS Bristol N Somerset S Glos ICB,31/08/2022,C&M-GMS NES Near Patient Testing,LOCAL INCENTIVE SCHEMES,OLD SCHOOL SURGERY,42189567,497.50
Department of Health,NHS Bristol N Somerset S Glos ICB,31/08/2022,C&M-GMS PCN DES Clin Pharmacist,DELEGATED GP,OLD SCHOOL SURGERY,42189567,"29,536.56"
Department of Health,NHS Bristol N Somerset S Glos ICB,31/08/2022,C&M-GMS PCN DES Clinical Director,DELEGATED GP,OLD SCHOOL SURGERY,42189567,"3,038.64"
Department of Health,NHS Bristol N Somerset S Glos ICB,31/08/2022,C&M-GMS PCN DES Participation,DELEGATED GP,OLD SCHOOL SURGERY,42189567,"3,084.63"
Department of Health,NHS Bristol N Somerset S Glos ICB,31/08/2022,C&M-GMS PCN DES Physiotherapist,DELEGATED GP,OLD SCHOOL SURGERY,42189567,"5,104.63"
Department of Health,NHS Bristol N Somerset S Glos ICB,31/08/2022,C&M-GMS PCN DES Soc Prescribing,DELEGATED GP,OLD SCHOOL SURGERY,42189567,"2,911.51"
Department of Health,NHS Bristol N Somerset S Glos ICB,31/08/2022,C&M-GMS Prem Actual Rent,DELEGATED GP,OLD SCHOOL SURGERY,42189567,"10,206.78"
Department of Health,NHS Bristol N Somerset S Glos ICB,31/08/2022,C&M-GMS Prem Notional Rent,DELEGATED GP,OLD SCHOOL SURGERY,42189567,"9,421.67"
Department of Health,NHS Bristol N Somerset S Glos ICB,31/08/2022,C&M-GMS Prem Water Rates,DELEGATED GP,OLD SCHOOL SURGERY,42189567,277.43
Department of Health,NHS Bristol N Somerset S Glos ICB,31/08/2022,C&M-GMS QOF Aspiration,DELEGATED GP,OLD SCHOOL SURGERY,42189567,"10,999.55"
Department of Health,NHS Bristol N Somerset S Glos ICB,31/08/2022,C&M-GMS WEIGHT MANAGEMENT SERVICE,DELEGATED GP,OLD SCHOOL SURGERY,42189567,161.00
Department of Health,NHS Bristol N Somerset S Glos ICB,31/08/2022,C&M-NCD Adult Mental Health Practitioner,DELEGATED GP,OLD SCHOOL SURGERY,42189567,834.33
Department of Health,NHS Bristol N Somerset S Glos ICB,31/08/2022,C&M-NCD Paramedic Advanced Practitioner,DELEGATED GP,OLD SCHOOL SURGERY,42189567,"3,687.54"
Department of Health,NHS Bristol N Somerset S Glos ICB,31/08/2022,C&M-PCN DES PHARMACY TECHNICIANS,DELEGATED GP,OLD SCHOOL SURGERY,42189567,"9,382.51"
Department of Health,NHS Bristol N Somerset S Glos ICB,31/08/2022,C&M-PCN-GMS DES Leadership Payment,DELEGATED GP,OLD SCHOOL SURGERY,42189567,"2,653.11"
Department of Health,NHS Bristol N Somerset S Glos ICB,31/08/2022,ME-GMS GP Prior Year EEs,DELEGATED GP,OLD SCHOOL SURGERY,42189567,0.02
Department of Health,NHS Bristol N Somerset S Glos ICB,31/08/2022,ME - GMS GP Prior Year ERs,DELEGATED GP,OLD SCHOOL SURGERY,42189568,-0.02
Department of Health,NHS Bristol N Somerset S Glos ICB,31/08/2022,ME-GMS GP Pension Added Years EEs,DELEGATED GP,OLD SCHOOL SURGERY,42189568,-162.36
Department of Health,NHS Bristol N Somerset S Glos ICB,31/08/2022,ME-GMS GP Pension EEs,DELEGATED GP,OLD SCHOOL SURGERY,42189568,"-13,151.69"
Department of Health,NHS Bristol N Somerset S Glos ICB,31/08/2022,ME-GMS GP Pension ERs,DELEGATED GP,OLD SCHOOL SURGERY,42189568,"-14,362.04"
Department of Health,NHS Bristol N Somerset S Glos ICB,31/08/2022,C&M-GP PRACTICE REVENUE - PCTF,GP INVESTMENT,ONE CARE (BNSSG) LTD,42207981,"340,722.20"
Department of Health,NHS Bristol N Somerset S Glos ICB,31/08/2022,C&M-GP PRACTICE REVENUE - PCTF,GP INVESTMENT,ONE CARE (BNSSG) LTD,42208090,"-43,351.32"
Department of Health,NHS Bristol N Somerset S Glos ICB,31/08/2022,Computer Software/License,PRESCRIBING,OPTUM HEALTH SOLUTIONS (UK) LTD,42208073,"318,442.50"
Department of Health,NHS Bristol N Somerset S Glos ICB,31/08/2022,C&M-PCN-PMS DES Leadership Payment,DELEGATED GP,ORCHARD MEDICAL CENTRE (THE) BRISTOL,42006115,"3,680.99"
Department of Health,NHS Bristol N Somerset S Glos ICB,31/08/2022,C&M-PMS Contract Value,DELEGATED GP,ORCHARD MEDICAL CENTRE (THE) BRISTOL,42006115,"86,987.04"
Department of Health,NHS Bristol N Somerset S Glos ICB,31/08/2022,C&M-PMS DES Extended Hours Access,DELEGATED GP,ORCHARD MEDICAL CENTRE (THE) BRISTOL,42006115,"8,264.64"
Department of Health,NHS Bristol N Somerset S Glos ICB,31/08/2022,C&M-PMS LES Anti-coagulation,LOCAL INCENTIVE SCHEMES,ORCHARD MEDICAL CENTRE (THE) BRISTOL,42006115,180.50
Department of Health,NHS Bristol N Somerset S Glos ICB,31/08/2022,C&M-PMS LES Basket of Procedures,LOCAL INCENTIVE SCHEMES,ORCHARD MEDICAL CENTRE (THE) BRISTOL,42006115,"17,568.87"
Department of Health,NHS Bristol N Somerset S Glos ICB,31/08/2022,C&M-PMS LES DVT,LOCAL INCENTIVE SCHEMES,ORCHARD MEDICAL CENTRE (THE) BRISTOL,42006115,106.67
Department of Health,NHS Bristol N Somerset S Glos ICB,31/08/2022,C&M-PMS LES Dementia,LOCAL INCENTIVE SCHEMES,ORCHARD MEDICAL CENTRE (THE) BRISTOL,42006115,489.25
Department of Health,NHS Bristol N Somerset S Glos ICB,31/08/2022,C&M-PMS NES Near Patient Testing,LOCAL INCENTIVE SCHEMES,ORCHARD MEDICAL CENTRE (THE) BRISTOL,42006115,680.83
Department of Health,NHS Bristol N Somerset S Glos ICB,31/08/2022,C&M-PMS PCN DES Clinical Director,DELEGATED GP,ORCHARD MEDICAL CENTRE (THE) BRISTOL,42006115,"4,224.15"
Department of Health,NHS Bristol N Somerset S Glos ICB,31/08/2022,C&M-PMS PCN DES Participation,DELEGATED GP,ORCHARD MEDICAL CENTRE (THE) BRISTOL,42006115,"1,595.20"
Department of Health,NHS Bristol N Somerset S Glos ICB,31/08/2022,C&M-PMS Prem Notional Rent,DELEGATED GP,ORCHARD MEDICAL CENTRE (THE) BRISTOL,42006115,"12,115.33"
Department of Health,NHS Bristol N Somerset S Glos ICB,31/08/2022,C&M-PMS Prem Rates,DELEGATED GP,ORCHARD MEDICAL CENTRE (THE) BRISTOL,42006115,"19,960.00"
Department of Health,NHS Bristol N Somerset S Glos ICB,31/08/2022,C&M-PMS Prem Water Rates,DELEGATED GP,ORCHARD MEDICAL CENTRE (THE) BRISTOL,42006115,607.91
Department of Health,NHS Bristol N Somerset S Glos ICB,31/08/2022,C&M-PMS QOF Aspiration,DELEGATED GP,ORCHARD MEDICAL CENTRE (THE) BRISTOL,42006115,"11,588.39"
Department of Health,NHS Bristol N Somerset S Glos ICB,31/08/2022,C&M-PMS Contract Value,DELEGATED GP,ORCHARD MEDICAL CENTRE (THE) BRISTOL,42006116,-527.64
Department of Health,NHS Bristol N Somerset S Glos ICB,31/08/2022,ME - PMS GP Prior Year ERs,DELEGATED GP,ORCHARD MEDICAL CENTRE (THE) BRISTOL,42006116,"-4,958.01"
Department of Health,NHS Bristol N Somerset S Glos ICB,31/08/2022,ME-PMS GP Pension Added Years EEs,DELEGATED GP,ORCHARD MEDICAL CENTRE (THE) BRISTOL,42006116,-487.33
Department of Health,NHS Bristol N Somerset S Glos ICB,31/08/2022,ME-PMS GP Pension EEs-PMS,DELEGATED GP,ORCHARD MEDICAL CENTRE (THE) BRISTOL,42006116,"-6,994.75"
Department of Health,NHS Bristol N Somerset S Glos ICB,31/08/2022,ME-PMS GP Pension ERs-PMS,DELEGATED GP,ORCHARD MEDICAL CENTRE (THE) BRISTOL,42006116,"-7,751.30"
Department of Health,NHS Bristol N Somerset S Glos ICB,31/08/2022,ME-PMS GP Prior Year EEs,DELEGATED GP,ORCHARD MEDICAL CENTRE (THE) BRISTOL,42006116,"-4,309.81"
Department of Health,NHS Bristol N Somerset S Glos ICB,31/08/2022,C&M- PCN DES CARE COORDINATOR,DELEGATED GP,ORCHARD MEDICAL CENTRE (THE) BRISTOL,42189523,"18,712.38"
Department of Health,NHS Bristol N Somerset S Glos ICB,31/08/2022,C&M- PCN DES CARE HOME PREMIUM,DELEGATED GP,ORCHARD MEDICAL CENTRE (THE) BRISTOL,42189523,"5,910.00"
Department of Health,NHS Bristol N Somerset S Glos ICB,31/08/2022,C&M-NCD Pharmacy Technician,DELEGATED GP,ORCHARD MEDICAL CENTRE (THE) BRISTOL,42189523,"4,360.67"
Department of Health,NHS Bristol N Somerset S Glos ICB,31/08/2022,C&M-PCN DES HEALTH AND WELLBEING COACH,DELEGATED GP,ORCHARD MEDICAL CENTRE (THE) BRISTOL,42189523,"2,794.27"
Department of Health,NHS Bristol N Somerset S Glos ICB,31/08/2022,C&M-PCN DES Paramedic Advanced Practitioner,DELEGATED GP,ORCHARD MEDICAL CENTRE (THE) BRISTOL,42189523,"3,661.77"
Department of Health,NHS Bristol N Somerset S Glos ICB,31/08/2022,C&M-PMS LES Care Home/Nursing Home,LOCAL INCENTIVE SCHEMES,ORCHARD MEDICAL CENTRE (THE) BRISTOL,42189523,792.49
Department of Health,NHS Bristol N Somerset S Glos ICB,31/08/2022,C&M-PMS LES Presc Incentive Sch,LOCAL INCENTIVE SCHEMES,ORCHARD MEDICAL CENTRE (THE) BRISTOL,42189523,"11,925.00"
Department of Health,NHS Bristol N Somerset S Glos ICB,31/08/2022,C&M-PMS PCN DES Clin Pharmacist,DELEGATED GP,ORCHARD MEDICAL CENTRE (THE) BRISTOL,42189523,"25,902.35"
Department of Health,NHS Bristol N Somerset S Glos ICB,31/08/2022,C&M-PMS PCN DES Physiotherapist,DELEGATED GP,ORCHARD MEDICAL CENTRE (THE) BRISTOL,42189523,"15,885.71"
Department of Health,NHS Bristol N Somerset S Glos ICB,31/08/2022,C&M-PMS PCN DES Soc Prescribing,DELEGATED GP,ORCHARD MEDICAL CENTRE (THE) BRISTOL,42189523,"17,152.60"
Department of Health,NHS Bristol N Somerset S Glos ICB,31/08/2022,C&M-PMS Contract Value,DELEGATED GP,PILNING SURGERY,42006125,"35,445.93"
Department of Health,NHS Bristol N Somerset S Glos ICB,31/08/2022,C&M-PMS LES Anti-coagulation,LOCAL INCENTIVE SCHEMES,PILNING SURGERY,42006125,104.50
Department of Health,NHS Bristol N Somerset S Glos ICB,31/08/2022,C&M-PMS LES Basket of Procedures,LOCAL INCENTIVE SCHEMES,PILNING SURGERY,42006125,"3,314.78"
Department of Health,NHS Bristol N Somerset S Glos ICB,31/08/2022,C&M-PMS LES DVT,LOCAL INCENTIVE SCHEMES,PILNING SURGERY,42006125,13.33
Department of Health,NHS Bristol N Somerset S Glos ICB,31/08/2022,C&M-PMS LES Dementia,LOCAL INCENTIVE SCHEMES,PILNING SURGERY,42006125,70.08
Department of Health,NHS Bristol N Somerset S Glos ICB,31/08/2022,C&M-PMS NES Near Patient Testing,LOCAL INCENTIVE SCHEMES,PILNING SURGERY,42006125,219.17
Department of Health,NHS Bristol N Somerset S Glos ICB,31/08/2022,C&M-PMS PCN DES Participation,DELEGATED GP,PILNING SURGERY,42006125,645.46
Department of Health,NHS Bristol N Somerset S Glos ICB,31/08/2022,C&M-PMS Prem Notional Rent,DELEGATED GP,PILNING SURGERY,42006125,"4,755.00"
Department of Health,NHS Bristol N Somerset S Glos ICB,31/08/2022,C&M-PMS QOF Aspiration,DELEGATED GP,PILNING SURGERY,42006125,"3,913.91"
Department of Health,NHS Bristol N Somerset S Glos ICB,31/08/2022,C&M-PMS WEIGHT MANAGEMENT SERVICE,DELEGATED GP,PILNING SURGERY,42006125,103.50
Department of Health,NHS Bristol N Somerset S Glos ICB,31/08/2022,C&M- IIF ACHIEVEMENT,DELEGATED GP,PORTISHEAD MEDICAL GROUP,42006127,"77,236.79"
Department of Health,NHS Bristol N Somerset S Glos ICB,31/08/2022,C&M-PCN-PMS DES Leadership Payment,DELEGATED GP,PORTISHEAD MEDICAL GROUP,42006127,"2,825.30"
Department of Health,NHS Bristol N Somerset S Glos ICB,31/08/2022,C&M-PMS Contract Value,DELEGATED GP,PORTISHEAD MEDICAL GROUP,42006127,"143,701.59"
Department of Health,NHS Bristol N Somerset S Glos ICB,31/08/2022,C&M-PMS DES Extended Hours Access,DELEGATED GP,PORTISHEAD MEDICAL GROUP,42006127,"6,205.32"
Department of Health,NHS Bristol N Somerset S Glos ICB,31/08/2022,C&M-PMS DES Learn Dsblty Hlth Chk,DELEGATED GP,PORTISHEAD MEDICAL GROUP,42006127,280.00
Department of Health,NHS Bristol N Somerset S Glos ICB,31/08/2022,C&M-PMS LES Anti-coagulation,LOCAL INCENTIVE SCHEMES,PORTISHEAD MEDICAL GROUP,42006127,746.67
Department of Health,NHS Bristol N Somerset S Glos ICB,31/08/2022,C&M-PMS LES Basket of Procedures,LOCAL INCENTIVE SCHEMES,PORTISHEAD MEDICAL GROUP,42006127,"13,955.51"
Department of Health,NHS Bristol N Somerset S Glos ICB,31/08/2022,C&M-PMS LES DVT,LOCAL INCENTIVE SCHEMES,PORTISHEAD MEDICAL GROUP,42006127,10.00
Department of Health,NHS Bristol N Somerset S Glos ICB,31/08/2022,C&M-PMS LES Dementia,LOCAL INCENTIVE SCHEMES,PORTISHEAD MEDICAL GROUP,42006127,"1,220.25"
Department of Health,NHS Bristol N Somerset S Glos ICB,31/08/2022,C&M-PMS LES Diabetes-Insulin (GTT),LOCAL INCENTIVE SCHEMES,PORTISHEAD MEDICAL GROUP,42006127,116.67
Department of Health,NHS Bristol N Somerset S Glos ICB,31/08/2022,C&M-PMS NES Near Patient Testing,LOCAL INCENTIVE SCHEMES,PORTISHEAD MEDICAL GROUP,42006127,"1,099.17"
Department of Health,NHS Bristol N Somerset S Glos ICB,31/08/2022,C&M-PMS PCN DES Clinical Director,DELEGATED GP,PORTISHEAD MEDICAL GROUP,42006127,"3,171.61"
Department of Health,NHS Bristol N Somerset S Glos ICB,31/08/2022,C&M-PMS PCN DES Participation,DELEGATED GP,PORTISHEAD MEDICAL GROUP,42006127,"2,649.92"
Department of Health,NHS Bristol N Somerset S Glos ICB,31/08/2022,C&M-PMS Prem Notional Rent,DELEGATED GP,PORTISHEAD MEDICAL GROUP,42006127,"12,026.17"
Department of Health,NHS Bristol N Somerset S Glos ICB,31/08/2022,C&M-PMS QOF Aspiration,DELEGATED GP,PORTISHEAD MEDICAL GROUP,42006127,"16,566.53"
Department of Health,NHS Bristol N Somerset S Glos ICB,31/08/2022,C&M-PMS WEIGHT MANAGEMENT SERVICE,DELEGATED GP,PORTISHEAD MEDICAL GROUP,42006127,333.50
Department of Health,NHS Bristol N Somerset S Glos ICB,31/08/2022,ME - PMS GP Prior Year ERs,DELEGATED GP,PORTISHEAD MEDICAL GROUP,42006127,989.54
Department of Health,NHS Bristol N Somerset S Glos ICB,31/08/2022,ME-PMS GP Prior Year EEs,DELEGATED GP,PORTISHEAD MEDICAL GROUP,42006127,"1,628.43"
Department of Health,NHS Bristol N Somerset S Glos ICB,31/08/2022,C&M- PCN DES CARE COORDINATOR,DELEGATED GP,PORTISHEAD MEDICAL GROUP,42197839,"16,884.41"
Department of Health,NHS Bristol N Somerset S Glos ICB,31/08/2022,C&M- PCN DES CARE HOME PREMIUM,DELEGATED GP,PORTISHEAD MEDICAL GROUP,42197839,"6,230.00"
Department of Health,NHS Bristol N Somerset S Glos ICB,31/08/2022,C&M- PCN DES Nursing Associate,DELEGATED GP,PORTISHEAD MEDICAL GROUP,42197839,"3,897.73"
Department of Health,NHS Bristol N Somerset S Glos ICB,31/08/2022,C&M-PCN DES PHARMACY TECHNICIANS,DELEGATED GP,PORTISHEAD MEDICAL GROUP,42197839,"8,559.83"
Department of Health,NHS Bristol N Somerset S Glos ICB,31/08/2022,C&M-PMS C&M-APMS PCN DES Physician Assoc,DELEGATED GP,PORTISHEAD MEDICAL GROUP,42197839,"14,750.16"
Department of Health,NHS Bristol N Somerset S Glos ICB,31/08/2022,C&M-PMS LES Care Home/Nursing Home,LOCAL INCENTIVE SCHEMES,PORTISHEAD MEDICAL GROUP,42197839,497.61
Department of Health,NHS Bristol N Somerset S Glos ICB,31/08/2022,C&M-PMS LES Presc Incentive Sch,LOCAL INCENTIVE SCHEMES,PORTISHEAD MEDICAL GROUP,42197839,"16,055.76"
Department of Health,NHS Bristol N Somerset S Glos ICB,31/08/2022,C&M-PMS PCN DES Clin Pharmacist,DELEGATED GP,PORTISHEAD MEDICAL GROUP,42197839,"37,959.61"
Department of Health,NHS Bristol N Somerset S Glos ICB,31/08/2022,C&M-PMS PCN DES Physiotherapist,DELEGATED GP,PORTISHEAD MEDICAL GROUP,42197839,"25,670.56"
Department of Health,NHS Bristol N Somerset S Glos ICB,31/08/2022,C&M-PMS PCN DES Soc Prescribing,DELEGATED GP,PORTISHEAD MEDICAL GROUP,42197839,"23,627.60"
Department of Health,NHS Bristol N Somerset S Glos ICB,31/08/2022,C&M-PMS PCO Other,DELEGATED GP,PORTISHEAD MEDICAL GROUP,42197839,"11,346.00"
Department of Health,NHS Bristol N Somerset S Glos ICB,31/08/2022,Clinical&Medical-Independent Sector,ACUTE SERVICES C,PRACTICE PLUS GROUP HOSPITALS LTD,41951039,"996,059.00"
Department of Health,NHS Bristol N Somerset S Glos ICB,31/08/2022,Clinical&Medical-Commercial Sector,ACUTE SERVICES D,PRACTICE PLUS GROUP HOSPITALS LTD,42158324,"28,093.68"
Department of Health,NHS Bristol N Somerset S Glos ICB,31/08/2022,C&M-PMS Contract Value,DELEGATED GP,PRIORY SURGERY BRISTOL,42006111,"86,687.26"
Department of Health,NHS Bristol N Somerset S Glos ICB,31/08/2022,C&M-PMS LES Anti-coagulation,LOCAL INCENTIVE SCHEMES,PRIORY SURGERY BRISTOL,42006111,190.00
Department of Health,NHS Bristol N Somerset S Glos ICB,31/08/2022,C&M-PMS LES Basket of Procedures,LOCAL INCENTIVE SCHEMES,PRIORY SURGERY BRISTOL,42006111,"9,862.97"
Department of Health,NHS Bristol N Somerset S Glos ICB,31/08/2022,C&M-PMS LES DVT,LOCAL INCENTIVE SCHEMES,PRIORY SURGERY BRISTOL,42006111,40.00
Department of Health,NHS Bristol N Somerset S Glos ICB,31/08/2022,C&M-PMS LES Dementia,LOCAL INCENTIVE SCHEMES,PRIORY SURGERY BRISTOL,42006111,486.58
Department of Health,NHS Bristol N Somerset S Glos ICB,31/08/2022,C&M-PMS NES Near Patient Testing,LOCAL INCENTIVE SCHEMES,PRIORY SURGERY BRISTOL,42006111,480.83
Department of Health,NHS Bristol N Somerset S Glos ICB,31/08/2022,C&M-PMS PCN DES Participation,DELEGATED GP,PRIORY SURGERY BRISTOL,42006111,"1,566.34"
Department of Health,NHS Bristol N Somerset S Glos ICB,31/08/2022,C&M-PMS Prem Notional Rent,DELEGATED GP,PRIORY SURGERY BRISTOL,42006111,"5,801.25"
Department of Health,NHS Bristol N Somerset S Glos ICB,31/08/2022,C&M-PMS QOF Aspiration,DELEGATED GP,PRIORY SURGERY BRISTOL,42006111,"9,431.70"
Department of Health,NHS Bristol N Somerset S Glos ICB,31/08/2022,ME-PMS GP Pension EEs-PMS,DELEGATED GP,PRIORY SURGERY BRISTOL,42006111,700.67
Department of Health,NHS Bristol N Somerset S Glos ICB,31/08/2022,ME-PMS GP Pension ERs-PMS,DELEGATED GP,PRIORY SURGERY BRISTOL,42006111,348.68
Department of Health,NHS Bristol N Somerset S Glos ICB,31/08/2022,ME - PMS GP Prior Year ERs,DELEGATED GP,PRIORY SURGERY BRISTOL,42006112,"-3,593.45"
Department of Health,NHS Bristol N Somerset S Glos ICB,31/08/2022,ME-PMS GP Pension Added Years EEs,DELEGATED GP,PRIORY SURGERY BRISTOL,42006112,"-2,255.60"
Department of Health,NHS Bristol N Somerset S Glos ICB,31/08/2022,ME-PMS GP Pension EEs-PMS,DELEGATED GP,PRIORY SURGERY BRISTOL,42006112,"-13,307.36"
Department of Health,NHS Bristol N Somerset S Glos ICB,31/08/2022,ME-PMS GP Pension ERs-PMS,DELEGATED GP,PRIORY SURGERY BRISTOL,42006112,"-13,714.31"
Department of Health,NHS Bristol N Somerset S Glos ICB,31/08/2022,ME-PMS GP Prior Year EEs,DELEGATED GP,PRIORY SURGERY BRISTOL,42006112,"-3,623.44"
Department of Health,NHS Bristol N Somerset S Glos ICB,31/08/2022,Clinical&Medical-Commercial Sector,ADHD,PSYCHIATRY UK LLP,41915691,"32,371.84"
Department of Health,NHS Bristol N Somerset S Glos ICB,31/08/2022,Clinical&Medical-Commercial Sector,ADHD,PSYCHIATRY UK LLP,41915708,"29,133.92"
Department of Health,NHS Bristol N Somerset S Glos ICB,31/08/2022,Clinical&Medical-Commercial Sector,ADHD,PSYCHIATRY UK LLP,41995078,"37,291.10"
Department of Health,NHS Bristol N Somerset S Glos ICB,31/08/2022,Clinical&Medical-Commercial Sector,ADHD,PSYCHIATRY UK LLP,42157699,"26,141.00"
Department of Health,NHS Bristol N Somerset S Glos ICB,31/08/2022,Clinical&Medical-Commercial Sector,ADHD,PSYCHIATRY UK LLP,42208098,"33,294.79"
Department of Health,NHS Bristol N Somerset S Glos ICB,31/08/2022,Clinical&Medical-Voluntary Sector,COMMUNITY A NOT BED-BASED NOT PLACEMENTS,RICHMOND FELLOWSHIP,42103005,"97,280.00"
Department of Health,NHS Bristol N Somerset S Glos ICB,31/08/2022,Hcare Srv Rec Fdtn Trust-Contract Baseline,ACUTE SERVICES B,ROYAL UNITED HOSPITALS BATH NHS FOUNDATION TRUST,42027854,"1,163,000.36"
Department of Health,NHS Bristol N Somerset S Glos ICB,31/08/2022,Clinical&Medical-Commercial Sector,AUDIOLOGY,SCRIVENS LTD,42123212,"31,578.36"
Department of Health,NHS Bristol N Somerset S Glos ICB,31/08/2022,C&M-PMS Contract Value,DELEGATED GP,SEA MILLS SURGERY,42006117,"75,357.64"
Department of Health,NHS Bristol N Somerset S Glos ICB,31/08/2022,C&M-PMS LES Anti-coagulation,LOCAL INCENTIVE SCHEMES,SEA MILLS SURGERY,42006117,80.75
Department of Health,NHS Bristol N Somerset S Glos ICB,31/08/2022,C&M-PMS LES Basket of Procedures,LOCAL INCENTIVE SCHEMES,SEA MILLS SURGERY,42006117,"7,257.77"
Department of Health,NHS Bristol N Somerset S Glos ICB,31/08/2022,C&M-PMS LES Dementia,LOCAL INCENTIVE SCHEMES,SEA MILLS SURGERY,42006117,252.83
Department of Health,NHS Bristol N Somerset S Glos ICB,31/08/2022,C&M-PMS NES Near Patient Testing,LOCAL INCENTIVE SCHEMES,SEA MILLS SURGERY,42006117,394.17
Department of Health,NHS Bristol N Somerset S Glos ICB,31/08/2022,C&M-PMS PCN DES Participation,DELEGATED GP,SEA MILLS SURGERY,42006117,"1,160.48"
Department of Health,NHS Bristol N Somerset S Glos ICB,31/08/2022,C&M-PMS Prem Notional Rent,DELEGATED GP,SEA MILLS SURGERY,42006117,"4,401.67"
Department of Health,NHS Bristol N Somerset S Glos ICB,31/08/2022,C&M-PMS QOF Aspiration,DELEGATED GP,SEA MILLS SURGERY,42006117,"6,307.81"
Department of Health,NHS Bristol N Somerset S Glos ICB,31/08/2022,Clinical&Medical-Voluntary Sector,COMMUNITY A NOT BED-BASED NOT PLACEMENTS,SECOND STEP HOUSING ASSOCIATION LTD,41994788,"150,000.00"
Department of Health,NHS Bristol N Somerset S Glos ICB,31/08/2022,Clinical&Medical-Voluntary Sector,COMMUNITY A NOT BED-BASED NOT PLACEMENTS,SECOND STEP HOUSING ASSOCIATION LTD,42102766,"191,018.58"
Department of Health,NHS Bristol N Somerset S Glos ICB,31/08/2022,C&M- IIF ACHIEVEMENT,DELEGATED GP,SHIREHAMPTON GROUP PRACTICE,42006147,"60,188.56"
Department of Health,NHS Bristol N Somerset S Glos ICB,31/08/2022,C&M-PCN-PMS DES Leadership Payment,DELEGATED GP,SHIREHAMPTON GROUP PRACTICE,42006147,"2,716.61"
Department of Health,NHS Bristol N Somerset S Glos ICB,31/08/2022,C&M-PMS Contract Value,DELEGATED GP,SHIREHAMPTON GROUP PRACTICE,42006147,"92,375.47"
Department of Health,NHS Bristol N Somerset S Glos ICB,31/08/2022,C&M-PMS DES Extended Hours Access,DELEGATED GP,SHIREHAMPTON GROUP PRACTICE,42006147,"5,233.56"
Department of Health,NHS Bristol N Somerset S Glos ICB,31/08/2022,C&M-PMS LES Anti-coagulation,LOCAL INCENTIVE SCHEMES,SHIREHAMPTON GROUP PRACTICE,42006147,137.75
Department of Health,NHS Bristol N Somerset S Glos ICB,31/08/2022,C&M-PMS LES Basket of Procedures,LOCAL INCENTIVE SCHEMES,SHIREHAMPTON GROUP PRACTICE,42006147,"16,244.35"
Department of Health,NHS Bristol N Somerset S Glos ICB,31/08/2022,C&M-PMS LES DVT,LOCAL INCENTIVE SCHEMES,SHIREHAMPTON GROUP PRACTICE,42006147,26.67
Department of Health,NHS Bristol N Somerset S Glos ICB,31/08/2022,C&M-PMS LES Dementia,LOCAL INCENTIVE SCHEMES,SHIREHAMPTON GROUP PRACTICE,42006147,"1,210.92"
Department of Health,NHS Bristol N Somerset S Glos ICB,31/08/2022,C&M-PMS NES Near Patient Testing,LOCAL INCENTIVE SCHEMES,SHIREHAMPTON GROUP PRACTICE,42006147,523.33
Department of Health,NHS Bristol N Somerset S Glos ICB,31/08/2022,C&M-PMS PCN DES Clinical Director,DELEGATED GP,SHIREHAMPTON GROUP PRACTICE,42006147,"2,674.93"
Department of Health,NHS Bristol N Somerset S Glos ICB,31/08/2022,C&M-PMS PCN DES Participation,DELEGATED GP,SHIREHAMPTON GROUP PRACTICE,42006147,"1,692.93"
Department of Health,NHS Bristol N Somerset S Glos ICB,31/08/2022,C&M-PMS PCO Locum Sickness,DELEGATED GP,SHIREHAMPTON GROUP PRACTICE,42006147,"2,371.18"
Department of Health,NHS Bristol N Somerset S Glos ICB,31/08/2022,C&M-PMS Prem Service Charges,DELEGATED GP,SHIREHAMPTON GROUP PRACTICE,42006147,"41,960.92"
Department of Health,NHS Bristol N Somerset S Glos ICB,31/08/2022,C&M-PMS QOF Aspiration,DELEGATED GP,SHIREHAMPTON GROUP PRACTICE,42006147,"9,798.67"
Department of Health,NHS Bristol N Somerset S Glos ICB,31/08/2022,ME-PMS GP Prior Year AVCs,DELEGATED GP,SHIREHAMPTON GROUP PRACTICE,42006147,712.82
Department of Health,NHS Bristol N Somerset S Glos ICB,31/08/2022,C&M- PCN DES CARE COORDINATOR,DELEGATED GP,SHIREHAMPTON GROUP PRACTICE,42189543,"9,995.68"
Department of Health,NHS Bristol N Somerset S Glos ICB,31/08/2022,C&M- PCN DES CARE HOME PREMIUM,DELEGATED GP,SHIREHAMPTON GROUP PRACTICE,42189543,"5,930.00"
Department of Health,NHS Bristol N Somerset S Glos ICB,31/08/2022,C&M-NCD Paramedic Advanced Practitioner,DELEGATED GP,SHIREHAMPTON GROUP PRACTICE,42189543,"2,416.00"
Department of Health,NHS Bristol N Somerset S Glos ICB,31/08/2022,C&M-PCN DES PHARMACY TECHNICIANS,DELEGATED GP,SHIREHAMPTON GROUP PRACTICE,42189543,"5,803.73"
Department of Health,NHS Bristol N Somerset S Glos ICB,31/08/2022,C&M-PMS DES Minor Surgery,DELEGATED GP,SHIREHAMPTON GROUP PRACTICE,42189543,"1,022.88"
Department of Health,NHS Bristol N Somerset S Glos ICB,31/08/2022,C&M-PMS LES Care Home/Nursing Home,LOCAL INCENTIVE SCHEMES,SHIREHAMPTON GROUP PRACTICE,42189543,428.50
Department of Health,NHS Bristol N Somerset S Glos ICB,31/08/2022,C&M-PMS LES Presc Incentive Sch,LOCAL INCENTIVE SCHEMES,SHIREHAMPTON GROUP PRACTICE,42189543,"7,194.85"
Department of Health,NHS Bristol N Somerset S Glos ICB,31/08/2022,C&M-PMS PCN DES Physiotherapist,DELEGATED GP,SHIREHAMPTON GROUP PRACTICE,42189543,"11,969.00"
Department of Health,NHS Bristol N Somerset S Glos ICB,31/08/2022,C&M-PMS PCN DES Soc Prescribing,DELEGATED GP,SHIREHAMPTON GROUP PRACTICE,42189543,"25,498.00"
Department of Health,NHS Bristol N Somerset S Glos ICB,31/08/2022,C&M-PMS PCO Doctors Ret Scheme,DELEGATED GP,SHIREHAMPTON GROUP PRACTICE,42189543,"1,846.08"
Department of Health,NHS Bristol N Somerset S Glos ICB,31/08/2022,C&M-PMS WEIGHT MANAGEMENT SERVICE,DELEGATED GP,SHIREHAMPTON GROUP PRACTICE,42189543,230.00
Department of Health,NHS Bristol N Somerset S Glos ICB,31/08/2022,Clinical&Medical-Not For Profit,CHILDREN SERVICES,SIRONA CARE & HEALTH CIC,41925506,"3,169,102.67"
Department of Health,NHS Bristol N Somerset S Glos ICB,31/08/2022,Clinical&Medical-Not For Profit,CHILDREN SERVICES,SIRONA CARE & HEALTH CIC,41925512,"453,416.67"
Department of Health,NHS Bristol N Somerset S Glos ICB,31/08/2022,Clinical&Medical-Not For Profit,CHILDREN SERVICES,SIRONA CARE & HEALTH CIC,42016384,"3,169,102.67"
Department of Health,NHS Bristol N Somerset S Glos ICB,31/08/2022,Clinical&Medical-Not For Profit,CHILDREN SERVICES,SIRONA CARE & HEALTH CIC,42016391,"453,416.67"
Department of Health,NHS Bristol N Somerset S Glos ICB,31/08/2022,Clinical&Medical-Not For Profit,COMMUNITY SERVICES A,SIRONA CARE & HEALTH CIC,42040553,"10,092,336.50"
Department of Health,NHS Bristol N Somerset S Glos ICB,31/08/2022,Clinical&Medical-Not For Profit,COMMUNITY SERVICES A,SIRONA CARE & HEALTH CIC,42192018,"74,147.00"
Department of Health,NHS Bristol N Somerset S Glos ICB,31/08/2022,Cont Care- Adult 100% Fully Funded,CHC AD FULL FUND PERS HLTH BUD,SIRONA CARE & HEALTH CIC,42225538,"109,020.00"
Department of Health,NHS Bristol N Somerset S Glos ICB,31/08/2022,Clinical&Medical-Not For Profit,COMMUNITY SERVICES A,SIRONA CARE & HEALTH CIC,42252062,"248,240.00"
Department of Health,NHS Bristol N Somerset S Glos ICB,31/08/2022,Clinical&Medical-Not For Profit,COMMUNITY SERVICES A,SIRONA CARE & HEALTH CIC,42252108,"10,092,336.50"
Department of Health,NHS Bristol N Somerset S Glos ICB,31/08/2022,External Consultancy Fees,STRATEGY & DEVELOPMENT,SOAK DIGITAL LTD,42040267,"25,920.00"
Department of Health,NHS Bristol N Somerset S Glos ICB,31/08/2022,Hcare Srv Rec Fdtn Trust-Non Contract,ACUTE NCA,SOMERSET NHS FOUNDATION TRUST,42027860,"161,728.33"
Department of Health,NHS Bristol N Somerset S Glos ICB,31/08/2022,Clinical&Medical-Independent Sector,ACUTE SERVICES C,SOMERSET SURGICAL SERVICES,41950648,"78,894.59"
Department of Health,NHS Bristol N Somerset S Glos ICB,31/08/2022,Clinical&Medical-Independent Sector,ACUTE SERVICES C,SOMERSET SURGICAL SERVICES,42143137,"54,693.69"
Department of Health,NHS Bristol N Somerset S Glos ICB,31/08/2022,Clinical&Medical-Othe Public Sector,CHILDREN SERVICES,SOUTH GLOS PARENTS AND CARERS CIC,41915809,"120,000.00"
Department of Health,NHS Bristol N Somerset S Glos ICB,31/08/2022,Cont Care- Children,CHILDRENS CONTINUING CARE,SOUTH GLOUCESTERSHIRE COUNCIL,42225131,"28,768.20"
Department of Health,NHS Bristol N Somerset S Glos ICB,31/08/2022,Clinical&Medical-Othe Public Sector,CHILDREN SERVICES,SOUTH GLOUCESTERSHIRE COUNCIL,42251931,"75,000.00"
Department of Health,NHS Bristol N Somerset S Glos ICB,31/08/2022,Clinical&Medical-Othe Public Sector,INTERMEDIATE CARE,SOUTH GLOUCESTERSHIRE COUNCIL,42259283,"382,250.00"
Department of Health,NHS Bristol N Somerset S Glos ICB,31/08/2022,Clinical&Medical-Othe Public Sector,MENTAL HEALTH ACT,SOUTH GLOUCESTERSHIRE COUNCIL,42259283,"93,541.22"
Department of Health,NHS Bristol N Somerset S Glos ICB,31/08/2022,Cont Care-Funded Nursing Care Allow,ADULT JOINT FUNDED CONTINUING CARE,SOUTH GLOUCESTERSHIRE COUNCIL,42259283,"44,447.76"
Department of Health,NHS Bristol N Somerset S Glos ICB,31/08/2022,Cont Care-Funded Nursing Care Allow,FUNDED NURSING CARE,SOUTH GLOUCESTERSHIRE COUNCIL,42259283,"766,245.22"
Department of Health,NHS Bristol N Somerset S Glos ICB,31/08/2022,Social Care-ICES,COMMUNITY EQUIPMENT,SOUTH GLOUCESTERSHIRE COUNCIL,42259283,"99,383.85"
Department of Health,NHS Bristol N Somerset S Glos ICB,31/08/2022,Hcare Srv Rec Fdtn Trust-Contract Baseline,AMBULANCE SERVICES,SOUTH WESTERN AMBULANCE SERVICE NHS FOUNDATION TRUST,42027866,"3,725,310.04"
Department of Health,NHS Bristol N Somerset S Glos ICB,31/08/2022,C&M-PMS Contract Value,DELEGATED GP,SOUTHMEAD & HENBURY FAMILY PRACTICE,42006159,"91,641.90"
Department of Health,NHS Bristol N Somerset S Glos ICB,31/08/2022,C&M-PMS DES Learn Dsblty Hlth Chk,DELEGATED GP,SOUTHMEAD & HENBURY FAMILY PRACTICE,42006159,840.00
Department of Health,NHS Bristol N Somerset S Glos ICB,31/08/2022,C&M-PMS LES Anti-coagulation,LOCAL INCENTIVE SCHEMES,SOUTHMEAD & HENBURY FAMILY PRACTICE,42006159,156.75
Department of Health,NHS Bristol N Somerset S Glos ICB,31/08/2022,C&M-PMS LES Basket of Procedures,LOCAL INCENTIVE SCHEMES,SOUTHMEAD & HENBURY FAMILY PRACTICE,42006159,"10,626.19"
Department of Health,NHS Bristol N Somerset S Glos ICB,31/08/2022,C&M-PMS LES DVT,LOCAL INCENTIVE SCHEMES,SOUTHMEAD & HENBURY FAMILY PRACTICE,42006159,40.00
Department of Health,NHS Bristol N Somerset S Glos ICB,31/08/2022,C&M-PMS LES Dementia,LOCAL INCENTIVE SCHEMES,SOUTHMEAD & HENBURY FAMILY PRACTICE,42006159,503.00
Department of Health,NHS Bristol N Somerset S Glos ICB,31/08/2022,C&M-PMS LES Diabetes-Insulin (GTT),LOCAL INCENTIVE SCHEMES,SOUTHMEAD & HENBURY FAMILY PRACTICE,42006159,116.67
Department of Health,NHS Bristol N Somerset S Glos ICB,31/08/2022,C&M-PMS NES Near Patient Testing,LOCAL INCENTIVE SCHEMES,SOUTHMEAD & HENBURY FAMILY PRACTICE,42006159,524.17
Department of Health,NHS Bristol N Somerset S Glos ICB,31/08/2022,C&M-PMS PCN DES Participation,DELEGATED GP,SOUTHMEAD & HENBURY FAMILY PRACTICE,42006159,"1,662.24"
Department of Health,NHS Bristol N Somerset S Glos ICB,31/08/2022,C&M-PMS Prem Notional Rent,DELEGATED GP,SOUTHMEAD & HENBURY FAMILY PRACTICE,42006159,"1,916.62"
Department of Health,NHS Bristol N Somerset S Glos ICB,31/08/2022,C&M-PMS Prem Water Rates,DELEGATED GP,SOUTHMEAD & HENBURY FAMILY PRACTICE,42006159,274.55
Department of Health,NHS Bristol N Somerset S Glos ICB,31/08/2022,C&M-PMS QOF Achievement,DELEGATED GP,SOUTHMEAD & HENBURY FAMILY PRACTICE,42006159,"30,153.18"
Department of Health,NHS Bristol N Somerset S Glos ICB,31/08/2022,C&M-PMS QOF Aspiration,DELEGATED GP,SOUTHMEAD & HENBURY FAMILY PRACTICE,42006159,"9,562.58"
Department of Health,NHS Bristol N Somerset S Glos ICB,31/08/2022,C&M-PMS WEIGHT MANAGEMENT SERVICE,DELEGATED GP,SOUTHMEAD & HENBURY FAMILY PRACTICE,42006159,506.00
Department of Health,NHS Bristol N Somerset S Glos ICB,31/08/2022,C&M-PMS DES Minor Surgery,DELEGATED GP,SOUTHMEAD & HENBURY FAMILY PRACTICE,42189549,"2,216.24"
Department of Health,NHS Bristol N Somerset S Glos ICB,31/08/2022,C&M-PMS LES Care Home/Nursing Home,LOCAL INCENTIVE SCHEMES,SOUTHMEAD & HENBURY FAMILY PRACTICE,42189549,884.64
Department of Health,NHS Bristol N Somerset S Glos ICB,31/08/2022,C&M-PMS LES Presc Incentive Sch,LOCAL INCENTIVE SCHEMES,SOUTHMEAD & HENBURY FAMILY PRACTICE,42189549,"11,080.00"
Department of Health,NHS Bristol N Somerset S Glos ICB,31/08/2022,C&M-PMS PCO Locum Adop/Pat/Mat,DELEGATED GP,SOUTHMEAD & HENBURY FAMILY PRACTICE,42189549,"18,182.46"
Department of Health,NHS Bristol N Somerset S Glos ICB,31/08/2022,Clinical&Medical-Independent Sector,ACUTE SERVICES C,SPAMEDICA LTD,41950788,"289,225.55"
Department of Health,NHS Bristol N Somerset S Glos ICB,31/08/2022,Clinical&Medical-Independent Sector,ACUTE SERVICES C,SPAMEDICA LTD,42259525,"280,535.14"
Department of Health,NHS Bristol N Somerset S Glos ICB,31/08/2022,Clinical&Medical-Commercial Sector,AUDIOLOGY,SPECSAVERS HEARCARE LTD,42226810,"26,409.10"
Department of Health,NHS Bristol N Somerset S Glos ICB,31/08/2022,Clinical&Medical-Independent Sector,ACUTE SERVICES C,SPIRE HEALTHCARE LTD,41939635,"732,510.92"
Department of Health,NHS Bristol N Somerset S Glos ICB,31/08/2022,C&M-PMS Contract Value,DELEGATED GP,ST MARY STREET SURGERY,42006155,"69,782.01"
Department of Health,NHS Bristol N Somerset S Glos ICB,31/08/2022,C&M-PMS LES Anti-coagulation,LOCAL INCENTIVE SCHEMES,ST MARY STREET SURGERY,42006155,171.00
Department of Health,NHS Bristol N Somerset S Glos ICB,31/08/2022,C&M-PMS LES Basket of Procedures,LOCAL INCENTIVE SCHEMES,ST MARY STREET SURGERY,42006155,"6,273.03"
Department of Health,NHS Bristol N Somerset S Glos ICB,31/08/2022,C&M-PMS LES DVT,LOCAL INCENTIVE SCHEMES,ST MARY STREET SURGERY,42006155,76.67
Department of Health,NHS Bristol N Somerset S Glos ICB,31/08/2022,C&M-PMS LES Dementia,LOCAL INCENTIVE SCHEMES,ST MARY STREET SURGERY,42006155,610.33
Department of Health,NHS Bristol N Somerset S Glos ICB,31/08/2022,C&M-PMS LES Diabetes-Insulin (GTT),LOCAL INCENTIVE SCHEMES,ST MARY STREET SURGERY,42006155,58.33
Department of Health,NHS Bristol N Somerset S Glos ICB,31/08/2022,C&M-PMS NES Near Patient Testing,LOCAL INCENTIVE SCHEMES,ST MARY STREET SURGERY,42006155,477.50
Department of Health,NHS Bristol N Somerset S Glos ICB,31/08/2022,C&M-PMS PCN DES Participation,DELEGATED GP,ST MARY STREET SURGERY,42006155,"1,285.82"
Department of Health,NHS Bristol N Somerset S Glos ICB,31/08/2022,C&M-PMS Prem Notional Rent,DELEGATED GP,ST MARY STREET SURGERY,42006155,"3,454.17"
Department of Health,NHS Bristol N Somerset S Glos ICB,31/08/2022,C&M-PMS QOF Aspiration,DELEGATED GP,ST MARY STREET SURGERY,42006155,"6,872.72"
Department of Health,NHS Bristol N Somerset S Glos ICB,31/08/2022,C&M-PMS WEIGHT MANAGEMENT SERVICE,DELEGATED GP,ST MARY STREET SURGERY,42006155,103.50
Department of Health,NHS Bristol N Somerset S Glos ICB,31/08/2022,ME - PMS GP Prior Year ERs,DELEGATED GP,ST MARY STREET SURGERY,42006155,"2,529.10"
Department of Health,NHS Bristol N Somerset S Glos ICB,31/08/2022,ME-PMS GP Prior Year EEs,DELEGATED GP,ST MARY STREET SURGERY,42006155,"3,204.56"
Department of Health,NHS Bristol N Somerset S Glos ICB,31/08/2022,C&M-PMS Contract Value,DELEGATED GP,ST MARY STREET SURGERY,42006156,-169.76
Department of Health,NHS Bristol N Somerset S Glos ICB,31/08/2022,ME - PMS GP Prior Year ERs,DELEGATED GP,ST MARY STREET SURGERY,42006156,"-10,782.26"
Department of Health,NHS Bristol N Somerset S Glos ICB,31/08/2022,ME-PMS GP Pension EEs-PMS,DELEGATED GP,ST MARY STREET SURGERY,42006156,"-5,191.77"
Department of Health,NHS Bristol N Somerset S Glos ICB,31/08/2022,ME-PMS GP Pension ERs-PMS,DELEGATED GP,ST MARY STREET SURGERY,42006156,"-5,419.54"
Department of Health,NHS Bristol N Somerset S Glos ICB,31/08/2022,ME-PMS GP Prior Year EEs,DELEGATED GP,ST MARY STREET SURGERY,42006156,"-11,747.24"
Department of Health,NHS Bristol N Somerset S Glos ICB,31/08/2022,Clinical&Medical-Voluntary Sector,ADULT COMMUNITY CRISIS,ST MUNGOS,42102703,"49,500.00"
Department of Health,NHS Bristol N Somerset S Glos ICB,31/08/2022,Clinical&Medical-Voluntary Sector,HOSPICES,ST PETERS HOSPICE,41925548,"95,091.84"
Department of Health,NHS Bristol N Somerset S Glos ICB,31/08/2022,Clinical&Medical-Commercial Sector,MENTAL HEALTH ACT,ST PETERS HOSPITAL LTD,42102904,"25,732.17"
Department of Health,NHS Bristol N Somerset S Glos ICB,31/08/2022,C&M- PCN DES CARE COORDINATOR,DELEGATED GP,STOCKWOOD MEDICAL CENTRE,42197773,"3,107.74"
Department of Health,NHS Bristol N Somerset S Glos ICB,31/08/2022,C&M- PCN DES CARE HOME PREMIUM,DELEGATED GP,STOCKWOOD MEDICAL CENTRE,42197773,"2,780.00"
Department of Health,NHS Bristol N Somerset S Glos ICB,31/08/2022,C&M-GMS DES Extended Hours Access,DELEGATED GP,STOCKWOOD MEDICAL CENTRE,42197773,"6,596.16"
Department of Health,NHS Bristol N Somerset S Glos ICB,31/08/2022,C&M-GMS Global Sum,DELEGATED GP,STOCKWOOD MEDICAL CENTRE,42197773,"79,362.30"
Department of Health,NHS Bristol N Somerset S Glos ICB,31/08/2022,C&M-GMS LES Anti-coagulation,LOCAL INCENTIVE SCHEMES,STOCKWOOD MEDICAL CENTRE,42197773,218.50
Department of Health,NHS Bristol N Somerset S Glos ICB,31/08/2022,C&M-GMS LES Basket of Procedures,LOCAL INCENTIVE SCHEMES,STOCKWOOD MEDICAL CENTRE,42197773,"16,115.26"
Department of Health,NHS Bristol N Somerset S Glos ICB,31/08/2022,C&M-GMS LES Care Home/Nursing Home,LOCAL INCENTIVE SCHEMES,STOCKWOOD MEDICAL CENTRE,42197773,322.53
Department of Health,NHS Bristol N Somerset S Glos ICB,31/08/2022,C&M-GMS LES DVT,LOCAL INCENTIVE SCHEMES,STOCKWOOD MEDICAL CENTRE,42197773,53.33
Department of Health,NHS Bristol N Somerset S Glos ICB,31/08/2022,C&M-GMS LES Dementia,LOCAL INCENTIVE SCHEMES,STOCKWOOD MEDICAL CENTRE,42197773,"1,616.33"
Department of Health,NHS Bristol N Somerset S Glos ICB,31/08/2022,C&M-GMS LES Presc Incentive Sch,LOCAL INCENTIVE SCHEMES,STOCKWOOD MEDICAL CENTRE,42197773,"7,770.00"
Department of Health,NHS Bristol N Somerset S Glos ICB,31/08/2022,C&M-GMS NES Near Patient Testing,LOCAL INCENTIVE SCHEMES,STOCKWOOD MEDICAL CENTRE,42197773,590.83
Department of Health,NHS Bristol N Somerset S Glos ICB,31/08/2022,C&M-GMS PCN DES Clin Pharmacist,DELEGATED GP,STOCKWOOD MEDICAL CENTRE,42197773,"8,148.70"
Department of Health,NHS Bristol N Somerset S Glos ICB,31/08/2022,C&M-GMS PCN DES Clinical Director,DELEGATED GP,STOCKWOOD MEDICAL CENTRE,42197773,"3,371.37"
Department of Health,NHS Bristol N Somerset S Glos ICB,31/08/2022,C&M-GMS PCN DES Participation,DELEGATED GP,STOCKWOOD MEDICAL CENTRE,42197773,"1,464.57"
Department of Health,NHS Bristol N Somerset S Glos ICB,31/08/2022,C&M-GMS PCN DES Physiotherapist,DELEGATED GP,STOCKWOOD MEDICAL CENTRE,42197773,"9,471.06"
Department of Health,NHS Bristol N Somerset S Glos ICB,31/08/2022,C&M-GMS PCN DES Soc Prescribing,DELEGATED GP,STOCKWOOD MEDICAL CENTRE,42197773,"4,888.83"
Department of Health,NHS Bristol N Somerset S Glos ICB,31/08/2022,C&M-GMS Prem Notional Rent,DELEGATED GP,STOCKWOOD MEDICAL CENTRE,42197773,"15,001.36"
Department of Health,NHS Bristol N Somerset S Glos ICB,31/08/2022,C&M-GMS QOF Aspiration,DELEGATED GP,STOCKWOOD MEDICAL CENTRE,42197773,"10,758.35"
Department of Health,NHS Bristol N Somerset S Glos ICB,31/08/2022,C&M-NCD Adult Mental Health Practitioner,DELEGATED GP,STOCKWOOD MEDICAL CENTRE,42197773,"1,886.42"
Department of Health,NHS Bristol N Somerset S Glos ICB,31/08/2022,C&M-NCD Health and Wellbeing Coach,DELEGATED GP,STOCKWOOD MEDICAL CENTRE,42197773,"5,786.28"
Department of Health,NHS Bristol N Somerset S Glos ICB,31/08/2022,C&M-PCN DES PHARMACY TECHNICIANS,DELEGATED GP,STOCKWOOD MEDICAL CENTRE,42197773,"3,582.46"
Department of Health,NHS Bristol N Somerset S Glos ICB,31/08/2022,C&M-PCN DES Paramedic Advanced Practitioner,DELEGATED GP,STOCKWOOD MEDICAL CENTRE,42197773,"4,334.87"
Department of Health,NHS Bristol N Somerset S Glos ICB,31/08/2022,C&M-PCN-GMS DES Leadership Payment,DELEGATED GP,STOCKWOOD MEDICAL CENTRE,42197773,"3,122.03"
Department of Health,NHS Bristol N Somerset S Glos ICB,31/08/2022,ME-GMS GP Pension EEs Adjustments,DELEGATED GP,STOCKWOOD MEDICAL CENTRE,42197773,363.22
Department of Health,NHS Bristol N Somerset S Glos ICB,31/08/2022,ME-GMS GP Pension ERs Adjustments,DELEGATED GP,STOCKWOOD MEDICAL CENTRE,42197773,561.62
Department of Health,NHS Bristol N Somerset S Glos ICB,31/08/2022,C&M-PMS Contract Value,DELEGATED GP,STOKE GIFFORD MEDICAL CENTRE,42006134,"121,597.07"
Department of Health,NHS Bristol N Somerset S Glos ICB,31/08/2022,C&M-PMS LES Anti-coagulation,LOCAL INCENTIVE SCHEMES,STOKE GIFFORD MEDICAL CENTRE,42006134,213.75
Department of Health,NHS Bristol N Somerset S Glos ICB,31/08/2022,C&M-PMS LES Basket of Procedures,LOCAL INCENTIVE SCHEMES,STOKE GIFFORD MEDICAL CENTRE,42006134,"12,809.91"
Department of Health,NHS Bristol N Somerset S Glos ICB,31/08/2022,C&M-PMS LES DVT,LOCAL INCENTIVE SCHEMES,STOKE GIFFORD MEDICAL CENTRE,42006134,226.67
Department of Health,NHS Bristol N Somerset S Glos ICB,31/08/2022,C&M-PMS LES Dementia,LOCAL INCENTIVE SCHEMES,STOKE GIFFORD MEDICAL CENTRE,42006134,405.42
Department of Health,NHS Bristol N Somerset S Glos ICB,31/08/2022,C&M-PMS NES Near Patient Testing,LOCAL INCENTIVE SCHEMES,STOKE GIFFORD MEDICAL CENTRE,42006134,689.17
Department of Health,NHS Bristol N Somerset S Glos ICB,31/08/2022,C&M-PMS PCN DES Participation,DELEGATED GP,STOKE GIFFORD MEDICAL CENTRE,42006134,"2,209.89"
Department of Health,NHS Bristol N Somerset S Glos ICB,31/08/2022,C&M-PMS Prem Notional Rent,DELEGATED GP,STOKE GIFFORD MEDICAL CENTRE,42006134,"16,742.67"
Department of Health,NHS Bristol N Somerset S Glos ICB,31/08/2022,C&M-PMS QOF Aspiration,DELEGATED GP,STOKE GIFFORD MEDICAL CENTRE,42006134,"13,135.79"
Department of Health,NHS Bristol N Somerset S Glos ICB,31/08/2022,C&M-GMS Global Sum,DELEGATED GP,STUDENT HEALTH SERVICE,42189538,"127,907.74"
Department of Health,NHS Bristol N Somerset S Glos ICB,31/08/2022,C&M-GMS LES Anti-coagulation,LOCAL INCENTIVE SCHEMES,STUDENT HEALTH SERVICE,42189538,9.50
Department of Health,NHS Bristol N Somerset S Glos ICB,31/08/2022,C&M-GMS LES Basket of Procedures,LOCAL INCENTIVE SCHEMES,STUDENT HEALTH SERVICE,42189538,"13,643.06"
Department of Health,NHS Bristol N Somerset S Glos ICB,31/08/2022,C&M-GMS LES DVT,LOCAL INCENTIVE SCHEMES,STUDENT HEALTH SERVICE,42189538,13.33
Department of Health,NHS Bristol N Somerset S Glos ICB,31/08/2022,C&M-GMS LES Presc Incentive Sch,LOCAL INCENTIVE SCHEMES,STUDENT HEALTH SERVICE,42189538,"9,870.50"
Department of Health,NHS Bristol N Somerset S Glos ICB,31/08/2022,C&M-GMS NES Near Patient Testing,LOCAL INCENTIVE SCHEMES,STUDENT HEALTH SERVICE,42189538,98.33
Department of Health,NHS Bristol N Somerset S Glos ICB,31/08/2022,C&M-GMS PCN DES Participation,DELEGATED GP,STUDENT HEALTH SERVICE,42189538,"2,417.82"
Department of Health,NHS Bristol N Somerset S Glos ICB,31/08/2022,C&M-GMS Prem Service Charges,DELEGATED GP,STUDENT HEALTH SERVICE,42189538,"51,804.66"
Department of Health,NHS Bristol N Somerset S Glos ICB,31/08/2022,C&M-GMS QOF Achievement,DELEGATED GP,STUDENT HEALTH SERVICE,42189538,"40,694.48"
Department of Health,NHS Bristol N Somerset S Glos ICB,31/08/2022,C&M-GMS QOF Aspiration,DELEGATED GP,STUDENT HEALTH SERVICE,42189538,"5,957.33"
Department of Health,NHS Bristol N Somerset S Glos ICB,31/08/2022,Clinical&Medical-Independent Sector,ACUTE SERVICES C,SULIS HOSPITAL BATH LTD,41915688,"120,240.00"
Department of Health,NHS Bristol N Somerset S Glos ICB,31/08/2022,Clinical&Medical-Independent Sector,ACUTE SERVICES C,SULIS HOSPITAL BATH LTD,42259572,"59,059.81"
Department of Health,NHS Bristol N Somerset S Glos ICB,31/08/2022,C&M-PMS Contract Value,DELEGATED GP,THREE SHIRES MEDICAL PRACTICE,42006172,"81,885.97"
Department of Health,NHS Bristol N Somerset S Glos ICB,31/08/2022,C&M-PMS LES Anti-coagulation,LOCAL INCENTIVE SCHEMES,THREE SHIRES MEDICAL PRACTICE,42006172,114.00
Department of Health,NHS Bristol N Somerset S Glos ICB,31/08/2022,C&M-PMS LES Basket of Procedures,LOCAL INCENTIVE SCHEMES,THREE SHIRES MEDICAL PRACTICE,42006172,"7,196.06"
Department of Health,NHS Bristol N Somerset S Glos ICB,31/08/2022,C&M-PMS LES Dementia,LOCAL INCENTIVE SCHEMES,THREE SHIRES MEDICAL PRACTICE,42006172,295.42
Department of Health,NHS Bristol N Somerset S Glos ICB,31/08/2022,C&M-PMS NES Near Patient Testing,LOCAL INCENTIVE SCHEMES,THREE SHIRES MEDICAL PRACTICE,42006172,540.00
Department of Health,NHS Bristol N Somerset S Glos ICB,31/08/2022,C&M-PMS PCN DES Participation,DELEGATED GP,THREE SHIRES MEDICAL PRACTICE,42006172,"1,509.01"
Department of Health,NHS Bristol N Somerset S Glos ICB,31/08/2022,C&M-PMS Prem Notional Rent,DELEGATED GP,THREE SHIRES MEDICAL PRACTICE,42006172,"13,198.60"
Department of Health,NHS Bristol N Somerset S Glos ICB,31/08/2022,C&M-PMS QOF Aspiration,DELEGATED GP,THREE SHIRES MEDICAL PRACTICE,42006172,"8,014.19"
Department of Health,NHS Bristol N Somerset S Glos ICB,31/08/2022,C&M-PMS WEIGHT MANAGEMENT SERVICE,DELEGATED GP,THREE SHIRES MEDICAL PRACTICE,42006172,92.00
Department of Health,NHS Bristol N Somerset S Glos ICB,31/08/2022,C&M-PMS Cost of Drugs -Dispensing,CENTRAL DRUGS,THREE SHIRES MEDICAL PRACTICE,42197595,"100,974.96"
Department of Health,NHS Bristol N Somerset S Glos ICB,31/08/2022,C&M-PMS Prof fees Dispensing,CENTRAL DRUGS,THREE SHIRES MEDICAL PRACTICE,42197595,"36,987.84"
Department of Health,NHS Bristol N Somerset S Glos ICB,31/08/2022,C&M-PMS Contract Value,DELEGATED GP,TUDOR LODGE SURGERY,42006177,"106,317.10"
Department of Health,NHS Bristol N Somerset S Glos ICB,31/08/2022,C&M-PMS LES Anti-coagulation,LOCAL INCENTIVE SCHEMES,TUDOR LODGE SURGERY,42006177,573.33
Department of Health,NHS Bristol N Somerset S Glos ICB,31/08/2022,C&M-PMS LES Basket of Procedures,LOCAL INCENTIVE SCHEMES,TUDOR LODGE SURGERY,42006177,"5,277.89"
Department of Health,NHS Bristol N Somerset S Glos ICB,31/08/2022,C&M-PMS LES DVT,LOCAL INCENTIVE SCHEMES,TUDOR LODGE SURGERY,42006177,23.33
Department of Health,NHS Bristol N Somerset S Glos ICB,31/08/2022,C&M-PMS LES Dementia,LOCAL INCENTIVE SCHEMES,TUDOR LODGE SURGERY,42006177,405.42
Department of Health,NHS Bristol N Somerset S Glos ICB,31/08/2022,C&M-PMS NES Near Patient Testing,LOCAL INCENTIVE SCHEMES,TUDOR LODGE SURGERY,42006177,758.33
Department of Health,NHS Bristol N Somerset S Glos ICB,31/08/2022,C&M-PMS PCN DES Participation,DELEGATED GP,TUDOR LODGE SURGERY,42006177,"1,914.16"
Department of Health,NHS Bristol N Somerset S Glos ICB,31/08/2022,C&M-PMS Prem Notional Rent,DELEGATED GP,TUDOR LODGE SURGERY,42006177,"4,205.17"
Department of Health,NHS Bristol N Somerset S Glos ICB,31/08/2022,C&M-PMS QOF Aspiration,DELEGATED GP,TUDOR LODGE SURGERY,42006177,"11,774.81"
Department of Health,NHS Bristol N Somerset S Glos ICB,31/08/2022,Other Research Exp,R AND D TEAM,UNIVERSITY HOSPITALS BRISTOL AND WESTON NHS FOUNDATION TRUST,41950735,"30,000.00"
Department of Health,NHS Bristol N Somerset S Glos ICB,31/08/2022,Hcare Srv Rec Fdtn Trust-Contract Baseline,ACUTE SERVICES A,UNIVERSITY HOSPITALS BRISTOL AND WESTON NHS FOUNDATION TRUST,42027871,"37,134,026.53"
Department of Health,NHS Bristol N Somerset S Glos ICB,31/08/2022,Other Research Exp,R AND D TEAM,UNIVERSITY OF BRISTOL,41896537,"55,099.00"
Department of Health,NHS Bristol N Somerset S Glos ICB,31/08/2022,Other Research Exp,R AND D TEAM,UNIVERSITY OF BRISTOL,41950950,"70,613.03"
Department of Health,NHS Bristol N Somerset S Glos ICB,31/08/2022,Other Research Exp,R AND D TEAM,UNIVERSITY OF BRISTOL,41950968,"35,525.61"
Department of Health,NHS Bristol N Somerset S Glos ICB,31/08/2022,Other Research Exp,R AND D TEAM,UNIVERSITY OF BRISTOL,41994958,"184,994.64"
Department of Health,NHS Bristol N Somerset S Glos ICB,31/08/2022,Other Research Exp,R AND D TEAM,UNIVERSITY OF BRISTOL,42143060,"50,000.00"
Department of Health,NHS Bristol N Somerset S Glos ICB,31/08/2022,Other Research Exp,R AND D TEAM,UNIVERSITY OF BRISTOL,42143069,"36,126.47"
